Workbook

Sheet TABLERO GENERAL
A1: CUADRO DE CARGAS ELÉCTRICAS TABLERO GENERAL NORMAL
A2: DEPENDENCIA | B2: CTO. | C2: DESCRIPCIÓN | D2: POTENCIA TOTAL (W) | E2: FASES | I2: CORRIENTE (A) | J2: TM (A)
E3: R | F3: S | G3: T | H3: RST | K3: cap. Cond | L3: cable
B4: #1 | C4: Tablero Principal Normal Torre | D4: ='TPE-TPN-TORRE'!F12 -> 556,910 | E4: ='TPE-TPN-TORRE'!G12 -> 181,410 | F4: ='TPE-TPN-TORRE'!H12 -> 193,000 | G4: ='TPE-TPN-TORRE'!I12 -> 182,500 | H4: ='TPE-TPN-TORRE'!J12 -> 0 | I4: ='TPE-TPN-TORRE'!K12 -> 740 | J4: ='TPE-TPN-TORRE'!L12 -> 3x800 | K4: =344*3 -> 1032 | L4: 3x4x(1x185)
B5: #2 | C5: Tablero Principal Normal Sala Tecnica | D5: ='TSE-TSN-ST'!AL14 -> 22,500 | E5: ='TSE-TSN-ST'!AM14 -> 8,900 | F5: ='TSE-TSN-ST'!AN14 -> 6,800 | G5: ='TSE-TSN-ST'!AO14 -> 6,800 | H5: ='TSE-TSN-ST'!AP14 -> 0 | I5: ='TSE-TSN-ST'!AQ14 -> 32 | J5: ='TSE-TSN-ST'!AR14 -> 3x40
B6: #3 | C6: Tablero Principal Normal Guarderia | D6: ='TSE-TSN-GU'!AL18 -> 62,306 | E6: ='TSE-TSN-GU'!AM18 -> 20,680 | F6: ='TSE-TSN-GU'!AN18 -> 20,526 | G6: ='TSE-TSN-GU'!AO18 -> 21,100 | H6: ='TSE-TSN-GU'!AP18 -> 0 | I6: ='TSE-TSN-GU'!AQ18 -> 83 | J6: ='TSE-TSN-GU'!AR18 -> 3x100
B7: #4 | C7: Tablero Princiapl Climatizacion | D7: ='TSN-CLI'!F9 -> 344,760 | E7: ='TSN-CLI'!G9 -> 114,920 | F7: ='TSN-CLI'!H9 -> 114,920 | G7: ='TSN-CLI'!I9 -> 114,920 | H7: ='TSN-CLI'!J9 -> 344,760 | I7: ='TSN-CLI'!K9 -> 622 | J7: ='TSN-CLI'!L9 -> 3x630
B8: #5 | C8: Tablero de Emergencia | D8: =D36 -> 269,666 | E8: =E36 -> 90,772 | F8: 89,112 | G8: 89,781 | H8: 37,444 | I8: 512 | J8: =J36 -> 3x630
A10: TOTAL GENERAL | D10: =SUM(D4:D9) -> 1,256,142 | E10: =SUM(E4:E9) -> 416,682 | F10: =SUM(F4:F9) -> 424,358 | G10: =SUM(G4:G9) -> 415,101 | H10: =SUM(H4:H9) -> 382,204
C12: Potencia instalada - Σpotencia | D12: PI | E12: =D10 -> 1,256,142
C13: factor de potencia - | D13: fp | E13: 0.8
C14: factor de demanda - Anexo 3 ANDE | D14: fd | E14: 0.6
C15: Potencia Demandada - Pd = PI*fd | D15: Pd | E15: =E12*E14 -> 753,685
C16: Corriente - Id = Pd/(√3*380*fp) | D16: Id | E16: =E15/(SQRT(3)*380*E13) -> 1,431
C17: LLave Limitadora | E17: 3x1600
C18: DIMENSIONAMIENTO DEL TRANSFORMADOR
C19: Potencia aparente | D19: S(kVA) | E19: =+(E15/E13)/1000 -> 942
C20: Transformador | D20: T(kVA) | E20: 1,000 | F20: cap. Cond | G20: cable
C21: Corriente maxima de transformador | D21: I | E21: =+(E20*1000)/(380*1.73) -> 1,521 | F21: =577*3 -> 1731 | G21: 3x4x(1x240)
C22: Interruptor termomagnético de corte | D22: TM | E22: 3x1600 reg
A24: CUADRO DE CARGAS ELÉCTRICAS TABLERO GENERAL EMERGENCIA
A25: DEPENDENCIA | B25: CTO. | C25: DESCRIPCIÓN | D25: POTENCIA TOTAL (W) | E25: FASES | I25: CORRIENTE (A) | J25: TM (A)
E26: R | F26: S | G26: T | H26: RST
B27: #1 | C27: Tablero Principal Emergencia Torre | D27: ='TPE-TPN-TORRE'!F37 -> 208,914 | E27: ='TPE-TPN-TORRE'!G37 -> 69,897 | F27: ='TPE-TPN-TORRE'!H37 -> 69,085 | G27: ='TPE-TPN-TORRE'!I37 -> 69,932 | H27: ='TPE-TPN-TORRE'!J37 -> 22,500 | I27: ='TPE-TPN-TORRE'!K37 -> 397 | J27: ='TPE-TPN-TORRE'!L37 -> 3x500
B28: #2 | C28: Tablero Principal Emergencia Sala Tecnica | D28: ='TSE-TSN-ST'!AL38 -> 7,837 | E28: ='TSE-TSN-ST'!AM38 -> 2,351 | F28: ='TSE-TSN-ST'!AN38 -> 2,486 | G28: ='TSE-TSN-ST'!AO38 -> 3,000 | H28: ='TSE-TSN-ST'!AP38 -> 0 | I28: ='TSE-TSN-ST'!AQ38 -> 15 | J28: ='TSE-TSN-ST'!AR38 -> 3x25
B29: #3 | C29: Tablero Principal Emergencia Guarderia | D29: ='TSE-TSN-GU'!AL47 -> 26,490 | E29: ='TSE-TSN-GU'!AM47 -> 8,077 | F29: ='TSE-TSN-GU'!AN47 -> 9,244 | G29: ='TSE-TSN-GU'!AO47 -> 9,169 | H29: ='TSE-TSN-GU'!AP47 -> 4,500 | I29: ='TSE-TSN-GU'!AQ47 -> 50 | J29: ='TSE-TSN-GU'!AR47 -> 3x63
B30: #4 | C30: Tablero Seccional BAC | D30: ='ALIM.TSE-BAC'!F10 -> 11,563 | E30: ='ALIM.TSE-BAC'!G10 -> 4,600 | F30: ='ALIM.TSE-BAC'!H10 -> 3,481 | G30: ='ALIM.TSE-BAC'!I10 -> 3,481 | H30: ='ALIM.TSE-BAC'!J10 -> 10,444 | I30: ='ALIM.TSE-BAC'!K10 -> 22 | J30: ='ALIM.TSE-BAC'!L10 -> 3x32
B31: #5 | C31: Tablero Planta de Tratamiento | D31: =+'ALIM.TSN-PAT'!F5 -> 746 | E31: =+'ALIM.TSN-PAT'!G5 -> 0 | F31: =+'ALIM.TSN-PAT'!H5 -> 746 | G31: =+'ALIM.TSN-PAT'!I5 -> 0 | H31: =+'ALIM.TSN-PAT'!J5 -> 0 | I31: =+'ALIM.TSN-PAT'!K5 -> 3 | J31: ='ALIM.TSN-PAT'!L5 -> 1x25
B32: #6 | C32: Tablero Bomba de Riego | D32: =+'ALIM.-RIEGO'!F5 -> 1,492 | E32: =+'ALIM.-RIEGO'!G5 -> 1,492 | F32: =+'ALIM.-RIEGO'!H5 -> 0 | G32: =+'ALIM.-RIEGO'!I5 -> 0 | H32: =+'ALIM.-RIEGO'!J5 -> 0 | I32: =+'ALIM.-RIEGO'!K5 -> 7 | J32: =+'ALIM.-RIEGO'!L5 -> 1x25
B33: #7 | C33: Tablero Fuente Seca | D33: =+'ALIM.-FUENTE SECA'!F5 -> 6,714 | E33: =+'ALIM.-FUENTE SECA'!G5 -> 2,238 | F33: =+'ALIM.-FUENTE SECA'!H5 -> 2,238 | G33: =+'ALIM.-FUENTE SECA'!I5 -> 2,238 | H33: =+'ALIM.-FUENTE SECA'!J5 -> 0 | I33: =+'ALIM.-FUENTE SECA'!K5 -> 13 | J33: =+'ALIM.-FUENTE SECA'!L5 -> 3x25
B34: #8 | C34: Tablero Seccional Iluminacion Exterior | D34: ='TSE-IE'!R19 -> 5,910 | E34: ='TSE-IE'!S19 -> 2,117 | F34: ='TSE-IE'!T19 -> 1,832 | G34: ='TSE-IE'!U19 -> 1,961 | H34: ='TSE-IE'!V19 -> 0 | I34: ='TSE-IE'!W19 -> 11 | J34: ='TSE-IE'!X19 -> 3x32
A36: TOTAL GENERAL | D36: =SUM(D27:D35) -> 269,666 | E36: =SUM(E27:E35) -> 90,772 | F36: =SUM(F27:F35) -> 89,112 | G36: =SUM(G27:G35) -> 89,781 | H36: =SUM(H27:H35) -> 37,444 | I36: =E42 -> 512 | J36: =E43 -> 3x630
C38: Potencia instalada - Σpotencia | D38: PI | E38: =D36 -> 269,666
C39: factor de potencia - | D39: fp | E39: 0.8
C40: factor de demanda - Anexo 3 ANDE | D40: fd | E40: 1
C41: Potencia Demandada - Pd = PI*fd | D41: Pd | E41: =E38*E40 -> 269,666
C42: Corriente - Id = Pd/(√3*380*fp) | D42: Id | E42: =E41/(SQRT(3)*380*E39) -> 512
C43: LLave Limitadora | E43: 3x630
C44: DIMENSIONAMIENTO DEL GENERADOR
C45: Potencia aparente | D45: S(kVA) | E45: =+(E41/E39)/1000 -> 337
C46: Generador | D46: G(kVA) | E46: 500
C47: Corriente maxima de transformador | D47: I | E47: =+(E46*1000)/(380*1.73) -> 761 | F47: cap. Cond | G47: cable
C48: Interruptor termomagnético de corte | D48: TM | E48: 3x800 reg | F48: =364*2 -> 728 | G48: 2x4x(1x150)

Sheet TSE-TSN-ST
A1: CUADRO DE CARGAS ELÉCTRICAS TABLERO-TSN-ST
A2: DEPENDENCIA | B2: CTO. | C2: TIPO 1 - LED 38 W | E2: TIPO 2 - LED Est. Adosar 39 W | G2: TIPO 3 - LED Circular Embutido 25 W | I2: TIPO 4 - Spot LED CIrcular Emb. 6 W | K2: TIPO 5 - Spot Cir. Movil LED 12 W | M2: TIPO 6 - Aplique de Adosar LED 5.5 W | O2: TIPO 7 - Adosar Resina LED 6 W | Q2: TIPO 8 - LED Circular Embutido 23 W | S2: TIPO 9 - LED Colgante 35 W | U2: TIPO 10 - Proyector LED 50 W | W2: TIPO 11 - LED Embutido Uni. 1.7 W | Y2: TIPO 12 - LED Colgante 25 W | AA2: TOMA SIMPLE | AC2: TOMA SCHUKO | AE2: ESTACIONES DE TRABAJO | AG2: SECAMANOS | AI2: DESCRIPCIÓN | AJ2: CANT. | AK2: POTENCIA (W) | AL2: POTENCIA TOTAL (W) | AM2: FASES | AQ2: CORRIENTE (A) | AR2: TM (A)
C3: CANT. | D3: POTENCIA UNIT. (W) | E3: CANT. | F3: POTENCIA UNIT. (W) | G3: CANT. | H3: POTENCIA UNIT. (W) | I3: CANT. | J3: POTENCIA UNIT. (W) | K3: CANT. | L3: POTENCIA UNIT. (W) | M3: CANT. | N3: POTENCIA UNIT. (W) | O3: CANT. | P3: POTENCIA UNIT. (W) | Q3: CANT. | R3: POTENCIA UNIT. (W) | S3: CANT. | T3: POTENCIA UNIT. (W) | U3: CANT. | V3: POTENCIA UNIT. (W) | W3: CANT. | X3: POTENCIA UNIT. (W) | Y3: CANT. | Z3: POTENCIA UNIT. (W) | AA3: CANT. | AB3: POTENCIA UNIT. (W) | AC3: CANT. | AD3: POTENCIA UNIT. (W) | AE3: CANT. | AF3: POTENCIA UNIT. (W) | AG3: CANT. | AH3: POTENCIA UNIT. (W) | AM3: R | AN3: S | AO3: T | AP3: RST
B4: TNST.01 | AA4: 9 | AB4: 100 | AL4: =(AE4*AF4)+(AG4*AH4)+(AJ4*AK4)+(AA4*AB4)+(AC4*AD4) -> 900 | AM4: =AL4 -> 900 | AQ4: =AL4/220 -> 4 | AR4: 1x16
B5: SmNST.01 | AG5: 1 | AH5: 1800 | AL5: =(AE5*AF5)+(AG5*AH5)+(AJ5*AK5)+(AA5*AB5)+(AC5*AD5) -> 1800 | AN5: =AL5 -> 1,800 | AQ5: 8 | AR5: 1x16
B6: SmNST.02 | AG6: 1 | AH6: 1800 | AL6: 1800 | AO6: =AL6 -> 1,800 | AQ6: 8 | AR6: 1x16
B7: DENST.01 | AI7: Ducha Electrica | AJ7: 1 | AK7: 3000 | AL7: 3000 | AM7: =AL7 -> 3,000 | AQ7: 14 | AR7: 1x16
B8: DENST.02 | AI8: Ducha Electrica | AJ8: 1 | AK8: 3000 | AL8: 3000 | AN8: =AL8 -> 3,000 | AQ8: 14 | AR8: 1x16
B9: DENST.03 | AI9: Ducha Electrica | AJ9: 1 | AK9: 3000 | AL9: 3000 | AO9: =AL9 -> 3,000 | AQ9: 14 | AR9: 1x16
B10: DENST.04 | AI10: Ducha Electrica | AJ10: 1 | AK10: 3000 | AL10: 3000 | AM10: =AL10 -> 3,000 | AQ10: 14 | AR10: 1x16
B11: Rsva. | AJ11: 1 | AK11: 2000 | AL11: =(AE11*AF11)+(AG11*AH11)+(AJ11*AK11)+(AA11*AB11)+(AC11*AD11) -> 2000 | AM11: =AL11 -> 2,000 | AQ11: 9 | AR11: 1x16
B12: Rsva. | AJ12: 1 | AK12: 2000 | AL12: 2000 | AN12: =AL12 -> 2,000 | AQ12: 9 | AR12: 1x16
B13: Rsva. | AJ13: 1 | AK13: 2000 | AL13: 2000 | AO13: =AL13 -> 2,000 | AQ13: 9 | AR13: 1x16
A14: TOTAL GENERAL | AK14: Σ | AL14: =SUM(AL4:AL13) -> 22500 | AM14: =SUM(AM4:AM13) -> 8900 | AN14: =SUM(AN4:AN13) -> 6800 | AO14: =SUM(AO4:AO13) -> 6800 | AP14: =SUM(AP4:AP13) -> 0 | AQ14: =AK21 -> 32 | AR14: =AK22 -> 3x40
AI17: Potencia instalada - Σpotencia | AJ17: PI | AK17: =AL14 -> 22,500
AI18: factor de potencia - | AJ18: fp | AK18: 0.8
AI19: factor de demanda - Anexo 3 ANDE | AJ19: fd | AK19: =IF(AK17<=2700,1, IF(AK17<=3800,0.95, IF(AK17<=7200,0.9, IF(AK17<=12000,0.85, IF(AK17<=20000,0.8, IF(AK17<=30000,0.75, IF(AK17<=50000,0.7, IF(AK17<=80000,0.65, IF(AK17<=120000,0.6, IF(AK17<=170000,0.55, IF(AK17<=250000,0.5, 0.45))))))))))) -> 0.75
AI20: Potencia Demandada - Pd = PI*fd | AJ20: Pd | AK20: =AK17*AK19 -> 16,875
AI21: Corriente - Id = Pd/(√3*380*fp) | AJ21: Id | AK21: =AK20/(SQRT(3)*380*AK18) -> 32
AI22: LLave Limitadora | AJ22: TM | AK22: 3x40
AI23: Alimentador | AJ23: S | AK23: 4x10
AI24: Seccion de Conductor de Proteccion | AJ24: S_p | AK24: =_xlfn.CONCAT("1x",IF(VALUE(RIGHT(AK23, LEN(AK23) - FIND("x", AK23))) <= 16, VALUE(RIGHT(AK23, LEN(AK23) - FIND("x", AK23))), IF(AND(VALUE(RIGHT(AK23, LEN(AK23) - FIND("x", AK23))) > 16, VALUE(RIGHT(AK23, LEN(AK23) - FIND("x", AK23))) <= 35), 16, VALUE(RIGHT(AK23, LEN(AK23) - FIND("x", AK23)))/2))) -> 1x10
AI25: Corriente admisible Conductor - Iz | AJ25: Iz | AK25: 68
AI26: Longitud (m) | AJ26: L | AK26: 5
A28: CUADRO DE CARGAS ELÉCTRICAS TABLERO-TSE-ST
A29: DEPENDENCIA | B29: CTO. | C29: TIPO 1 - LED 38 W | E29: TIPO 2 - LED Est. Adosar 39 W | G29: TIPO 3 - LED Circular Embutido 25 W | I29: TIPO 4 - Spot LED CIrcular Emb. 6 W | K29: TIPO 5 - Spot Cir. Movil LED 12 W | M29: TIPO 6 - Aplique de Adosar LED 5.5 W | O29: TIPO 7 - Adosar Resina LED 6 W | Q29: TIPO 8 - LED Circular Embutido 23 W | S29: TIPO 9 - LED 50 W | U29: TIPO 10 - Proyector LED 50 W | W29: TIPO 11 - LED Embutido Uni. 1.7 W | Y29: TIPO 12 - LED Colgante 25 W | AA29: TOMA SIMPLE | AC29: TOMA SCHUKO | AE29: ESTACIONES DE TRABAJO | AG29: SECAMANOS | AI29: DESCRIPCIÓN | AJ29: CANT. | AK29: POTENCIA (W) | AL29: POTENCIA TOTAL (W) | AM29: FASES | AQ29: CORRIENTE (A) | AR29: TM (A)
C30: CANT. | D30: POTENCIA UNIT. (W) | E30: CANT. | F30: POTENCIA UNIT. (W) | G30: CANT. | H30: POTENCIA UNIT. (W) | I30: CANT. | J30: POTENCIA UNIT. (W) | K30: CANT. | L30: POTENCIA UNIT. (W) | M30: CANT. | N30: POTENCIA UNIT. (W) | O30: CANT. | P30: POTENCIA UNIT. (W) | Q30: CANT. | R30: POTENCIA UNIT. (W) | S30: CANT. | T30: POTENCIA UNIT. (W) | U30: CANT. | V30: POTENCIA UNIT. (W) | W30: CANT. | X30: POTENCIA UNIT. (W) | Y30: CANT. | Z30: POTENCIA UNIT. (W) | AA30: CANT. | AB30: POTENCIA UNIT. (W) | AC30: CANT. | AD30: POTENCIA UNIT. (W) | AE30: CANT. | AF30: POTENCIA UNIT. (W) | AG30: CANT. | AH30: POTENCIA UNIT. (W) | AM30: R | AN30: S | AO30: T | AP30: RST
B31: IEST.01 | E31: 9 | F31: 39 | AL31: =(C31*D31)+(E31*F31)+(G31*H31)+(I31*J31)+(K31*L31)+(M31*N31)+(O31*P31)+(Q31*R31)+(S31*T31)+(U31*V31)+(W31*X31)+(Y31*Z31)+(AA31*AB31)+(AC31*AD31)+(AE31*AF31)+(AG31*AH31)+(AJ31*AK31) -> 351 | AM31: =AL31 -> 351 | AQ31: =AL31/220 -> 2 | AR31: 1x10
B32: IEST.02 | E32: 8 | F32: 39 | G32: 6 | H32: 25 | I32: 4 | J32: 6 | AL32: 486 | AN32: =AL32 -> 486 | AQ32: 2 | AR32: 1x10
B33: IEST.03 | S33: 5 | T33: 50 | AL33: 250 | AO33: =AL33 -> 250 | AQ33: 1 | AR33: 1x10
B34: TEST,01 | AE34: 3 | AF34: 250 | AL34: 750 | AO34: =AL34 -> 750 | AQ34: 3 | AR34: 1x16
B35: Rsva. | AJ35: 1 | AK35: 2000 | AL35: 2000 | AM35: =AL35 -> 2,000 | AQ35: 9 | AR35: 1x16
B36: Rsva. | AJ36: 1 | AK36: 2000 | AL36: 2000 | AN36: =AL36 -> 2,000 | AQ36: 9 | AR36: 1x16
B37: Rsva. | AJ37: 1 | AK37: 2000 | AL37: 2000 | AO37: =AL37 -> 2,000 | AQ37: 9 | AR37: 1x16
A38: TOTAL GENERAL | AK38: Σ | AL38: =SUM(AL31:AL37) -> 7837 | AM38: =SUM(AM31:AM37) -> 2351 | AN38: 2486 | AO38: 3000 | AP38: 0 | AQ38: =AK45 -> 15 | AR38: =AK46 -> 3x25
AI41: Potencia instalada - Σpotencia | AJ41: PI | AK41: =AL38 -> 7,837
AI42: factor de potencia - | AJ42: fp | AK42: 0.8
AI43: factor de demanda - Anexo 3 ANDE | AJ43: fd | AK43: 1
AI44: Potencia Demandada - Pd = PI*fd | AJ44: Pd | AK44: =AK41*AK43 -> 7,837
AI45: Corriente - Id = Pd/(√3*380*fp) | AJ45: Id | AK45: =AK44/(SQRT(3)*380*AK42) -> 15
AI46: LLave Limitadora | AJ46: TM | AK46: 3x25
AI47: Alimentador | AJ47: S | AK47: 4x4
AI48: Seccion de Conductor de Proteccion | AJ48: S_p | AK48: =_xlfn.CONCAT("1x",IF(VALUE(RIGHT(AK47, LEN(AK47) - FIND("x", AK47))) <= 16, VALUE(RIGHT(AK47, LEN(AK47) - FIND("x", AK47))), IF(AND(VALUE(RIGHT(AK47, LEN(AK47) - FIND("x", AK47))) > 16, VALUE(RIGHT(AK47, LEN(AK47) - FIND("x", AK47))) <= 35), 16, VALUE(RIGHT(AK47, LEN(AK47) - FIND("x", AK47)))/2))) -> 1x4
AI49: Corriente admisible Conductor - Iz | AJ49: Iz | AK49: 42
AI50: Longitud (m) | AJ50: L | AK50: 5

Sheet TPE-TPN-TORRE
A1: CUADRO DE CARGAS ELÉCTRICAS TABLERO-TPN-TORRE
A2: DEPENDENCIA | B2: CTO. | C2: DESCRIPCIÓN | D2: CANT. | E2: POTENCIA (W) | F2: POTENCIA TOTAL (W) | G2: FASES | K2: CORRIENTE (A) | L2: TM (A)
G3: R | H3: S | I3: T | J3: RST
B4: TSN-PB | C4: =_xlfn.CONCAT("Tablero Seccional -",B4) -> Tablero Seccional -TSN-PB | D4: 1 | E4: ='TSE-TSN-PB'!AL93 -> 153330 | F4: =+(D4*E4) -> 153330 | G4: ='TSE-TSN-PB'!AM93 -> 48,770 | H4: ='TSE-TSN-PB'!AN93 -> 57,200 | I4: ='TSE-TSN-PB'!AO93 -> 47,360 | J4: ='TSE-TSN-PB'!AP93 -> 0 | K4: ='TSE-TSN-PB'!AQ93 -> 175 | L4: ='TSE-TSN-PB'!AR93 -> 3x200
B5: TSN-1P | C5: =_xlfn.CONCAT("Tablero Seccional -",B5) -> Tablero Seccional -TSN-1P | D5: 1 | E5: ='TSE-TSN-1P'!AL81 -> 130320 | F5: =+(D5*E5) -> 130320 | G5: ='TSE-TSN-1P'!AM81 -> 43,100 | H5: ='TSE-TSN-1P'!AN81 -> 43,020 | I5: ='TSE-TSN-1P'!AO81 -> 44,200 | J5: ='TSE-TSN-1P'!AP81 -> 0 | K5: ='TSE-TSN-1P'!AQ81 -> 136 | L5: ='TSE-TSN-1P'!AR81 -> 3x150
B6: TSN-2P | C6: Tablero Seccional -TSN-2P | D6: 1 | E6: ='TSE-TSN-2P'!AL82 -> 118390 | F6: 118390 | G6: ='TSE-TSN-2P'!AM82 -> 39,430 | H6: ='TSE-TSN-2P'!AN82 -> 39,750 | I6: ='TSE-TSN-2P'!AO82 -> 39,210 | J6: ='TSE-TSN-2P'!AP82 -> 0 | K6: ='TSE-TSN-2P'!AQ82 -> 135 | L6: ='TSE-TSN-2P'!AR82 -> 3x150
B7: TSN-3P | C7: Tablero Seccional -TSN-3P | D7: 1 | E7: ='TSE-TSN-3P'!AL70 -> 106990 | F7: 106990 | G7: ='TSE-TSN-3P'!AM70 -> 35,180 | H7: ='TSE-TSN-3P'!AN70 -> 35,780 | I7: ='TSE-TSN-3P'!AO70 -> 36,030 | J7: ='TSE-TSN-3P'!AP70 -> 0 | K7: ='TSE-TSN-3P'!AQ70 -> 122 | L7: ='TSE-TSN-3P'!AR70 -> 3x150
B8: TSN-AZ | C8: Tablero Seccional -TSN-AZ | D8: 1 | E8: ='TSE-TSN-AZ'!AL29 -> 41880 | F8: 41880 | G8: ='TSE-TSN-AZ'!AM29 -> 12,930 | H8: ='TSE-TSN-AZ'!AN29 -> 15,250 | I8: ='TSE-TSN-AZ'!AO29 -> 13,700 | J8: ='TSE-TSN-AZ'!AP29 -> 0 | K8: ='TSE-TSN-AZ'!AQ29 -> 56 | L8: ='TSE-TSN-AZ'!AR29 -> 3x63
B9: Rsva. | C9: Reserva | D9: 1 | E9: 2000 | F9: 2000 | G9: =F9 -> 2,000 | K9: =F9/220 -> 9 | L9: 1x16
B10: Rsva. | C10: Reserva | D10: 1 | E10: 2000 | F10: 2000 | H10: =F10 -> 2,000 | K10: =F10/220 -> 9 | L10: 1x16
B11: Rsva. | C11: Reserva | D11: 1 | E11: 2000 | F11: 2000 | I11: =F11 -> 2,000 | K11: 9 | L11: 1x16
A12: TOTAL GENERAL | E12: Σ | F12: =SUM(F4:F11) -> 556910 | G12: =SUM(G4:G11) -> 181410 | H12: =SUM(H4:H11) -> 193000 | I12: =SUM(I4:I11) -> 182500 | J12: =SUM(J4:J11) -> 0 | K12: =E19 -> 740 | L12: =E20 -> 3x800
C15: Potencia instalada - Σpotencia | D15: PI | E15: =F12 -> 556,910
C16: factor de potencia - | D16: fp | E16: 0.8
C17: factor de demanda - Anexo 3 ANDE | D17: fd | E17: 0.7
C18: Potencia Demandada - Pd = PI*fd | D18: Pd | E18: =E15*E17 -> 389,837
C19: Corriente - Id = Pd/(√3*380*fp) | D19: Id | E19: =E18/(SQRT(3)*380*E16) -> 740
C20: LLave Limitadora | D20: TM | E20: 3x800
C21: Alimentador | D21: S | E21: 3x4x(1x185)
C22: Seccion de Conductor de Proteccion | D22: S_p | E22: 1x50
C23: Corriente admisible Conductor - Iz | D23: Iz | E23: =344*3 -> 1032
C24: Longitud (m) | D24: L | E24: 40
A26: CUADRO DE CARGAS ELÉCTRICAS TABLERO-TPE-TORRE
A27: DEPENDENCIA | B27: CTO. | C27: DESCRIPCIÓN | D27: CANT. | E27: POTENCIA (W) | F27: POTENCIA TOTAL (W) | G27: FASES | K27: CORRIENTE (A) | L27: TM (A)
G28: R | H28: S | I28: T | J28: RST
B29: TSE-PB | C29: =_xlfn.CONCAT("Tablero Seccional -",B29) -> Tablero Seccional -TSE-PB | D29: 1 | E29: ='TSE-TSN-PB'!AL162 -> 41840 | F29: =+(D29*E29) -> 41840 | G29: ='TSE-TSN-PB'!AM162 -> 13,715 | H29: ='TSE-TSN-PB'!AN162 -> 13,952 | I29: ='TSE-TSN-PB'!AO162 -> 14,173 | J29: ='TSE-TSN-PB'!AP162 -> 0 | K29: ='TSE-TSN-PB'!AQ162 -> 79 | L29: ='TSE-TSN-PB'!AR162 -> 3x100
B30: TSE-1P | C30: =_xlfn.CONCAT("Tablero Seccional -",B30) -> Tablero Seccional -TSE-1P | D30: 1 | E30: ='TSE-TSN-1P'!AL140 -> 43262 | F30: 43262 | G30: ='TSE-TSN-1P'!AM140 -> 14,821 | H30: ='TSE-TSN-1P'!AN140 -> 14,343 | I30: ='TSE-TSN-1P'!AO140 -> 14,098 | J30: ='TSE-TSN-1P'!AP140 -> 0 | K30: ='TSE-TSN-1P'!AQ140 -> 82 | L30: ='TSE-TSN-1P'!AR140 -> 3x100
B31: TSE-2P | C31: Tablero Seccional -TSE-2P | D31: 1 | E31: ='TSE-TSN-2P'!AL147 -> 49752 | F31: 49752 | G31: ='TSE-TSN-2P'!AM147 -> 16,536 | H31: ='TSE-TSN-2P'!AN147 -> 16,261 | I31: ='TSE-TSN-2P'!AO147 -> 16,955 | J31: ='TSE-TSN-2P'!AP147 -> 4,500 | K31: ='TSE-TSN-2P'!AQ147 -> 94 | L31: ='TSE-TSN-2P'!AR147 -> 3x100
B32: TSE-3P | C32: Tablero Seccional -TSE-3P | D32: 1 | E32: ='TSE-TSN-3P'!AL121 -> 31500 | F32: 31500 | G32: ='TSE-TSN-3P'!AM121 -> 10,425 | H32: ='TSE-TSN-3P'!AN121 -> 10,249 | I32: ='TSE-TSN-3P'!AO121 -> 10,826 | J32: ='TSE-TSN-3P'!AP121 -> 0 | K32: ='TSE-TSN-3P'!AQ121 -> 60 | L32: ='TSE-TSN-3P'!AR121 -> 3x63
B33: TSE-AZ | C33: Tablero Seccional -TSE-AZ | D33: 1 | E33: ='TSE-TSN-AZ'!AL69 -> 36560 | F33: 36560 | G33: ='TSE-TSN-AZ'!AM69 -> 12,400 | H33: ='TSE-TSN-AZ'!AN69 -> 12,280 | I33: ='TSE-TSN-AZ'!AO69 -> 11,880 | J33: ='TSE-TSN-AZ'!AP69 -> 18,000 | K33: ='TSE-TSN-AZ'!AQ69 -> 69 | L33: ='TSE-TSN-AZ'!AR69 -> 3x100
B34: Rsva. | C34: Reserva | D34: 1 | E34: 2000 | F34: 2000 | G34: =F34 -> 2,000 | K34: =F34/220 -> 9 | L34: 1x16
B35: Rsva. | C35: Reserva | D35: 1 | E35: 2000 | F35: 2000 | H35: =F35 -> 2,000 | K35: =F35/220 -> 9 | L35: 1x16
B36: Rsva. | C36: Reserva | D36: 1 | E36: 2000 | F36: 2000 | I36: =F36 -> 2,000 | K36: 9 | L36: 1x16
A37: TOTAL GENERAL | E37: Σ | F37: =SUM(F29:F36) -> 208914 | G37: =SUM(G29:G36) -> 69897 | H37: =SUM(H29:H36) -> 69085 | I37: =SUM(I29:I36) -> 69932 | J37: =SUM(J29:J36) -> 22500 | K37: =E44 -> 397 | L37: =E45 -> 3x500
C40: Potencia instalada - Σpotencia | D40: PI | E40: =F37 -> 208,914
C41: factor de potencia - | D41: fp | E41: 0.8
C42: factor de demanda - Anexo 3 ANDE | D42: fd | E42: 1
C43: Potencia Demandada - Pd = PI*fd | D43: Pd | E43: =E40*E42 -> 208,914
C44: Corriente - Id = Pd/(√3*380*fp) | D44: Id | E44: =E43/(SQRT(3)*380*E41) -> 397
C45: LLave Limitadora | D45: TM | E45: 3x500
C46: Alimentador | D46: S | E46: 2x4x(1x150)
C47: Seccion de Conductor de Proteccion | D47: S_p | E47: 1x50
C48: Corriente admisible Conductor - Iz | D48: Iz | E48: =307*2 -> 614
C49: Longitud (m) | D49: L | E49: 40

Sheet TSE-TSN-PB
A1: CUADRO DE CARGAS ELÉCTRICAS TABLERO-TSN-2P
A2: DEPENDENCIA | B2: CTO. | C2: TIPO 1 - LED 38 W | E2: TIPO 2 - LED Est. Adosar 39 W | G2: TIPO 3 - LED Circular Embutido 25 W | I2: TIPO 4 - Spot LED CIrcular Emb. 6 W | K2: TIPO 5 - Spot Cir. Movil LED 12 W | M2: TIPO 6 - Aplique de Adosar LED 5.5 W | O2: TIPO 7 - Adosar Resina LED 6 W | Q2: TIPO 8 - LED Circular Embutido 23 W | S2: TIPO 9 - LED Colgante 35 W | U2: TIPO 10 - Proyector LED 50 W | W2: TIPO 11 - LED Embutido Uni. 1.7 W | Y2: TIPO 12 - LED Colgante 25 W | AA2: TOMA SIMPLE | AC2: TOMA SCHUKO | AE2: ESTACIONES DE TRABAJO | AG2: SECAMANOS | AI2: DESCRIPCIÓN | AJ2: CANT. | AK2: POTENCIA (W) | AL2: POTENCIA TOTAL (W) | AM2: FASES | AQ2: CORRIENTE (A) | AR2: TM (A)
C3: CANT. | D3: POTENCIA UNIT. (W) | E3: CANT. | F3: POTENCIA UNIT. (W) | G3: CANT. | H3: POTENCIA UNIT. (W) | I3: CANT. | J3: POTENCIA UNIT. (W) | K3: CANT. | L3: POTENCIA UNIT. (W) | M3: CANT. | N3: POTENCIA UNIT. (W) | O3: CANT. | P3: POTENCIA UNIT. (W) | Q3: CANT. | R3: POTENCIA UNIT. (W) | S3: CANT. | T3: POTENCIA UNIT. (W) | U3: CANT. | V3: POTENCIA UNIT. (W) | W3: CANT. | X3: POTENCIA UNIT. (W) | Y3: CANT. | Z3: POTENCIA UNIT. (W) | AA3: CANT. | AB3: POTENCIA UNIT. (W) | AC3: CANT. | AD3: POTENCIA UNIT. (W) | AE3: CANT. | AF3: POTENCIA UNIT. (W) | AG3: CANT. | AH3: POTENCIA UNIT. (W) | AM3: R | AN3: S | AO3: T | AP3: RST
B4: TNPB.01 | AE4: 5 | AF4: 250 | AL4: =(AE4*AF4)+(AG4*AH4)+(AJ4*AK4)+(AA4*AB4)+(AC4*AD4) -> 1250 | AM4: =AL4 -> 1,250 | AQ4: =AL4/220 -> 6 | AR4: 1x16
B5: TNPB.02 | AE5: 5 | AF5: 250 | AL5: =(AE5*AF5)+(AG5*AH5)+(AJ5*AK5)+(AA5*AB5)+(AC5*AD5) -> 1250 | AN5: =AL5 -> 1,250 | AQ5: 6 | AR5: 1x16
B6: TNPB.03 | AE6: 6 | AF6: 250 | AL6: 1500 | AO6: =AL6 -> 1,500 | AQ6: 7 | AR6: 1x16
B7: TNPB.04 | AE7: 3 | AF7: 250 | AL7: 750 | AM7: =AL7 -> 750 | AQ7: 3 | AR7: 1x16
B8: TNPB.05 | AE8: 3 | AF8: 250 | AL8: 750 | AN8: =AL8 -> 750 | AQ8: 3 | AR8: 1x16
B9: TNPB.06 | AE9: 3 | AF9: 250 | AL9: 750 | AO9: =AL9 -> 750 | AQ9: 3 | AR9: 1x16
B10: TNPB.07 | AE10: 3 | AF10: 250 | AL10: 750 | AM10: =AL10 -> 750 | AQ10: 3 | AR10: 1x16
B11: TNPB.08 | AE11: 3 | AF11: 250 | AL11: 750 | AN11: =AL11 -> 750 | AQ11: 3 | AR11: 1x16
B12: TNPB.09 | AE12: 1 | AF12: 250 | AL12: 250 | AO12: =AL12 -> 250 | AQ12: 1 | AR12: 1x16
B13: TNPB.10 | AE13: 6 | AF13: 250 | AL13: 1500 | AO13: =AL13 -> 1,500 | AQ13: 7 | AR13: 1x16
B14: TNPB.11 | AE14: 3 | AF14: 250 | AL14: 750 | AM14: =AL14 -> 750 | AQ14: 3 | AR14: 1x16
B15: TNPB.12 | AE15: 2 | AF15: 250 | AL15: 500 | AN15: =AL15 -> 500 | AQ15: 2 | AR15: 1x16
B16: TNPB.13 | AE16: 3 | AF16: 250 | AL16: 750 | AN16: =AL16 -> 750 | AQ16: 3 | AR16: 1x16
B17: TNPB.14 | AE17: 5 | AF17: 250 | AL17: 1250 | AM17: =AL17 -> 1,250 | AQ17: 6 | AR17: 1x16
B18: TNPB.15 | AE18: 6 | AF18: 250 | AL18: 1500 | AN18: =AL18 -> 1,500 | AQ18: 7 | AR18: 1x16
B19: TNPB.16 | AE19: 1 | AF19: 250 | AL19: 250 | AO19: =AL19 -> 250 | AQ19: 1 | AR19: 1x16
B20: TNPB.17 | AA20: 5 | AB20: 100 | AL20: 500 | AO20: =AL20 -> 500 | AQ20: 2 | AR20: 1x16
B21: TNPB.18 | AA21: 4 | AB21: 100 | AL21: 400 | AM21: =AL21 -> 400 | AQ21: 2 | AR21: 1x16
B22: TNPB.19 | AA22: 3 | AB22: 100 | AL22: 300 | AO22: =AL22 -> 300 | AQ22: 1 | AR22: 1x16
B23: TNPB.20 | AA23: 3 | AB23: 100 | AL23: 300 | AO23: =AL23 -> 300 | AQ23: 1 | AR23: 1x16
B24: TNPB.21 | AA24: 4 | AB24: 100 | AL24: 400 | AM24: =AL24 -> 400 | AQ24: 2 | AR24: 1x16
B25: TNPB.22 | AA25: 2 | AB25: 100 | AL25: 200 | AO25: =AL25 -> 200 | AQ25: 1 | AR25: 1x16
B26: TNPB.23 | AA26: 2 | AB26: 100 | AL26: 200 | AN26: =AL26 -> 200 | AQ26: 1 | AR26: 1x16
B27: TNPB.24 | AA27: 8 | AB27: 100 | AL27: 800 | AM27: =AL27 -> 800 | AQ27: 4 | AR27: 1x16
B28: TNPB.25 | AA28: 5 | AB28: 100 | AL28: 500 | AO28: =AL28 -> 500 | AQ28: 2 | AR28: 1x16
B29: TNPB.26 | AA29: 2 | AB29: 100 | AL29: 200 | AN29: =AL29 -> 200 | AQ29: 1 | AR29: 1x16
B30: TNPB.27 | AA30: 2 | AB30: 100 | AL30: 200 | AN30: =AL30 -> 200 | AQ30: 1 | AR30: 1x16
B31: TNPB.28 | AA31: 5 | AB31: 100 | AL31: 500 | AO31: =AL31 -> 500 | AQ31: 2 | AR31: 1x16
B32: TNPB.29 | AI32: Toma Datacenter | AJ32: 1 | AK32: 2500 | AL32: =(AE32*AF32)+(AG32*AH32)+(AJ32*AK32)+(AA32*AB32)+(AC32*AD32) -> 2500 | AN32: =AL32 -> 2,500 | AQ32: =AL32/220 -> 11 | AR32: 1x16
B33: TSPB.01 | AC33: 1 | AD33: 1000 | AL33: 1000 | AN33: =AL33 -> 1,000 | AQ33: 5 | AR33: 1x16
B34: TSPB.02 | AC34: 1 | AD34: 1000 | AL34: 1000 | AM34: =AL34 -> 1,000 | AQ34: 5 | AR34: 1x16
B35: TSPB.03 | AC35: 1 | AD35: 1000 | AL35: 1000 | AO35: =AL35 -> 1,000 | AQ35: 5 | AR35: 1x16
B36: SMPB.01 | AG36: 1 | AH36: 1800 | AL36: 1800 | AN36: =AL36 -> 1,800 | AQ36: 8 | AR36: 1x16
B37: SMPB.02 | AG37: 1 | AH37: 1800 | AL37: 1800 | AM37: =AL37 -> 1,800 | AQ37: =AL37/220 -> 8 | AR37: 1x16
B38: SMPB.03 | AG38: 1 | AH38: 1800 | AL38: 1800 | AO38: =AL38 -> 1,800 | AQ38: 8 | AR38: 1x16
B39: SMPB.04 | AG39: 1 | AH39: 1800 | AL39: 1800 | AN39: =AL39 -> 1,800 | AQ39: 8 | AR39: 1x16
B40: SMPB.05 | AG40: 1 | AH40: 1800 | AL40: 1800 | AM40: =AL40 -> 1,800 | AQ40: 8 | AR40: 1x16
B41: SMPB.06 | AG41: 1 | AH41: 1800 | AL41: 1800 | AO41: =AL41 -> 1,800 | AQ41: 8 | AR41: 1x16
B42: SMPB.07 | AG42: 1 | AH42: 1800 | AL42: 1800 | AN42: =AL42 -> 1,800 | AQ42: 8 | AR42: 1x16
B43: PEPB.01 | AI43: Toma Porton Electrico | AJ43: 2 | AK43: 100 | AL43: 200 | AM43: =AL43 -> 200 | AQ43: 1 | AR43: 1x16
B44: PEPB.02 | AI44: Toma Porton Electrico | AJ44: 1 | AK44: 100 | AL44: 100 | AM44: =AL44 -> 100 | AQ44: 0 | AR44: 1x16
B45: RACK.01 | AI45: Toma Rack | AJ45: 1 | AK45: 2500 | AL45: 2500 | AO45: =AL45 -> 2,500 | AQ45: 11 | AR45: 1x16
B46: RACK.02 | AI46: Toma Rack | AJ46: 1 | AK46: 2500 | AL46: 2500 | AM46: =AL46 -> 2,500 | AQ46: 11 | AR46: 1x16
B47: RACK.03 | AI47: Toma Rack | AJ47: 1 | AK47: 2500 | AL47: 2500 | AO47: =AL47 -> 2,500 | AQ47: 11 | AR47: 1x16
B48: RACK.04 | AI48: Toma Rack | AJ48: 1 | AK48: 2500 | AL48: 2500 | AM48: =AL48 -> 2,500 | AQ48: 11 | AR48: 1x16
B49: RACK.05 | AI49: Toma Rack | AJ49: 1 | AK49: 2500 | AL49: =(AE49*AF49)+(AG49*AH49)+(AJ49*AK49)+(AA49*AB49)+(AC49*AD49) -> 2500 | AM49: =AL49 -> 2,500 | AQ49: =AL49/220 -> 11 | AR49: 1x16
B50: DEPB.01 | AI50: Ducha Electrica | AJ50: 1 | AK50: 3000 | AL50: 3000 | AN50: =AL50 -> 3,000 | AQ50: 14 | AR50: 1x16
B51: FCPB.01 | AI51: Fancoil | AJ51: 1 | AK51: 1500 | AL51: 1500 | AO51: =AL51 -> 1,500 | AQ51: 7 | AR51: 1x16
B52: RDCPB.02 | AI52: Recuperador | AJ52: 1 | AK52: 520 | AL52: 520 | AM52: =AL52 -> 520 | AQ52: 2 | AR52: 1x16
B53: FCPB.03 | AI53: Fancoil | AJ53: 1 | AK53: 1500 | AL53: 1500 | AO53: =AL53 -> 1,500 | AQ53: 7 | AR53: 1x16
B54: FCPB.04 | AI54: Fancoil | AJ54: 1 | AK54: 3500 | AL54: 3500 | AM54: =AL54 -> 3,500 | AQ54: 16 | AR54: 1x25
B55: FCPB.05 | AI55: Fancoil | AJ55: 1 | AK55: 1500 | AL55: 1500 | AN55: =AL55 -> 1,500 | AQ55: 7 | AR55: 1x16
B56: FCPB.06 | AI56: Fancoil | AJ56: 1 | AK56: 3500 | AL56: 3500 | AO56: =AL56 -> 3,500 | AQ56: 16 | AR56: 1x25
B57: FCPB.07 | AI57: Fancoil | AJ57: 1 | AK57: 3900 | AL57: 3900 | AM57: =AL57 -> 3,900 | AQ57: 18 | AR57: 1x25
B58: FCPB.08 | AI58: Fancoil | AJ58: 1 | AK58: 3900 | AL58: 3900 | AN58: =AL58 -> 3,900 | AQ58: 18 | AR58: 1x25
B59: FCPB.09 | AI59: Fancoil | AJ59: 1 | AK59: 1500 | AL59: 1500 | AO59: =AL59 -> 1,500 | AQ59: 7 | AR59: 1x16
B60: FCPB.10 | AI60: Fancoil | AJ60: 1 | AK60: 1500 | AL60: 1500 | AM60: =AL60 -> 1,500 | AQ60: 7 | AR60: 1x16
B61: FCPB.11 | AI61: Fancoil | AJ61: 1 | AK61: 3900 | AL61: 3900 | AN61: =AL61 -> 3,900 | AQ61: 18 | AR61: 1x25
B62: FCPB.12 | AI62: Fancoil | AJ62: 1 | AK62: 1500 | AL62: 1500 | AO62: =AL62 -> 1,500 | AQ62: 7 | AR62: 1x16
B63: RDCPB.13 | AI63: Recuperador | AJ63: 1 | AK63: 520 | AL63: 520 | AM63: =AL63 -> 520 | AQ63: 2 | AR63: 1x16
B64: FCPB.14 | AI64: Fancoil | AJ64: 1 | AK64: 3900 | AL64: 3900 | AN64: =AL64 -> 3,900 | AQ64: 18 | AR64: 1x25
B65: RDCPB.15 | AI65: Recuperador | AJ65: 1 | AK65: 1080 | AL65: 1080 | AO65: =AL65 -> 1,080 | AQ65: 5 | AR65: 1x16
B66: FCPB.16 | AI66: Fancoil | AJ66: 1 | AK66: 4200 | AL66: 4200 | AM66: =AL66 -> 4,200 | AQ66: 19 | AR66: 1x25
B67: FCPB.17 | AI67: Fancoil | AJ67: 1 | AK67: 4200 | AL67: 4200 | AN67: =AL67 -> 4,200 | AQ67: 19 | AR67: 1x25
B68: FCPB.18 | AI68: Fancoil | AJ68: 1 | AK68: 4200 | AL68: 4200 | AO68: =AL68 -> 4,200 | AQ68: 19 | AR68: 1x25
B69: FCPB.19 | AI69: Fancoil | AJ69: 1 | AK69: 4200 | AL69: 4200 | AM69: =AL69 -> 4,200 | AQ69: 19 | AR69: 1x25
B70: RDCPB.20 | AI70: Recuperador | AJ70: 1 | AK70: 1080 | AL70: 1080 | AN70: =AL70 -> 1,080 | AQ70: =AL70/220 -> 5 | AR70: 1x16
B71: FCPB.21 | AI71: Fancoil | AJ71: 1 | AK71: 1500 | AL71: =(AE71*AF71)+(AG71*AH71)+(AJ71*AK71)+(AA71*AB71)+(AC71*AD71) -> 1500 | AO71: =AL71 -> 1,500 | AQ71: 7 | AR71: 1x16
B72: FCPB.22 | AI72: Fancoil | AJ72: 1 | AK72: 1700 | AL72: 1700 | AM72: =AL72 -> 1,700 | AQ72: 8 | AR72: 1x16
B73: FCPB.23 | AI73: Fancoil | AJ73: 1 | AK73: 3900 | AL73: 3900 | AN73: =AL73 -> 3,900 | AQ73: 18 | AR73: 1x25
B74: FCPB.24 | AI74: Fancoil | AJ74: 1 | AK74: 1500 | AL74: 1500 | AO74: =AL74 -> 1,500 | AQ74: 7 | AR74: 1x16
B75: FCPB.25 | AI75: Fancoil | AJ75: 1 | AK75: 1500 | AL75: =(AE75*AF75)+(AG75*AH75)+(AJ75*AK75)+(AA75*AB75)+(AC75*AD75) -> 1500 | AM75: =AL75 -> 1,500 | AQ75: =AL75/220 -> 7 | AR75: 1x16
B76: FCPB.26 | AI76: Fancoil | AJ76: 1 | AK76: 3500 | AL76: 3500 | AN76: =AL76 -> 3,500 | AQ76: 16 | AR76: 1x25
B77: RDCPB.27 | AI77: Recuperador | AJ77: 1 | AK77: 1080 | AL77: 1080 | AO77: =AL77 -> 1,080 | AQ77: 5 | AR77: 1x16
B78: FCPB.28 | AI78: Fancoil | AJ78: 1 | AK78: 1500 | AL78: 1500 | AM78: =AL78 -> 1,500 | AQ78: 7 | AR78: 1x16
B79: FCPB.29 | AI79: Fancoil | AJ79: 1 | AK79: 3900 | AL79: 3900 | AN79: =AL79 -> 3,900 | AQ79: 18 | AR79: 1x25
B80: FCPB.30 | AI80: Fancoil | AJ80: 1 | AK80: 3900 | AL80: 3900 | AO80: =AL80 -> 3,900 | AQ80: 18 | AR80: 1x25
B81: RDCPB.31 | AI81: Recuperador | AJ81: 1 | AK81: 1080 | AL81: 1080 | AM81: =AL81 -> 1,080 | AQ81: 5 | AR81: 1x16
B82: FCPB.32 | AI82: Fancoil | AJ82: 1 | AK82: 1500 | AL82: 1500 | AN82: =AL82 -> 1,500 | AQ82: 7 | AR82: 1x16
B83: FCPB.33 | AI83: Fancoil | AJ83: 1 | AK83: 1500 | AL83: 1500 | AO83: =AL83 -> 1,500 | AQ83: 7 | AR83: 1x16
B84: FCPB.34 | AI84: Fancoil | AJ84: 1 | AK84: 3900 | AL84: 3900 | AM84: =AL84 -> 3,900 | AQ84: 18 | AR84: 1x25
B85: FCPB.35 | AI85: Fancoil | AJ85: 1 | AK85: 3900 | AL85: 3900 | AN85: =AL85 -> 3,900 | AQ85: 18 | AR85: 1x25
B86: FCPB.36 | AI86: Fancoil | AJ86: 1 | AK86: 4200 | AL86: 4200 | AO86: =AL86 -> 4,200 | AQ86: 19 | AR86: 1x25
B87: AAPB.37 | AI87: AA. 12000BTU | AJ87: 1 | AK87: 1500 | AL87: 1500 | AN87: =AL87 -> 1,500 | AQ87: 7 | AR87: 1x16
B88: MOT.01 | AI88: Motor porton Eelctrico | AJ88: 1 | AK88: 520 | AL88: 520 | AN88: =AL88 -> 520 | AQ88: 2 | AR88: 1x16
B89: MOT.02 | AI89: Motor porton Eelctrico | AJ89: 1 | AK89: 750 | AL89: 750 | AO89: =AL89 -> 750 | AQ89: 3 | AR89: 1x16
B90: Rsva. | AI90: Reserva | AJ90: 1 | AK90: 2000 | AL90: 2000 | AN90: =AL90 -> 2,000 | AQ90: 9 | AR90: 1x16
B91: Rsva. | AI91: Reserva | AJ91: 1 | AK91: 2000 | AL91: 2000 | AM91: =AL91 -> 2,000 | AQ91: 9 | AR91: 1x16
B92: Rsva. | AI92: Reserva | AJ92: 1 | AK92: 2000 | AL92: 2000 | AO92: =AL92 -> 2,000 | AQ92: 9 | AR92: 1x16
A93: TOTAL GENERAL | AK93: Σ | AL93: =SUM(AL4:AL92) -> 153330 | AM93: =SUM(AM4:AM92) -> 48770 | AN93: =SUM(AN4:AN92) -> 57200 | AO93: =SUM(AO4:AO92) -> 47360 | AP93: =SUM(AP4:AP92) -> 0 | AQ93: =AK100 -> 175 | AR93: =AK101 -> 3x200
AI96: Potencia instalada - Σpotencia | AJ96: PI | AK96: =AL93 -> 153,330
AI97: factor de potencia - | AJ97: fp | AK97: 0.8
AI98: factor de demanda - Anexo 3 ANDE | AJ98: fd | AK98: 0.6
AI99: Potencia Demandada - Pd = PI*fd | AJ99: Pd | AK99: =AK96*AK98 -> 91,998
AI100: Corriente - Id = Pd/(√3*380*fp) | AJ100: Id | AK100: =AK99/(SQRT(3)*380*AK97) -> 175
AI101: LLave Limitadora | AJ101: TM | AK101: 3x200
AI102: Alimentador | AJ102: S | AK102: 4x70
AI103: Seccion de Conductor de Proteccion | AJ103: S_p | AK103: =_xlfn.CONCAT("1x",IF(VALUE(RIGHT(AK102, LEN(AK102) - FIND("x", AK102))) <= 16, VALUE(RIGHT(AK102, LEN(AK102) - FIND("x", AK102))), IF(AND(VALUE(RIGHT(AK102, LEN(AK102) - FIND("x", AK102))) > 16, VALUE(RIGHT(AK102, LEN(AK102) - FIND("x", AK102))) <= 35), 16, VALUE(RIGHT(AK102, LEN(AK102) - FIND("x", AK102)))/2))) -> 1x35
AI104: Corriente admisible Conductor - Iz | AJ104: Iz | AK104: 254
AI105: Longitud (m) | AJ105: L | AK105: 5
A107: CUADRO DE CARGAS ELÉCTRICAS TABLERO-TSE-2P
A108: DEPENDENCIA | B108: CTO. | C108: TIPO 1 - LED 38 W | E108: TIPO 2 - LED Est. Adosar 39 W | G108: TIPO 3 - LED Circular Embutido 25 W | I108: TIPO 4 - Spot LED CIrcular Emb. 6 W | K108: TIPO 5 - Spot Cir. Movil LED 12 W | M108: TIPO 6 - Aplique de Adosar LED 5.5 W | O108: TIPO 7 - Adosar Resina LED 6 W | Q108: TIPO 8 - LED Circular Embutido 23 W | S108: TIPO 9 - LED Colgante 35 W | U108: TIPO 10 - Proyector LED 50 W | W108: TIPO 11 - LED Embutido Uni. 1.7 W | Y108: TIPO 12 - LED Colgante 25 W | AA108: TOMA SIMPLE | AC108: TOMA SCHUKO | AE108: ESTACIONES DE TRABAJO | AG108: SECAMANOS | AI108: DESCRIPCIÓN | AJ108: CANT. | AK108: POTENCIA (W) | AL108: POTENCIA TOTAL (W) | AM108: FASES | AQ108: CORRIENTE (A) | AR108: TM (A)
C109: CANT. | D109: POTENCIA UNIT. (W) | E109: CANT. | F109: POTENCIA UNIT. (W) | G109: CANT. | H109: POTENCIA UNIT. (W) | I109: CANT. | J109: POTENCIA UNIT. (W) | K109: CANT. | L109: POTENCIA UNIT. (W) | M109: CANT. | N109: POTENCIA UNIT. (W) | O109: CANT. | P109: POTENCIA UNIT. (W) | Q109: CANT. | R109: POTENCIA UNIT. (W) | S109: CANT. | T109: POTENCIA UNIT. (W) | U109: CANT. | V109: POTENCIA UNIT. (W) | W109: CANT. | X109: POTENCIA UNIT. (W) | Y109: CANT. | Z109: POTENCIA UNIT. (W) | AA109: CANT. | AB109: POTENCIA UNIT. (W) | AC109: CANT. | AD109: POTENCIA UNIT. (W) | AE109: CANT. | AF109: POTENCIA UNIT. (W) | AG109: CANT. | AH109: POTENCIA UNIT. (W) | AM109: R | AN109: S | AO109: T | AP109: RST
B110: IEPB.01 | O110: 33 | P110: 6 | AL110: =(C110*D110)+(E110*F110)+(G110*H110)+(I110*J110)+(K110*L110)+(M110*N110)+(O110*P110)+(Q110*R110)+(S110*T110)+(U110*V110)+(W110*X110)+(Y110*Z110)+(AA110*AB110)+(AC110*AD110)+(AE110*AF110)+(AG110*AH110)+(AJ110*AK110) -> 198 | AM110: =AL110 -> 198 | AQ110: =AL110/220 -> 1 | AR110: 1x10
B111: IEPB.02 | O111: 24 | P111: 6 | AL111: =(C111*D111)+(E111*F111)+(G111*H111)+(I111*J111)+(K111*L111)+(M111*N111)+(O111*P111)+(Q111*R111)+(S111*T111)+(U111*V111)+(W111*X111)+(Y111*Z111)+(AA111*AB111)+(AC111*AD111)+(AE111*AF111)+(AG111*AH111)+(AJ111*AK111) -> 144 | AN111: =AL111 -> 144 | AQ111: 1 | AR111: 1x10
B112: IEPB.03 | O112: 31 | P112: 6 | AL112: 186 | AO112: =AL112 -> 186 | AQ112: 1 | AR112: 1x10
B113: IEPB.04 | C113: 21 | D113: 38 | G113: 4 | H113: 25 | AL113: 898 | AO113: =AL113 -> 898 | AQ113: 4 | AR113: 1x10
B114: IEPB.05 | C114: 21 | D114: 38 | G114: 8 | H114: 25 | AL114: 998 | AM114: =AL114 -> 998 | AQ114: 5 | AR114: 1x10
B115: IEPB.06 | C115: 20 | D115: 38 | AL115: 760 | AN115: =AL115 -> 760 | AQ115: 3 | AR115: 1x10
B116: IEPB.07 | C116: 18 | D116: 38 | AL116: 684 | AO116: =AL116 -> 684 | AQ116: 3 | AR116: 1x10
B117: IEPB.08 | K117: 3 | L117: 12 | AL117: 36 | AN117: =AL117 -> 36 | AQ117: 0 | AR117: 1x10
B118: IEPB.09 | G118: 8 | H118: 25 | AL118: 200 | AM118: =AL118 -> 200 | AQ118: 1 | AR118: 1x10
B119: IEPB.10 | C119: 16 | D119: 38 | AL119: 608 | AN119: =AL119 -> 608 | AQ119: 3 | AR119: 1x10
B120: IEPB.11 | K120: 3 | L120: 12 | AL120: 36 | AN120: =AL120 -> 36 | AQ120: 0 | AR120: 1x10
B121: IEPB.12 | G121: 8 | H121: 25 | AL121: 200 | AO121: =AL121 -> 200 | AQ121: 1 | AR121: 1x10
B122: IEPB.13 | C122: 16 | D122: 38 | AL122: 608 | AM122: =AL122 -> 608 | AQ122: 3 | AR122: 1x10
B123: IEPB.14 | Q123: 19 | R123: 23 | AL123: 437 | AN123: =AL123 -> 437 | AQ123: 2 | AR123: 1x10
B124: IEPB.15 | G124: 12 | H124: 25 | AL124: 300 | AM124: =AL124 -> 300 | AQ124: 1 | AR124: 1x10
B125: IEPB.16 | C125: 19 | D125: 38 | G125: 1 | H125: 25 | AL125: 747 | AO125: =AL125 -> 747 | AQ125: 3 | AR125: 1x10
B126: IEPB.17 | E126: 3 | F126: 39 | G126: 11 | H126: 25 | I126: 9 | J126: 6 | AL126: 446 | AO126: =AL126 -> 446 | AQ126: 2 | AR126: 1x10
B127: IEPB.18 | G127: 4 | H127: 25 | I127: 4 | J127: 6 | AL127: 124 | AM127: =AL127 -> 124 | AQ127: 1 | AR127: 1x10
B128: IEPB.19 | E128: 2 | F128: 39 | G128: 8 | H128: 25 | O128: 3 | P128: 6 | AL128: 296 | AM128: =AL128 -> 296 | AQ128: 1 | AR128: 1x10
B129: IEPB.20 | C129: 1 | D129: 38 | G129: 2 | H129: 25 | M129: 4 | N129: 6 | AL129: 112 | AO129: =AL129 -> 112 | AQ129: 1 | AR129: 1x10
B130: IEPB.21 | S130: 3 | T130: 35 | AL130: 105 | AM130: =AL130 -> 105 | AQ130: 0 | AR130: 1x10
B131: IEPB.22 | G131: 22 | H131: 25 | AL131: 550 | AN131: =AL131 -> 550 | AQ131: 3 | AR131: 1x10
B132: IEPB.23 | G132: 12 | H132: 25 | I132: 6 | J132: 6 | AL132: 336 | AM132: =AL132 -> 336 | AQ132: 2 | AR132: 1x10
B133: IEPB.24 | G133: 14 | H133: 25 | AL133: 350 | AO133: =AL133 -> 350 | AQ133: 2 | AR133: 1x10
B134: IEPB.25 | G134: 24 | H134: 25 | I134: 1 | J134: 6 | AL134: 606 | AN134: =AL134 -> 606 | AQ134: 3 | AR134: 1x10
B135: IEPB.26 | G135: 17 | H135: 25 | AL135: =(C135*D135)+(E135*F135)+(G135*H135)+(I135*J135)+(K135*L135)+(M135*N135)+(O135*P135)+(Q135*R135)+(S135*T135)+(U135*V135)+(W135*X135)+(Y135*Z135)+(AA135*AB135)+(AC135*AD135)+(AE135*AF135)+(AG135*AH135)+(AJ135*AK135) -> 425 | AN135: =AL135 -> 425 | AQ135: =AL135/220 -> 2 | AR135: 1x10
B136: TEPB.01 | AE136: 7 | AF136: 250 | AL136: 1750 | AM136: =AL136 -> 1,750 | AQ136: 8 | AR136: 1x16
B137: TEPB.02 | AE137: 6 | AF137: 250 | AL137: 1500 | AO137: =AL137 -> 1,500 | AQ137: 7 | AR137: 1x16
B138: TEPB.03 | AE138: 6 | AF138: 250 | AL138: 1500 | AN138: =AL138 -> 1,500 | AQ138: 7 | AR138: 1x16
B139: TEPB.04 | AE139: 5 | AF139: 250 | AL139: 1250 | AO139: =AL139 -> 1,250 | AQ139: 6 | AR139: 1x16
B140: TEPB.05 | AE140: 9 | AF140: 250 | AL140: 2250 | AN140: =AL140 -> 2,250 | AQ140: 10 | AR140: 1x16
B141: TEPB.06 | AE141: 8 | AF141: 250 | AL141: 2000 | AM141: =AL141 -> 2,000 | AQ141: 9 | AR141: 1x16
B142: TEPB.07 | AE142: 8 | AF142: 250 | AL142: 2000 | AO142: =AL142 -> 2,000 | AQ142: 9 | AR142: 1x16
B143: TEPB.08 | AE143: 8 | AF143: 250 | AL143: 2000 | AM143: =AL143 -> 2,000 | AQ143: =AL143/220 -> 9 | AR143: 1x16
B144: TEPB.09 | AE144: 5 | AF144: 250 | AL144: 1250 | AN144: =AL144 -> 1,250 | AQ144: 6 | AR144: 1x16
B145: TEPB.10 | AE145: 6 | AF145: 250 | AL145: 1500 | AO145: =AL145 -> 1,500 | AQ145: 7 | AR145: 1x16
B146: TEPB.11 | AE146: 7 | AF146: 250 | AL146: 1750 | AN146: =AL146 -> 1,750 | AQ146: 8 | AR146: 1x16
B147: TEPB.12 | AE147: 3 | AF147: 250 | AL147: 750 | AM147: =AL147 -> 750 | AQ147: 3 | AR147: 1x16
B148: TEPB.13 | AE148: 5 | AF148: 250 | AL148: 1250 | AO148: =AL148 -> 1,250 | AQ148: 6 | AR148: 1x16
B149: TEPB.14 | AE149: 5 | AF149: 250 | AL149: 1250 | AM149: =AL149 -> 1,250 | AQ149: 6 | AR149: 1x16
B150: TEPB.15 | AE150: 6 | AF150: 250 | AL150: 1500 | AN150: =AL150 -> 1,500 | AQ150: 7 | AR150: 1x16
B151: TEPB.16 | AE151: 1 | AF151: 250 | AL151: 250 | AO151: =AL151 -> 250 | AQ151: 1 | AR151: 1x16
B152: TEPB.17 | AA152: 3 | AB152: 200 | AL152: 600 | AM152: =AL152 -> 600 | AQ152: 3 | AR152: 1x16
B153: TEPB.18 | AA153: 3 | AB153: 100 | AL153: 300 | AO153: =AL153 -> 300 | AQ153: 1 | AR153: 1x16
B154: TEPB.19 | AA154: 4 | AB154: 100 | AL154: =(AE154*AF154)+(AG154*AH154)+(AJ154*AK154)+(AA154*AB154)+(AC154*AD154) -> 400 | AO154: =AL154 -> 400 | AQ154: 2 | AR154: 1x16
B155: TEPB.20 | AA155: 1 | AB155: 100 | AL155: 100 | AM155: =AL155 -> 100 | AQ155: 0 | AR155: 1x16
B156: TEPB.21 | AA156: 1 | AB156: 100 | AL156: 100 | AN156: =AL156 -> 100 | AQ156: 0 | AR156: 1x16
B157: TEPB.22 | AA157: 1 | AB157: 100 | AL157: 100 | AM157: =AL157 -> 100 | AQ157: 0 | AR157: 1x16
B158: TEPB.23 | AA158: 1 | AB158: 100 | AL158: 100 | AO158: =AL158 -> 100 | AQ158: 0 | AR158: 1x16
B159: Rsva. | AI159: Reserva | AJ159: 1 | AK159: 2000 | AL159: 2000 | AN159: =AL159 -> 2,000 | AQ159: 9 | AR159: 1x16
B160: Rsva. | AI160: Reserva | AJ160: 1 | AK160: 2000 | AL160: 2000 | AM160: =AL160 -> 2,000 | AQ160: 9 | AR160: 1x16
B161: Rsva. | AI161: Reserva | AJ161: 1 | AK161: 2000 | AL161: 2000 | AO161: =AL161 -> 2,000 | AQ161: 9 | AR161: 1x16
A162: TOTAL GENERAL | AK162: Σ | AL162: =SUM(AL110:AL161) -> 41840 | AM162: =SUM(AM110:AM161) -> 13715 | AN162: 13952 | AO162: 14173 | AP162: 0 | AQ162: =AK169 -> 79 | AR162: =AK170 -> 3x100
C163: =SUM(C110:C161) -> 132
AI165: Potencia instalada - Σpotencia | AJ165: PI | AK165: =AL162 -> 41,840
AI166: factor de potencia - | AJ166: fp | AK166: 0.8
AI167: factor de demanda - Anexo 3 ANDE | AJ167: fd | AK167: 1
AI168: Potencia Demandada - Pd = PI*fd | AJ168: Pd | AK168: =AK165*AK167 -> 41,840
AI169: Corriente - Id = Pd/(√3*380*fp) | AJ169: Id | AK169: =AK168/(SQRT(3)*380*AK166) -> 79
AI170: LLave Limitadora | AJ170: TM | AK170: 3x100
AI171: Alimentador | AJ171: S | AK171: 4x25
AI172: Seccion de Conductor de Proteccion | AJ172: S_p | AK172: =_xlfn.CONCAT("1x",IF(VALUE(RIGHT(AK171, LEN(AK171) - FIND("x", AK171))) <= 16, VALUE(RIGHT(AK171, LEN(AK171) - FIND("x", AK171))), IF(AND(VALUE(RIGHT(AK171, LEN(AK171) - FIND("x", AK171))) > 16, VALUE(RIGHT(AK171, LEN(AK171) - FIND("x", AK171))) <= 35), 16, VALUE(RIGHT(AK171, LEN(AK171) - FIND("x", AK171)))/2))) -> 1x16
AI173: Corriente admisible Conductor - Iz | AJ173: Iz | AK173: 115
AI174: Longitud (m) | AJ174: L | AK174: 5

Sheet TSE-TSN-1P
A1: CUADRO DE CARGAS ELÉCTRICAS TABLERO-TSN-2P
A2: DEPENDENCIA | B2: CTO. | C2: TIPO 1 - LED 38 W | E2: TIPO 2 - LED Est. Adosar 39 W | G2: TIPO 3 - LED Circular Embutido 25 W | I2: TIPO 4 - Spot LED CIrcular Emb. 6 W | K2: TIPO 5 - Spot Cir. Movil LED 12 W | M2: TIPO 6 - Aplique de Adosar LED 5.5 W | O2: TIPO 7 - Adosar Resina LED 6 W | Q2: TIPO 8 - LED Circular Embutido 23 W | S2: TIPO 9 - LED Colgante 35 W | U2: TIPO 10 - Proyector LED 50 W | W2: TIPO 11 - LED Embutido Uni. 1.7 W | Y2: TIPO 12 - LED Colgante 25 W | AA2: TOMA SIMPLE | AC2: TOMA SCHUKO | AE2: ESTACIONES DE TRABAJO | AG2: SECAMANOS | AI2: DESCRIPCIÓN | AJ2: CANT. | AK2: POTENCIA (W) | AL2: POTENCIA TOTAL (W) | AM2: FASES | AQ2: CORRIENTE (A) | AR2: TM (A)
C3: CANT. | D3: POTENCIA UNIT. (W) | E3: CANT. | F3: POTENCIA UNIT. (W) | G3: CANT. | H3: POTENCIA UNIT. (W) | I3: CANT. | J3: POTENCIA UNIT. (W) | K3: CANT. | L3: POTENCIA UNIT. (W) | M3: CANT. | N3: POTENCIA UNIT. (W) | O3: CANT. | P3: POTENCIA UNIT. (W) | Q3: CANT. | R3: POTENCIA UNIT. (W) | S3: CANT. | T3: POTENCIA UNIT. (W) | U3: CANT. | V3: POTENCIA UNIT. (W) | W3: CANT. | X3: POTENCIA UNIT. (W) | Y3: CANT. | Z3: POTENCIA UNIT. (W) | AA3: CANT. | AB3: POTENCIA UNIT. (W) | AC3: CANT. | AD3: POTENCIA UNIT. (W) | AE3: CANT. | AF3: POTENCIA UNIT. (W) | AG3: CANT. | AH3: POTENCIA UNIT. (W) | AM3: R | AN3: S | AO3: T | AP3: RST
B4: TN1P.01 | AE4: 4 | AF4: 250 | AL4: =(AE4*AF4)+(AG4*AH4)+(AJ4*AK4)+(AA4*AB4)+(AC4*AD4) -> 1000 | AM4: =AL4 -> 1,000 | AQ4: =AL4/220 -> 5 | AR4: 1x16
B5: TN1P.02 | AE5: 2 | AF5: 250 | AL5: =(AE5*AF5)+(AG5*AH5)+(AJ5*AK5)+(AA5*AB5)+(AC5*AD5) -> 500 | AN5: =AL5 -> 500 | AQ5: 2 | AR5: 1x16
B6: TN1P.03 | AE6: 3 | AF6: 250 | AL6: 750 | AO6: =AL6 -> 750 | AQ6: 3 | AR6: 1x16
B7: TN1P.04 | AE7: 3 | AF7: 250 | AL7: 750 | AN7: =AL7 -> 750 | AQ7: 3 | AR7: 1x16
B8: TN1P.05 | AE8: 2 | AF8: 250 | AL8: 500 | AO8: =AL8 -> 500 | AQ8: 2 | AR8: 1x16
B9: TN1P.06 | AE9: 3 | AF9: 250 | AL9: 750 | AM9: =AL9 -> 750 | AQ9: 3 | AR9: 1x16
B10: TN1P.07 | AE10: 3 | AF10: 250 | AL10: 750 | AN10: =AL10 -> 750 | AQ10: 3 | AR10: 1x16
B11: TN1P.08 | AE11: 3 | AF11: 250 | AL11: 750 | AO11: =AL11 -> 750 | AQ11: 3 | AR11: 1x16
B12: TN1P.10 | AE12: 3 | AF12: 250 | AL12: 750 | AM12: =AL12 -> 750 | AQ12: 3 | AR12: 1x16
B13: TN1P.11 | AE13: 3 | AF13: 250 | AL13: 750 | AN13: =AL13 -> 750 | AQ13: 3 | AR13: 1x16
B14: TN1P.12 | AE14: 4 | AF14: 250 | AL14: 1000 | AO14: =AL14 -> 1,000 | AQ14: 5 | AR14: 1x16
B15: TN1P.13 | AE15: 4 | AF15: 250 | AL15: 1000 | AM15: =AL15 -> 1,000 | AQ15: 5 | AR15: 1x16
B16: TN1P.14 | AE16: 4 | AF16: 250 | AL16: 1000 | AN16: =AL16 -> 1,000 | AQ16: 5 | AR16: 1x16
B17: TN1P.15 | AE17: 4 | AF17: 250 | AL17: 1000 | AO17: =AL17 -> 1,000 | AQ17: 5 | AR17: 1x16
B18: TN1P.16 | AE18: 3 | AF18: 250 | AL18: 750 | AM18: =AL18 -> 750 | AQ18: 3 | AR18: 1x16
B19: TN1P.17 | AE19: 3 | AF19: 250 | AL19: 750 | AN19: =AL19 -> 750 | AQ19: 3 | AR19: 1x16
B20: TN1P.18 | AE20: 2 | AF20: 250 | AL20: 500 | AO20: =AL20 -> 500 | AQ20: 2 | AR20: 1x16
B21: TN1P.19 | AE21: 3 | AF21: 250 | AL21: 750 | AM21: =AL21 -> 750 | AQ21: 3 | AR21: 1x16
B22: TN1P.20 | AA22: 8 | AB22: 100 | AL22: 800 | AN22: =AL22 -> 800 | AQ22: 4 | AR22: 1x16
B23: TN1P.21 | AA23: 2 | AB23: 100 | AL23: 200 | AO23: =AL23 -> 200 | AQ23: 1 | AR23: 1x16
B24: TN1P.22 | AA24: 4 | AB24: 100 | AL24: 400 | AO24: =AL24 -> 400 | AQ24: 2 | AR24: 1x16
B25: TN1P.23 | AA25: 5 | AB25: 100 | AL25: 500 | AM25: =AL25 -> 500 | AQ25: 2 | AR25: 1x16
B26: TN1P.24 | AA26: 3 | AB26: 100 | AL26: 300 | AO26: =AL26 -> 300 | AQ26: 1 | AR26: 1x16
B27: TN1P.25 | AA27: 5 | AB27: 100 | AL27: 500 | AN27: =AL27 -> 500 | AQ27: 2 | AR27: 1x16
B28: TN1P.26 | AA28: 6 | AB28: 100 | AL28: 600 | AO28: =AL28 -> 600 | AQ28: 3 | AR28: 1x16
B29: TN1P.27 | AA29: 5 | AB29: 100 | AL29: 500 | AM29: =AL29 -> 500 | AQ29: 2 | AR29: 1x16
B30: TS1P.01 | AC30: 1 | AD30: 1000 | AL30: 1000 | AN30: =AL30 -> 1,000 | AQ30: 5 | AR30: 1x16
B31: TS1P.02 | AC31: 1 | AD31: 1000 | AL31: 1000 | AM31: =AL31 -> 1,000 | AQ31: 5 | AR31: 1x16
B32: SM1P.01 | AG32: 1 | AH32: 1800 | AL32: 1800 | AO32: =AL32 -> 1,800 | AQ32: 8 | AR32: 1x16
B33: SM1P.02 | AG33: 1 | AH33: 1800 | AL33: 1800 | AN33: =AL33 -> 1,800 | AQ33: 8 | AR33: 1x16
B34: SM1P.03 | AG34: 1 | AH34: 1800 | AL34: 1800 | AM34: =AL34 -> 1,800 | AQ34: 8 | AR34: 1x16
B35: SM1P.04 | AG35: 1 | AH35: 1800 | AL35: 1800 | AO35: =AL35 -> 1,800 | AQ35: 8 | AR35: 1x16
B36: SM1P.05 | AG36: 1 | AH36: 1800 | AL36: 1800 | AN36: =AL36 -> 1,800 | AQ36: =AL36/220 -> 8 | AR36: 1x16
B37: SM1P.06 | AG37: 1 | AH37: 1800 | AL37: 1800 | AM37: =AL37 -> 1,800 | AQ37: 8 | AR37: 1x16
B38: SM1P.07 | AG38: 1 | AH38: 1800 | AL38: 1800 | AO38: =AL38 -> 1,800 | AQ38: 8 | AR38: 1x16
B39: FC1P.01 | AI39: Fancoil | AJ39: 1 | AK39: 1500 | AL39: 1500 | AN39: =AL39 -> 1,500 | AQ39: 7 | AR39: 1x16
B40: FC1P.02 | AI40: Fancoil | AJ40: 1 | AK40: 1500 | AL40: 1500 | AM40: =AL40 -> 1,500 | AQ40: 7 | AR40: 1x16
B41: FC1P.03 | AI41: Fancoil | AJ41: 1 | AK41: 1500 | AL41: 1500 | AO41: =AL41 -> 1,500 | AQ41: 7 | AR41: 1x16
B42: FC1P.04 | AI42: Fancoil | AJ42: 1 | AK42: 1500 | AL42: 1500 | AN42: =AL42 -> 1,500 | AQ42: 7 | AR42: 1x16
B43: FC1P.05 | AI43: Fancoil | AJ43: 1 | AK43: 1500 | AL43: 1500 | AM43: =AL43 -> 1,500 | AQ43: 7 | AR43: 1x16
B44: FC1P.06 | AI44: Fancoil | AJ44: 1 | AK44: 1500 | AL44: 1500 | AO44: =AL44 -> 1,500 | AQ44: 7 | AR44: 1x16
B45: FC1P.07 | AI45: Fancoil | AJ45: 1 | AK45: 1500 | AL45: 1500 | AN45: =AL45 -> 1,500 | AQ45: 7 | AR45: 1x16
B46: FC1P.08 | AI46: Fancoil | AJ46: 1 | AK46: 1700 | AL46: 1700 | AM46: =AL46 -> 1,700 | AQ46: 8 | AR46: 1x16
B47: FC1P.09 | AI47: Fancoil | AJ47: 1 | AK47: 1700 | AL47: 1700 | AO47: =AL47 -> 1,700 | AQ47: 8 | AR47: 1x16
B48: FC1P.10 | AI48: Fancoil | AJ48: 1 | AK48: 1700 | AL48: 1700 | AN48: =AL48 -> 1,700 | AQ48: 8 | AR48: 1x16
B49: FC1P.11 | AI49: Fancoil | AJ49: 1 | AK49: 1700 | AL49: 1700 | AM49: =AL49 -> 1,700 | AQ49: 8 | AR49: 1x16
B50: FC1P.12 | AI50: Fancoil | AJ50: 1 | AK50: 1700 | AL50: 1700 | AO50: =AL50 -> 1,700 | AQ50: 8 | AR50: 1x16
B51: FC1P.13 | AI51: Fancoil | AJ51: 1 | AK51: 1700 | AL51: 1700 | AN51: =AL51 -> 1,700 | AQ51: 8 | AR51: 1x16
B52: FC1P.14 | AI52: Fancoil | AJ52: 1 | AK52: 1700 | AL52: 1700 | AM52: =AL52 -> 1,700 | AQ52: 8 | AR52: 1x16
B53: FC1P.15 | AI53: Fancoil | AJ53: 1 | AK53: 1700 | AL53: 1700 | AO53: =AL53 -> 1,700 | AQ53: 8 | AR53: 1x16
B54: FC1P.16 | AI54: Fancoil | AJ54: 1 | AK54: 1700 | AL54: 1700 | AN54: =AL54 -> 1,700 | AQ54: 8 | AR54: 1x16
B55: FC1P.17 | AI55: Fancoil | AJ55: 1 | AK55: 1700 | AL55: 1700 | AM55: =AL55 -> 1,700 | AQ55: 8 | AR55: 1x16
B56: FC1P.18 | AI56: Fancoil | AJ56: 1 | AK56: 1700 | AL56: 1700 | AO56: =AL56 -> 1,700 | AQ56: 8 | AR56: 1x16
B57: FC1P.19 | AI57: Fancoil | AJ57: 1 | AK57: 1700 | AL57: 1700 | AN57: =AL57 -> 1,700 | AQ57: 8 | AR57: 1x16
B58: FC1P.20 | AI58: Fancoil | AJ58: 1 | AK58: 1700 | AL58: 1700 | AM58: =AL58 -> 1,700 | AQ58: 8 | AR58: 1x16
B59: FC1P.21 | AI59: Fancoil | AJ59: 1 | AK59: 1700 | AL59: 1700 | AO59: =AL59 -> 1,700 | AQ59: 8 | AR59: 1x16
B60: FC1P.22 | AI60: Fancoil | AJ60: 1 | AK60: 1700 | AL60: 1700 | AN60: =AL60 -> 1,700 | AQ60: 8 | AR60: 1x16
B61: FC1P.23 | AI61: Fancoil | AJ61: 1 | AK61: 3500 | AL61: 3500 | AM61: =AL61 -> 3,500 | AQ61: 16 | AR61: 1x25
B62: FC1P.24 | AI62: Fancoil | AJ62: 1 | AK62: 3500 | AL62: 3500 | AO62: =AL62 -> 3,500 | AQ62: 16 | AR62: 1x25
B63: FC1P.25 | AI63: Fancoil | AJ63: 1 | AK63: 3500 | AL63: 3500 | AN63: =AL63 -> 3,500 | AQ63: 16 | AR63: 1x25
B64: FC1P.26 | AI64: Fancoil | AJ64: 1 | AK64: 3500 | AL64: 3500 | AM64: =AL64 -> 3,500 | AQ64: 16 | AR64: 1x25
B65: FC1P.27 | AI65: Fancoil | AJ65: 1 | AK65: 3500 | AL65: 3500 | AO65: =AL65 -> 3,500 | AQ65: 16 | AR65: 1x25
B66: FC1P.28 | AI66: Fancoil | AJ66: 1 | AK66: 3900 | AL66: 3900 | AN66: =AL66 -> 3,900 | AQ66: 18 | AR66: 1x25
B67: FC1P.29 | AI67: Fancoil | AJ67: 1 | AK67: 3900 | AL67: 3900 | AM67: =AL67 -> 3,900 | AQ67: 18 | AR67: 1x25
B68: FC1P.30 | AI68: Fancoil | AJ68: 1 | AK68: 3900 | AL68: 3900 | AO68: =AL68 -> 3,900 | AQ68: =AL68/220 -> 18 | AR68: 1x25
B69: FC1P.31 | AI69: Fancoil | AJ69: 1 | AK69: 3900 | AL69: =(AE69*AF69)+(AG69*AH69)+(AJ69*AK69)+(AA69*AB69)+(AC69*AD69) -> 3900 | AN69: =AL69 -> 3,900 | AQ69: 18 | AR69: 1x25
B70: FC1P.32 | AI70: Fancoil | AJ70: 1 | AK70: 3900 | AL70: 3900 | AM70: =AL70 -> 3,900 | AQ70: 18 | AR70: 1x25
B71: FC1P.33 | AI71: Fancoil | AJ71: 1 | AK71: 4200 | AL71: 4200 | AO71: =AL71 -> 4,200 | AQ71: 19 | AR71: 1x25
B72: FC1P.34 | AI72: Fancoil | AJ72: 1 | AK72: 4200 | AL72: 4200 | AN72: =AL72 -> 4,200 | AQ72: 19 | AR72: 1x25
B73: FC1P.35 | AI73: Fancoil | AJ73: 1 | AK73: 4200 | AL73: 4200 | AM73: =AL73 -> 4,200 | AQ73: 19 | AR73: 1x25
B74: FC1P.36 | AI74: Fancoil | AJ74: 1 | AK74: 4200 | AL74: 4200 | AO74: =AL74 -> 4,200 | AQ74: 19 | AR74: 1x25
B75: FC1P.37 | AI75: Fancoil | AJ75: 1 | AK75: 1080 | AL75: 1080 | AN75: =AL75 -> 1,080 | AQ75: 5 | AR75: 1x16
B76: FC1P.38 | AI76: Fancoil | AJ76: 1 | AK76: 520 | AL76: 520 | AN76: =AL76 -> 520 | AQ76: 2 | AR76: 1x16
B77: FC1P.39 | AI77: Fancoil | AJ77: 1 | AK77: 520 | AL77: 520 | AN77: =AL77 -> 520 | AQ77: 2 | AR77: 1x16
B78: Rsva. | AI78: Reserva | AJ78: 1 | AK78: 2000 | AL78: 2000 | AN78: =AL78 -> 2,000 | AQ78: 9 | AR78: 1x16
B79: Rsva. | AI79: Reserva | AJ79: 1 | AK79: 2000 | AL79: 2000 | AM79: =AL79 -> 2,000 | AQ79: 9 | AR79: 1x16
B80: Rsva. | AI80: Reserva | AJ80: 1 | AK80: 2000 | AL80: 2000 | AO80: =AL80 -> 2,000 | AQ80: 9 | AR80: 1x16
A81: TOTAL GENERAL | AK81: Σ | AL81: =SUM(AL4:AL80) -> 130320 | AM81: =SUM(AM4:AM80) -> 43100 | AN81: =SUM(AN4:AN80) -> 43020 | AO81: =SUM(AO4:AO80) -> 44200 | AP81: =SUM(AP4:AP80) -> 0 | AQ81: =AK88 -> 136 | AR81: =AK89 -> 3x150
AI84: Potencia instalada - Σpotencia | AJ84: PI | AK84: =AL81 -> 130,320
AI85: factor de potencia - | AJ85: fp | AK85: 0.8
AI86: factor de demanda - Anexo 3 ANDE | AJ86: fd | AK86: =IF(AK84<=2700,1, IF(AK84<=3800,0.95, IF(AK84<=7200,0.9, IF(AK84<=12000,0.85, IF(AK84<=20000,0.8, IF(AK84<=30000,0.75, IF(AK84<=50000,0.7, IF(AK84<=80000,0.65, IF(AK84<=120000,0.6, IF(AK84<=170000,0.55, IF(AK84<=250000,0.5, 0.45))))))))))) -> 0.55
AI87: Potencia Demandada - Pd = PI*fd | AJ87: Pd | AK87: =AK84*AK86 -> 71,676
AI88: Corriente - Id = Pd/(√3*380*fp) | AJ88: Id | AK88: =AK87/(SQRT(3)*380*AK85) -> 136
AI89: LLave Limitadora | AJ89: TM | AK89: 3x150
AI90: Alimentador | AJ90: S | AK90: 4x50
AI91: Seccion de Conductor de Proteccion | AJ91: S_p | AK91: =_xlfn.CONCAT("1x",IF(VALUE(RIGHT(AK90, LEN(AK90) - FIND("x", AK90))) <= 16, VALUE(RIGHT(AK90, LEN(AK90) - FIND("x", AK90))), IF(AND(VALUE(RIGHT(AK90, LEN(AK90) - FIND("x", AK90))) > 16, VALUE(RIGHT(AK90, LEN(AK90) - FIND("x", AK90))) <= 35), 16, VALUE(RIGHT(AK90, LEN(AK90) - FIND("x", AK90)))/2))) -> 1x25
AI92: Corriente admisible Conductor - Iz | AJ92: Iz | AK92: 163
AI93: Longitud (m) | AJ93: L | AK93: 10
A95: CUADRO DE CARGAS ELÉCTRICAS TABLERO-TSE-2P
A96: DEPENDENCIA | B96: CTO. | C96: TIPO 1 - LED 38 W | E96: TIPO 2 - LED Est. Adosar 39 W | G96: TIPO 3 - LED Circular Embutido 25 W | I96: TIPO 4 - Spot LED CIrcular Emb. 6 W | K96: TIPO 5 - Spot Cir. Movil LED 12 W | M96: TIPO 6 - Aplique de Adosar LED 5.5 W | O96: TIPO 7 - Adosar Resina LED 6 W | Q96: TIPO 8 - LED Circular Embutido 23 W | S96: TIPO 9 - LED Colgante 35 W | U96: TIPO 10 - Proyector LED 50 W | W96: TIPO 11 - LED Embutido Uni. 1.7 W | Y96: TIPO 12 - LED Colgante 25 W | AA96: TOMA SIMPLE | AC96: TOMA SCHUKO | AE96: ESTACIONES DE TRABAJO | AG96: SECAMANOS | AI96: DESCRIPCIÓN | AJ96: CANT. | AK96: POTENCIA (W) | AL96: POTENCIA TOTAL (W) | AM96: FASES | AQ96: CORRIENTE (A) | AR96: TM (A)
C97: CANT. | D97: POTENCIA UNIT. (W) | E97: CANT. | F97: POTENCIA UNIT. (W) | G97: CANT. | H97: POTENCIA UNIT. (W) | I97: CANT. | J97: POTENCIA UNIT. (W) | K97: CANT. | L97: POTENCIA UNIT. (W) | M97: CANT. | N97: POTENCIA UNIT. (W) | O97: CANT. | P97: POTENCIA UNIT. (W) | Q97: CANT. | R97: POTENCIA UNIT. (W) | S97: CANT. | T97: POTENCIA UNIT. (W) | U97: CANT. | V97: POTENCIA UNIT. (W) | W97: CANT. | X97: POTENCIA UNIT. (W) | Y97: CANT. | Z97: POTENCIA UNIT. (W) | AA97: CANT. | AB97: POTENCIA UNIT. (W) | AC97: CANT. | AD97: POTENCIA UNIT. (W) | AE97: CANT. | AF97: POTENCIA UNIT. (W) | AG97: CANT. | AH97: POTENCIA UNIT. (W) | AM97: R | AN97: S | AO97: T | AP97: RST
B98: IE1P.01 | C98: 22 | D98: 38 | G98: 2 | H98: 25 | I98: 2 | J98: 6 | AL98: =(C98*D98)+(E98*F98)+(G98*H98)+(I98*J98)+(K98*L98)+(M98*N98)+(O98*P98)+(Q98*R98)+(S98*T98)+(U98*V98)+(W98*X98)+(Y98*Z98)+(AA98*AB98)+(AC98*AD98)+(AE98*AF98)+(AG98*AH98)+(AJ98*AK98) -> 898 | AM98: =AL98 -> 898 | AQ98: =AL98/220 -> 4 | AR98: 1x10
B99: IE1P.02 | C99: 21 | D99: 38 | G99: 2 | H99: 25 | M99: 4 | N99: 6 | AL99: =(C99*D99)+(E99*F99)+(G99*H99)+(I99*J99)+(K99*L99)+(M99*N99)+(O99*P99)+(Q99*R99)+(S99*T99)+(U99*V99)+(W99*X99)+(Y99*Z99)+(AA99*AB99)+(AC99*AD99)+(AE99*AF99)+(AG99*AH99)+(AJ99*AK99) -> 872 | AN99: =AL99 -> 872 | AQ99: 4 | AR99: 1x10
B100: IE1P.03 | C100: 18 | D100: 38 | G100: 2 | H100: 25 | I100: 2 | J100: 6 | AL100: 746 | AO100: =AL100 -> 746 | AQ100: 3 | AR100: 1x10
B101: IE1P.04 | C101: 15 | D101: 38 | G101: 8 | H101: 25 | AL101: 770 | AO101: =AL101 -> 770 | AQ101: 4 | AR101: 1x10
B102: IE1P.05 | C102: 18 | D102: 38 | AL102: 684 | AN102: =AL102 -> 684 | AQ102: 3 | AR102: 1x10
B103: IE1P.06 | C103: 20 | D103: 38 | G103: 1 | H103: 25 | I103: 1 | J103: 6 | AL103: 791 | AM103: =AL103 -> 791 | AQ103: 4 | AR103: 1x10
B104: IE1P.07 | C104: 16 | D104: 38 | G104: 4 | H104: 25 | AL104: 708 | AO104: =AL104 -> 708 | AQ104: 3 | AR104: 1x10
B105: IE1P.08 | C105: 19 | D105: 38 | AL105: 722 | AN105: =AL105 -> 722 | AQ105: 3 | AR105: 1x10
B106: IE1P.09 | C106: 10 | D106: 38 | AL106: 380 | AM106: =AL106 -> 380 | AQ106: 2 | AR106: 1x10
B107: IE1P.10 | E107: 3 | F107: 39 | G107: 11 | H107: 25 | I107: 9 | J107: 6 | AL107: 446 | AM107: =AL107 -> 446 | AQ107: 2 | AR107: 1x10
B108: IE1P.11 | G108: 4 | H108: 25 | I108: 4 | J108: 6 | AL108: 124 | AO108: =AL108 -> 124 | AQ108: 1 | AR108: 1x10
B109: IE1P.12 | E109: 2 | F109: 39 | G109: 2 | H109: 25 | O109: 2 | P109: 6 | AL109: 140 | AN109: =AL109 -> 140 | AQ109: 1 | AR109: 1x10
B110: IE1P.13 | G110: 16 | H110: 25 | AL110: 400 | AO110: =AL110 -> 400 | AQ110: 2 | AR110: 1x10
B111: IE1P.14 | G111: 23 | H111: 25 | AL111: 575 | AN111: =AL111 -> 575 | AQ111: 3 | AR111: 1x10
B112: IE1P.15 | G112: 30 | H112: 25 | I112: 1 | J112: 6 | AL112: 756 | AM112: =AL112 -> 756 | AQ112: 3 | AR112: 1x10
B113: IE1P.16 | G113: 16 | H113: 25 | AL113: 400 | AO113: =AL113 -> 400 | AQ113: 2 | AR113: 1x10
B114: TE1P.01 | AE114: 6 | AF114: 250 | AL114: 1500 | AN114: =AL114 -> 1,500 | AQ114: 7 | AR114: 1x16
B115: TE1P.02 | AE115: 4 | AF115: 250 | AL115: 1000 | AM115: =AL115 -> 1,000 | AQ115: 5 | AR115: 1x16
B116: TE1P.03 | AE116: 6 | AF116: 250 | AL116: 1500 | AO116: =AL116 -> 1,500 | AQ116: 7 | AR116: 1x16
B117: TE1P.04 | AE117: 3 | AF117: 250 | AL117: 750 | AM117: =AL117 -> 750 | AQ117: 3 | AR117: 1x16
B118: TE1P.05 | AE118: 6 | AF118: 250 | AL118: 1500 | AN118: =AL118 -> 1,500 | AQ118: 7 | AR118: 1x16
B119: TE1P.06 | AE119: 7 | AF119: 250 | AL119: 1750 | AO119: =AL119 -> 1,750 | AQ119: 8 | AR119: 1x16
B120: TE1P.07 | AE120: 7 | AF120: 250 | AL120: 1750 | AM120: =AL120 -> 1,750 | AQ120: 8 | AR120: 1x16
B121: TE1P.08 | AE121: 7 | AF121: 250 | AL121: 1750 | AN121: =AL121 -> 1,750 | AQ121: 8 | AR121: 1x16
B122: TE1P.09 | AE122: 5 | AF122: 250 | AL122: 1250 | AO122: =AL122 -> 1,250 | AQ122: 6 | AR122: 1x16
B123: TE1P.10 | AE123: 5 | AF123: 250 | AL123: 1250 | AM123: =AL123 -> 1,250 | AQ123: 6 | AR123: 1x16
B124: TE1P.11 | AE124: 5 | AF124: 250 | AL124: 1250 | AN124: =AL124 -> 1,250 | AQ124: 6 | AR124: 1x16
B125: TE1P.12 | AE125: 6 | AF125: 250 | AL125: 1500 | AO125: =AL125 -> 1,500 | AQ125: 7 | AR125: 1x16
B126: TE1P.13 | AE126: 6 | AF126: 250 | AL126: 1500 | AM126: =AL126 -> 1,500 | AQ126: 7 | AR126: 1x16
B127: TE1P.14 | AE127: 6 | AF127: 250 | AL127: 1500 | AN127: =AL127 -> 1,500 | AQ127: 7 | AR127: 1x16
B128: TE1P.15 | AE128: 5 | AF128: 250 | AL128: 1250 | AO128: =AL128 -> 1,250 | AQ128: 6 | AR128: 1x16
B129: TE1P.16 | AE129: 7 | AF129: 250 | AL129: 1750 | AM129: =AL129 -> 1,750 | AQ129: 8 | AR129: 1x16
B130: TE1P.17 | AE130: 7 | AF130: 250 | AL130: 1750 | AN130: =AL130 -> 1,750 | AQ130: 8 | AR130: 1x16
B131: TE1P.18 | AE131: 6 | AF131: 250 | AL131: 1500 | AO131: =AL131 -> 1,500 | AQ131: 7 | AR131: 1x16
B132: TE1P.19 | AE132: 3 | AF132: 250 | AL132: 750 | AM132: =AL132 -> 750 | AQ132: 3 | AR132: 1x16
B133: TE1P.20 | AA133: 4 | AB133: 200 | AL133: 800 | AM133: =AL133 -> 800 | AQ133: 4 | AR133: 1x16
B134: TE1P.21 | AA134: 1 | AB134: 100 | AL134: 100 | AO134: =AL134 -> 100 | AQ134: 0 | AR134: 1x16
B135: TE1P.22 | AA135: 1 | AB135: 100 | AL135: 100 | AO135: =AL135 -> 100 | AQ135: 0 | AR135: 1x16
B136: TE1P.23 | AA136: 1 | AB136: 100 | AL136: 100 | AN136: =AL136 -> 100 | AQ136: 0 | AR136: 1x16
B137: Rsva. | AI137: Reserva | AJ137: 1 | AK137: 2000 | AL137: 2000 | AO137: =AL137 -> 2,000 | AQ137: 9 | AR137: 1x16
B138: Rsva. | AI138: Reserva | AJ138: 1 | AK138: 2000 | AL138: 2000 | AN138: =AL138 -> 2,000 | AQ138: 9 | AR138: 1x16
B139: Rsva. | AI139: Reserva | AJ139: 1 | AK139: 2000 | AL139: 2000 | AM139: =AL139 -> 2,000 | AQ139: 9 | AR139: 1x16
A140: TOTAL GENERAL | AK140: Σ | AL140: =SUM(AL98:AL139) -> 43262 | AM140: =SUM(AM98:AM139) -> 14821 | AN140: 14343 | AO140: 14098 | AP140: 0 | AQ140: =AK147 -> 82 | AR140: =AK148 -> 3x100
AI143: Potencia instalada - Σpotencia | AJ143: PI | AK143: =AL140 -> 43,262
AI144: factor de potencia - | AJ144: fp | AK144: 0.8
AI145: factor de demanda - Anexo 3 ANDE | AJ145: fd | AK145: 1
AI146: Potencia Demandada - Pd = PI*fd | AJ146: Pd | AK146: =AK143*AK145 -> 43,262
AI147: Corriente - Id = Pd/(√3*380*fp) | AJ147: Id | AK147: =AK146/(SQRT(3)*380*AK144) -> 82
AI148: LLave Limitadora | AJ148: TM | AK148: 3x100
AI149: Alimentador | AJ149: S | AK149: 4x25
AI150: Seccion de Conductor de Proteccion | AJ150: S_p | AK150: =_xlfn.CONCAT("1x",IF(VALUE(RIGHT(AK149, LEN(AK149) - FIND("x", AK149))) <= 16, VALUE(RIGHT(AK149, LEN(AK149) - FIND("x", AK149))), IF(AND(VALUE(RIGHT(AK149, LEN(AK149) - FIND("x", AK149))) > 16, VALUE(RIGHT(AK149, LEN(AK149) - FIND("x", AK149))) <= 35), 16, VALUE(RIGHT(AK149, LEN(AK149) - FIND("x", AK149)))/2))) -> 1x16
AI151: Corriente admisible Conductor - Iz | AJ151: Iz | AK151: 115
AI152: Longitud (m) | AJ152: L | AK152: 10

Sheet TSE-TSN-2P
A1: CUADRO DE CARGAS ELÉCTRICAS TABLERO-TSN-2P
A2: DEPENDENCIA | B2: CTO. | C2: TIPO 1 - LED 38 W | E2: TIPO 2 - LED Est. Adosar 39 W | G2: TIPO 3 - LED Circular Embutido 25 W | I2: TIPO 4 - Spot LED CIrcular Emb. 6 W | K2: TIPO 5 - Spot Cir. Movil LED 12 W | M2: TIPO 6 - Aplique de Adosar LED 5.5 W | O2: TIPO 7 - Adosar Resina LED 6 W | Q2: TIPO 8 - LED Circular Embutido 23 W | S2: TIPO 9 - LED Colgante 35 W | U2: TIPO 10 - Proyector LED 50 W | W2: TIPO 11 - LED Embutido Uni. 1.7 W | Y2: TIPO 12 - LED Colgante 25 W | AA2: TOMA SIMPLE | AC2: TOMA SCHUKO | AE2: ESTACIONES DE TRABAJO | AG2: SECAMANOS | AI2: DESCRIPCIÓN | AJ2: CANT. | AK2: POTENCIA (W) | AL2: POTENCIA TOTAL (W) | AM2: FASES | AQ2: CORRIENTE (A) | AR2: TM (A)
C3: CANT. | D3: POTENCIA UNIT. (W) | E3: CANT. | F3: POTENCIA UNIT. (W) | G3: CANT. | H3: POTENCIA UNIT. (W) | I3: CANT. | J3: POTENCIA UNIT. (W) | K3: CANT. | L3: POTENCIA UNIT. (W) | M3: CANT. | N3: POTENCIA UNIT. (W) | O3: CANT. | P3: POTENCIA UNIT. (W) | Q3: CANT. | R3: POTENCIA UNIT. (W) | S3: CANT. | T3: POTENCIA UNIT. (W) | U3: CANT. | V3: POTENCIA UNIT. (W) | W3: CANT. | X3: POTENCIA UNIT. (W) | Y3: CANT. | Z3: POTENCIA UNIT. (W) | AA3: CANT. | AB3: POTENCIA UNIT. (W) | AC3: CANT. | AD3: POTENCIA UNIT. (W) | AE3: CANT. | AF3: POTENCIA UNIT. (W) | AG3: CANT. | AH3: POTENCIA UNIT. (W) | AM3: R | AN3: S | AO3: T | AP3: RST
B4: TN2P.01 | AE4: 5 | AF4: 250 | AL4: =(AE4*AF4)+(AG4*AH4)+(AJ4*AK4)+(AA4*AB4)+(AC4*AD4) -> 1250 | AM4: =AL4 -> 1,250 | AQ4: =AL4/220 -> 6 | AR4: 1x16
B5: TN2P.02 | AE5: 3 | AF5: 250 | AL5: 750 | AN5: =AL5 -> 750 | AQ5: 3 | AR5: 1x16
B6: TN2P.03 | AE6: 3 | AF6: 250 | AL6: 750 | AO6: =AL6 -> 750 | AQ6: 3 | AR6: 1x16
B7: TN2P.04 | AE7: 4 | AF7: 250 | AL7: 1000 | AN7: =AL7 -> 1,000 | AQ7: 5 | AR7: 1x16
B8: TN2P.05 | AE8: 2 | AF8: 250 | AL8: 500 | AO8: =AL8 -> 500 | AQ8: 2 | AR8: 1x16
B9: TN2P.06 | AE9: 3 | AF9: 250 | AL9: 750 | AM9: =AL9 -> 750 | AQ9: 3 | AR9: 1x16
B10: TN2P.07 | AE10: 3 | AF10: 250 | AL10: 750 | AO10: =AL10 -> 750 | AQ10: 3 | AR10: 1x16
B11: TN2P.08 | AE11: 2 | AF11: 250 | AL11: 500 | AN11: =AL11 -> 500 | AQ11: 2 | AR11: 1x16
B12: TN2P.09 | AE12: 3 | AF12: 250 | AL12: 750 | AM12: =AL12 -> 750 | AQ12: 3 | AR12: 1x16
B13: TN2P.10 | AE13: 2 | AF13: 250 | AL13: 500 | AO13: =AL13 -> 500 | AQ13: 2 | AR13: 1x16
B14: TN2P.11 | AE14: 3 | AF14: 250 | AL14: 750 | AN14: =AL14 -> 750 | AQ14: 3 | AR14: 1x16
B15: TN2P.12 | AE15: 3 | AF15: 250 | AL15: 750 | AO15: =AL15 -> 750 | AQ15: 3 | AR15: 1x16
B16: TN2P.13 | AE16: 4 | AF16: 250 | AL16: 1000 | AM16: =AL16 -> 1,000 | AQ16: 5 | AR16: 1x16
B17: TN2P.14 | AE17: 4 | AF17: 250 | AL17: 1000 | AN17: =AL17 -> 1,000 | AQ17: 5 | AR17: 1x16
B18: TN2P.15 | AE18: 4 | AF18: 250 | AL18: 1000 | AO18: =AL18 -> 1,000 | AQ18: 5 | AR18: 1x16
B19: TN2P.16 | AE19: 2 | AF19: 250 | AL19: 500 | AM19: =AL19 -> 500 | AQ19: 2 | AR19: 1x16
B20: TN2P.17 | AE20: 3 | AF20: 250 | AL20: 750 | AN20: =AL20 -> 750 | AQ20: 3 | AR20: 1x16
B21: TN2P.18 | AE21: 2 | AF21: 250 | AL21: 500 | AM21: =AL21 -> 500 | AQ21: 2 | AR21: 1x16
B22: TN2P.19 | AE22: 2 | AF22: 250 | AL22: 500 | AO22: =AL22 -> 500 | AQ22: 2 | AR22: 1x16
B23: TN2P.20 | AE23: 2 | AF23: 250 | AL23: 500 | AM23: =AL23 -> 500 | AQ23: 2 | AR23: 1x16
B24: TN2P.21 | AE24: 2 | AF24: 250 | AL24: 500 | AN24: =AL24 -> 500 | AQ24: 2 | AR24: 1x16
B25: TN2P.22 | AE25: 2 | AF25: 250 | AL25: 500 | AO25: =AL25 -> 500 | AQ25: 2 | AR25: 1x16
B26: TN2P.23 | AE26: 2 | AF26: 250 | AL26: 500 | AM26: =AL26 -> 500 | AQ26: 2 | AR26: 1x16
B27: TN2P.24 | AA27: 2 | AB27: 100 | AL27: 200 | AN27: =AL27 -> 200 | AQ27: 1 | AR27: 1x16
B28: TN2P.25 | AA28: 9 | AB28: 100 | AL28: 900 | AO28: =AL28 -> 900 | AQ28: 4 | AR28: 1x16
B29: TN2P.26 | AA29: 4 | AB29: 100 | AL29: 400 | AN29: =AL29 -> 400 | AQ29: 2 | AR29: 1x16
B30: TN2P.27 | AA30: 3 | AB30: 100 | AL30: 300 | AM30: =AL30 -> 300 | AQ30: 1 | AR30: 1x16
B31: TN2P.28 | AA31: 3 | AB31: 100 | AL31: 300 | AN31: =AL31 -> 300 | AQ31: 1 | AR31: 1x16
B32: TN2P.29 | AA32: 2 | AB32: 100 | AL32: 200 | AM32: =AL32 -> 200 | AQ32: 1 | AR32: 1x16
B33: TN2P.30 | AA33: 4 | AB33: 100 | AL33: 400 | AN33: =AL33 -> 400 | AQ33: 2 | AR33: 1x16
B34: TN2P.31 | AA34: 2 | AB34: 100 | AL34: 200 | AO34: =AL34 -> 200 | AQ34: 1 | AR34: 1x16
B35: TN2P.32 | AA35: 12 | AB35: 100 | AL35: 1200 | AM35: =AL35 -> 1,200 | AQ35: 5 | AR35: 1x16
B36: TN2P.33 | AA36: 5 | AB36: 100 | AL36: 500 | AO36: =AL36 -> 500 | AQ36: =AL36/220 -> 2 | AR36: 1x16
B37: TS2P.01 | AC37: 1 | AD37: 1000 | AL37: 1000 | AN37: =AL37 -> 1,000 | AQ37: 5 | AR37: 1x16
B38: TS2P.02 | AC38: 1 | AD38: 1000 | AL38: 1000 | AO38: =AL38 -> 1,000 | AQ38: 5 | AR38: 1x16
B39: SM2P.01 | AG39: 1 | AH39: 1800 | AL39: 1800 | AM39: =AL39 -> 1,800 | AQ39: 8 | AR39: 1x16
B40: SM2P.02 | AG40: 1 | AH40: 1800 | AL40: 1800 | AN40: =AL40 -> 1,800 | AQ40: 8 | AR40: 1x16
B41: SM2P.03 | AG41: 1 | AH41: 1800 | AL41: 1800 | AO41: =AL41 -> 1,800 | AQ41: 8 | AR41: 1x16
B42: SM2P.04 | AG42: 1 | AH42: 1800 | AL42: 1800 | AM42: =AL42 -> 1,800 | AQ42: 8 | AR42: 1x16
B43: SM2P.05 | AG43: 1 | AH43: 1800 | AL43: 1800 | AN43: =AL43 -> 1,800 | AQ43: 8 | AR43: 1x16
B44: SM2P.06 | AG44: 1 | AH44: 1800 | AL44: 1800 | AO44: =AL44 -> 1,800 | AQ44: 8 | AR44: 1x16
B45: FC2P.01 | AI45: Fancoil | AJ45: 1 | AK45: 1500 | AL45: 1500 | AM45: =AL45 -> 1,500 | AQ45: 7 | AR45: 1x16
B46: FC2P.02 | AI46: Fancoil | AJ46: 1 | AK46: 1500 | AL46: 1500 | AN46: =AL46 -> 1,500 | AQ46: 7 | AR46: 1x16
B47: FC2P.03 | AI47: Fancoil | AJ47: 1 | AK47: 1500 | AL47: 1500 | AO47: =AL47 -> 1,500 | AQ47: 7 | AR47: 1x16
B48: FC2P.04 | AI48: Fancoil | AJ48: 1 | AK48: 1500 | AL48: 1500 | AM48: =AL48 -> 1,500 | AQ48: 7 | AR48: 1x16
B49: FC2P.05 | AI49: Fancoil | AJ49: 1 | AK49: 1700 | AL49: 1700 | AN49: =AL49 -> 1,700 | AQ49: 8 | AR49: 1x16
B50: FC2P.06 | AI50: Fancoil | AJ50: 1 | AK50: 1700 | AL50: 1700 | AO50: =AL50 -> 1,700 | AQ50: 8 | AR50: 1x16
B51: FC2P.07 | AI51: Fancoil | AJ51: 1 | AK51: 1700 | AL51: 1700 | AM51: =AL51 -> 1,700 | AQ51: 8 | AR51: 1x16
B52: FC2P.08 | AI52: Fancoil | AJ52: 1 | AK52: 1700 | AL52: 1700 | AN52: =AL52 -> 1,700 | AQ52: 8 | AR52: 1x16
B53: FC2P.09 | AI53: Fancoil | AJ53: 1 | AK53: 1700 | AL53: 1700 | AO53: =AL53 -> 1,700 | AQ53: 8 | AR53: 1x16
B54: FC2P.10 | AI54: Fancoil | AJ54: 1 | AK54: 1700 | AL54: 1700 | AM54: =AL54 -> 1,700 | AQ54: 8 | AR54: 1x16
B55: FC2P.11 | AI55: Fancoil | AJ55: 1 | AK55: 1700 | AL55: 1700 | AN55: =AL55 -> 1,700 | AQ55: 8 | AR55: 1x16
B56: FC2P.12 | AI56: Fancoil | AJ56: 1 | AK56: 1700 | AL56: 1700 | AO56: =AL56 -> 1,700 | AQ56: 8 | AR56: 1x16
B57: FC2P.13 | AI57: Fancoil | AJ57: 1 | AK57: 1700 | AL57: 1700 | AM57: =AL57 -> 1,700 | AQ57: 8 | AR57: 1x16
B58: FC2P.14 | AI58: Fancoil | AJ58: 1 | AK58: 1700 | AL58: 1700 | AN58: =AL58 -> 1,700 | AQ58: 8 | AR58: 1x16
B59: FC2P.15 | AI59: Fancoil | AJ59: 1 | AK59: 1700 | AL59: 1700 | AO59: =AL59 -> 1,700 | AQ59: 8 | AR59: 1x16
B60: FC2P.16 | AI60: Fancoil | AJ60: 1 | AK60: 1700 | AL60: 1700 | AM60: =AL60 -> 1,700 | AQ60: 8 | AR60: 1x16
B61: FC2P.17 | AI61: Fancoil | AJ61: 1 | AK61: 1700 | AL61: 1700 | AN61: =AL61 -> 1,700 | AQ61: 8 | AR61: 1x16
B62: FC2P.18 | AI62: Fancoil | AJ62: 1 | AK62: 1700 | AL62: 1700 | AO62: =AL62 -> 1,700 | AQ62: 8 | AR62: 1x16
B63: FC2P.19 | AI63: Fancoil | AJ63: 1 | AK63: 3500 | AL63: 3500 | AM63: =AL63 -> 3,500 | AQ63: 16 | AR63: 1x25
B64: FC2P.20 | AI64: Fancoil | AJ64: 1 | AK64: 3500 | AL64: 3500 | AN64: =AL64 -> 3,500 | AQ64: 16 | AR64: 1x25
B65: FC2P.21 | AI65: Fancoil | AJ65: 1 | AK65: 3900 | AL65: 3900 | AO65: =AL65 -> 3,900 | AQ65: 18 | AR65: 1x25
B66: FC2P.22 | AI66: Fancoil | AJ66: 1 | AK66: 3900 | AL66: 3900 | AM66: =AL66 -> 3,900 | AQ66: 18 | AR66: 1x25
B67: FC2P.23 | AI67: Fancoil | AJ67: 1 | AK67: 3900 | AL67: 3900 | AN67: =AL67 -> 3,900 | AQ67: 18 | AR67: 1x25
B68: FC2P.24 | AI68: Fancoil | AJ68: 1 | AK68: 3900 | AL68: =(AE68*AF68)+(AG68*AH68)+(AJ68*AK68)+(AA68*AB68)+(AC68*AD68) -> 3900 | AO68: =AL68 -> 3,900 | AQ68: =AL68/220 -> 18 | AR68: 1x25
B69: FC2P.25 | AI69: Fancoil | AJ69: 1 | AK69: 3900 | AL69: 3900 | AM69: =AL69 -> 3,900 | AQ69: 18 | AR69: 1x25
B70: FC2P.26 | AI70: Fancoil | AJ70: 1 | AK70: 4200 | AL70: 4200 | AN70: =AL70 -> 4,200 | AQ70: 19 | AR70: 1x25
B71: FC2P.27 | AI71: Fancoil | AJ71: 1 | AK71: 4200 | AL71: 4200 | AO71: =AL71 -> 4,200 | AQ71: 19 | AR71: 1x25
B72: FC2P.28 | AI72: Fancoil | AJ72: 1 | AK72: 4200 | AL72: 4200 | AM72: =AL72 -> 4,200 | AQ72: 19 | AR72: 1x25
B73: FC2P.29 | AI73: Fancoil | AJ73: 1 | AK73: 5000 | AL73: 5000 | AN73: =AL73 -> 5,000 | AQ73: 23 | AR73: 1x25
B74: FC2P.30 | AI74: Fancoil | AJ74: 1 | AK74: 1080 | AL74: 1080 | AO74: =AL74 -> 1,080 | AQ74: 5 | AR74: 1x16
B75: FC2P.31 | AI75: Fancoil | AJ75: 1 | AK75: 1080 | AL75: 1080 | AO75: =AL75 -> 1,080 | AQ75: 5 | AR75: 1x16
B76: FC2P.32 | AI76: Fancoil | AJ76: 1 | AK76: 1080 | AL76: 1080 | AO76: =AL76 -> 1,080 | AQ76: 5 | AR76: 1x16
B77: FC2P.33 | AI77: Fancoil | AJ77: 1 | AK77: 1080 | AL77: 1080 | AM77: =AL77 -> 1,080 | AQ77: 5 | AR77: 1x16
B78: FC2P.34 | AI78: Fancoil | AJ78: 1 | AK78: 520 | AL78: 520 | AO78: =AL78 -> 520 | AQ78: 2 | AR78: 1x16
B79: Rsva. | AI79: Reserva | AJ79: 1 | AK79: 2000 | AL79: 2000 | AO79: =AL79 -> 2,000 | AQ79: 9 | AR79: 1x16
B80: Rsva. | AI80: Reserva | AJ80: 1 | AK80: 2000 | AL80: 2000 | AM80: =AL80 -> 2,000 | AQ80: 9 | AR80: 1x16
B81: Rsva. | AI81: Reserva | AJ81: 1 | AK81: 2000 | AL81: 2000 | AN81: =AL81 -> 2,000 | AQ81: 9 | AR81: 1x16
A82: TOTAL GENERAL | AK82: Σ | AL82: =SUM(AL4:AL81) -> 118390 | AM82: =SUM(AM4:AM81) -> 39430 | AN82: =SUM(AN4:AN81) -> 39750 | AO82: =SUM(AO4:AO81) -> 39210 | AP82: =SUM(AP4:AP81) -> 0 | AQ82: =AK89 -> 135 | AR82: =AK90 -> 3x150
AI85: Potencia instalada - Σpotencia | AJ85: PI | AK85: =AL82 -> 118,390
AI86: factor de potencia - | AJ86: fp | AK86: 0.8
AI87: factor de demanda - Anexo 3 ANDE | AJ87: fd | AK87: =IF(AK85<=2700,1, IF(AK85<=3800,0.95, IF(AK85<=7200,0.9, IF(AK85<=12000,0.85, IF(AK85<=20000,0.8, IF(AK85<=30000,0.75, IF(AK85<=50000,0.7, IF(AK85<=80000,0.65, IF(AK85<=120000,0.6, IF(AK85<=170000,0.55, IF(AK85<=250000,0.5, 0.45))))))))))) -> 0.6
AI88: Potencia Demandada - Pd = PI*fd | AJ88: Pd | AK88: =AK85*AK87 -> 71,034
AI89: Corriente - Id = Pd/(√3*380*fp) | AJ89: Id | AK89: =AK88/(SQRT(3)*380*AK86) -> 135
AI90: LLave Limitadora | AJ90: TM | AK90: 3x150
AI91: Alimentador | AJ91: S | AK91: 4x50
AI92: Seccion de Conductor de Proteccion | AJ92: S_p | AK92: =_xlfn.CONCAT("1x",IF(VALUE(RIGHT(AK91, LEN(AK91) - FIND("x", AK91))) <= 16, VALUE(RIGHT(AK91, LEN(AK91) - FIND("x", AK91))), IF(AND(VALUE(RIGHT(AK91, LEN(AK91) - FIND("x", AK91))) > 16, VALUE(RIGHT(AK91, LEN(AK91) - FIND("x", AK91))) <= 35), 16, VALUE(RIGHT(AK91, LEN(AK91) - FIND("x", AK91)))/2))) -> 1x25
AI93: Corriente admisible Conductor - Iz | AJ93: Iz | AK93: 163
AI94: Longitud (m) | AJ94: L | AK94: 15
A96: CUADRO DE CARGAS ELÉCTRICAS TABLERO-TSE-2P
A97: DEPENDENCIA | B97: CTO. | C97: TIPO 1 - LED 38 W | E97: TIPO 2 - LED Est. Adosar 39 W | G97: TIPO 3 - LED Circular Embutido 25 W | I97: TIPO 4 - Spot LED CIrcular Emb. 6 W | K97: TIPO 5 - Spot Cir. Movil LED 12 W | M97: TIPO 6 - Aplique de Adosar LED 5.5 W | O97: TIPO 7 - Adosar Resina LED 6 W | Q97: TIPO 8 - LED Circular Embutido 23 W | S97: TIPO 9 - LED Colgante 35 W | U97: TIPO 10 - Proyector LED 50 W | W97: TIPO 11 - LED Embutido Uni. 1.7 W | Y97: TIPO 12 - LED Colgante 25 W | AA97: TOMA SIMPLE | AC97: TOMA SCHUKO | AE97: ESTACIONES DE TRABAJO | AG97: SECAMANOS | AI97: DESCRIPCIÓN | AJ97: CANT. | AK97: POTENCIA (W) | AL97: POTENCIA TOTAL (W) | AM97: FASES | AQ97: CORRIENTE (A) | AR97: TM (A)
C98: CANT. | D98: POTENCIA UNIT. (W) | E98: CANT. | F98: POTENCIA UNIT. (W) | G98: CANT. | H98: POTENCIA UNIT. (W) | I98: CANT. | J98: POTENCIA UNIT. (W) | K98: CANT. | L98: POTENCIA UNIT. (W) | M98: CANT. | N98: POTENCIA UNIT. (W) | O98: CANT. | P98: POTENCIA UNIT. (W) | Q98: CANT. | R98: POTENCIA UNIT. (W) | S98: CANT. | T98: POTENCIA UNIT. (W) | U98: CANT. | V98: POTENCIA UNIT. (W) | W98: CANT. | X98: POTENCIA UNIT. (W) | Y98: CANT. | Z98: POTENCIA UNIT. (W) | AA98: CANT. | AB98: POTENCIA UNIT. (W) | AC98: CANT. | AD98: POTENCIA UNIT. (W) | AE98: CANT. | AF98: POTENCIA UNIT. (W) | AG98: CANT. | AH98: POTENCIA UNIT. (W) | AM98: R | AN98: S | AO98: T | AP98: RST
B99: IE2P.01 | C99: 22 | D99: 38 | G99: 2 | H99: 25 | I99: 2 | J99: 6 | AL99: =(C99*D99)+(E99*F99)+(G99*H99)+(I99*J99)+(K99*L99)+(M99*N99)+(O99*P99)+(Q99*R99)+(S99*T99)+(U99*V99)+(W99*X99)+(Y99*Z99)+(AA99*AB99)+(AC99*AD99)+(AE99*AF99)+(AG99*AH99)+(AJ99*AK99) -> 898 | AM99: =AL99 -> 898 | AQ99: =AL99/220 -> 4 | AR99: 1x10
B100: IE2P.02 | C100: 29 | D100: 38 | G100: 1 | H100: 25 | I100: 1 | J100: 6 | AL100: =(C100*D100)+(E100*F100)+(G100*H100)+(I100*J100)+(K100*L100)+(M100*N100)+(O100*P100)+(Q100*R100)+(S100*T100)+(U100*V100)+(W100*X100)+(Y100*Z100)+(AA100*AB100)+(AC100*AD100)+(AE100*AF100)+(AG100*AH100)+(AJ100*AK100) -> 1133 | AN100: =AL100 -> 1,133 | AQ100: 5 | AR100: 1x10
B101: IE2P.03 | C101: 18 | D101: 38 | G101: 2 | H101: 25 | I101: 2 | J101: 6 | AL101: 746 | AO101: =AL101 -> 746 | AQ101: 3 | AR101: 1x10
B102: IE2P.04 | C102: 21 | D102: 38 | G102: 1 | H102: 25 | I102: 1 | J102: 6 | AL102: 829 | AO102: =AL102 -> 829 | AQ102: 4 | AR102: 1x10
B103: IE2P.05 | C103: 22 | D103: 38 | G103: 2 | H103: 25 | I103: 2 | J103: 6 | AL103: 898 | AM103: =AL103 -> 898 | AQ103: 4 | AR103: 1x10
B104: IE2P.06 | C104: 22 | D104: 38 | G104: 2 | H104: 25 | I104: 2 | J104: 6 | AL104: 898 | AN104: =AL104 -> 898 | AQ104: 4 | AR104: 1x10
B105: IE2P.07 | C105: 18 | D105: 38 | AL105: 684 | AO105: =AL105 -> 684 | AQ105: 3 | AR105: 1x10
B106: IE2P.08 | C106: 22 | D106: 38 | AL106: 836 | AM106: =AL106 -> 836 | AQ106: 4 | AR106: 1x10
B107: IE2P.09 | C107: 12 | D107: 38 | G107: 2 | H107: 25 | AL107: 506 | AN107: =AL107 -> 506 | AQ107: 2 | AR107: 1x10
B108: IE2P.10 | E108: 3 | F108: 39 | G108: 11 | H108: 25 | I108: 9 | J108: 6 | AL108: 446 | AO108: =AL108 -> 446 | AQ108: 2 | AR108: 1x10
B109: IE2P.11 | G109: 4 | H109: 25 | I109: 4 | J109: 6 | AL109: 124 | AN109: =AL109 -> 124 | AQ109: 1 | AR109: 1x10
B110: IE2P.12 | E110: 2 | F110: 39 | O110: 2 | P110: 6 | AL110: 90 | AM110: =AL110 -> 90 | AQ110: 0 | AR110: 1x10
B111: IE2P.13 | G111: 16 | H111: 25 | AL111: 400 | AN111: =AL111 -> 400 | AQ111: 2 | AR111: 1x10
B112: IE2P.14 | G112: 20 | H112: 25 | AL112: 500 | AO112: =AL112 -> 500 | AQ112: 2 | AR112: 1x10
B113: IE2P.15 | G113: 29 | H113: 25 | I113: 1 | J113: 6 | AL113: 731 | AM113: =AL113 -> 731 | AQ113: 3 | AR113: 1x10
B114: IE2P.16 | G114: 16 | H114: 25 | AL114: 400 | AN114: =AL114 -> 400 | AQ114: 2 | AR114: 1x10
B115: TE2P.01 | AE115: 6 | AF115: 250 | AL115: 1500 | AO115: =AL115 -> 1,500 | AQ115: 7 | AR115: 1x16
B116: TE2P.02 | AE116: 4 | AF116: 250 | AL116: 1000 | AM116: =AL116 -> 1,000 | AQ116: 5 | AR116: 1x16
B117: TE2P.03 | AE117: 4 | AF117: 250 | AL117: 1000 | AN117: =AL117 -> 1,000 | AQ117: 5 | AR117: 1x16
B118: TE2P.04 | AE118: 6 | AF118: 250 | AL118: 1500 | AM118: =AL118 -> 1,500 | AQ118: 7 | AR118: 1x16
B119: TE2P.05 | AE119: 6 | AF119: 250 | AL119: 1500 | AN119: =AL119 -> 1,500 | AQ119: 7 | AR119: 1x16
B120: TE2P.06 | AE120: 7 | AF120: 250 | AL120: 1750 | AO120: =AL120 -> 1,750 | AQ120: 8 | AR120: 1x16
B121: TE2P.07 | AE121: 6 | AF121: 250 | AL121: 1500 | AM121: =AL121 -> 1,500 | AQ121: 7 | AR121: 1x16
B122: TE2P.08 | AE122: 6 | AF122: 250 | AL122: 1500 | AN122: =AL122 -> 1,500 | AQ122: 7 | AR122: 1x16
B123: TE2P.09 | AE123: 6 | AF123: 250 | AL123: 1500 | AO123: =AL123 -> 1,500 | AQ123: 7 | AR123: 1x16
B124: TE2P.10 | AE124: 6 | AF124: 250 | AL124: 1500 | AM124: =AL124 -> 1,500 | AQ124: 7 | AR124: 1x16
B125: TE2P.11 | AE125: 4 | AF125: 250 | AL125: 1000 | AN125: =AL125 -> 1,000 | AQ125: 5 | AR125: 1x16
B126: TE2P.12 | AE126: 5 | AF126: 250 | AL126: 1250 | AO126: =AL126 -> 1,250 | AQ126: 6 | AR126: 1x16
B127: TE2P.13 | AE127: 4 | AF127: 250 | AL127: 1000 | AN127: =AL127 -> 1,000 | AQ127: 5 | AR127: 1x16
B128: TE2P.14 | AE128: 4 | AF128: 250 | AL128: 1000 | AM128: =AL128 -> 1,000 | AQ128: 5 | AR128: 1x16
B129: TE2P.15 | AE129: 4 | AF129: 250 | AL129: 1000 | AO129: =AL129 -> 1,000 | AQ129: 5 | AR129: 1x16
B130: TE2P.16 | AE130: 2 | AF130: 250 | AL130: 500 | AN130: =AL130 -> 500 | AQ130: 2 | AR130: 1x16
B131: TE2P.17 | AE131: 3 | AF131: 250 | AL131: 750 | AM131: =AL131 -> 750 | AQ131: 3 | AR131: 1x16
B132: TE2P.18 | AE132: 6 | AF132: 250 | AL132: 1500 | AN132: =AL132 -> 1,500 | AQ132: 7 | AR132: 1x16
B133: TE2P.19 | AE133: 2 | AF133: 250 | AL133: 500 | AO133: =AL133 -> 500 | AQ133: 2 | AR133: 1x16
B134: TE2P.20 | AE134: 6 | AF134: 250 | AL134: 1500 | AM134: =AL134 -> 1,500 | AQ134: 7 | AR134: 1x16
B135: TE2P.21 | AE135: 5 | AF135: 250 | AL135: 1250 | AO135: =AL135 -> 1,250 | AQ135: 6 | AR135: 1x16
B136: TE2P.22 | AE136: 2 | AF136: 250 | AL136: 500 | AN136: =AL136 -> 500 | AQ136: 2 | AR136: 1x16
B137: TE2P.23 | AE137: 6 | AF137: 250 | AL137: 1500 | AO137: =AL137 -> 1,500 | AQ137: 7 | AR137: 1x16
B138: TE2P.24 | AE138: 2 | AF138: 250 | AL138: 500 | AN138: =AL138 -> 500 | AQ138: 2 | AR138: 1x16
B139: TE2P.25 | AA139: 4 | AB139: 200 | AL139: 800 | AM139: =AL139 -> 800 | AQ139: 4 | AR139: 1x16
B140: TE2P.26 | AA140: 1 | AB140: 100 | AL140: 100 | AN140: =AL140 -> 100 | AQ140: 0 | AR140: 1x16
B141: TE2P.27 | AA141: 1 | AB141: 100 | AL141: 100 | AN141: =AL141 -> 100 | AQ141: 0 | AR141: 1x16
B142: TE2P.28 | AA142: 1 | AB142: 100 | AL142: 100 | AN142: =AL142 -> 100 | AQ142: 0 | AR142: 1x16
B143: Rsva. | AI143: Reserva | AJ143: 1 | AK143: 2000 | AL143: =(C143*D143)+(E143*F143)+(G143*H143)+(I143*J143)+(K143*L143)+(M143*N143)+(O143*P143)+(Q143*R143)+(S143*T143)+(U143*V143)+(W143*X143)+(Y143*Z143)+(AA143*AB143)+(AC143*AD143)+(AE143*AF143)+(AG143*AH143)+(AJ143*AK143) -> 2000 | AN143: =AL143 -> 2,000 | AQ143: =AL143/220 -> 9 | AR143: 1x16
B144: Rsva. | AI144: Reserva | AJ144: 1 | AK144: 2000 | AL144: 2000 | AM144: =AL144 -> 2,000 | AQ144: 9 | AR144: 1x16
B145: Rsva. | AI145: Reserva | AJ145: 1 | AK145: 2000 | AL145: 2000 | AO145: =AL145 -> 2,000 | AQ145: 9 | AR145: 1x16
B146: TSE-ASC2 | AI146: Tablero Seccional TSE-ASC2 | AJ146: 1 | AK146: ='TSE-ASC2'!F6 -> 4533 | AL146: 4533 | AM146: ='TSE-ASC2'!G6 -> 1,533 | AN146: ='TSE-ASC2'!H6 -> 1,500 | AO146: ='TSE-ASC2'!I6 -> 1,500 | AP146: ='TSE-ASC2'!J6 -> 4,500 | AQ146: ='TSE-ASC2'!K6 -> 9 | AR146: ='TSE-ASC2'!L6 -> 3x25
A147: TOTAL GENERAL | AK147: Σ | AL147: =SUM(AL99:AL146) -> 49752 | AM147: =SUM(AM99:AM146) -> 16536 | AN147: 16261 | AO147: 16955 | AP147: 4500 | AQ147: =AK154 -> 94 | AR147: =AK155 -> 3x100
AI150: Potencia instalada - Σpotencia | AJ150: PI | AK150: =AL147 -> 49,752
AI151: factor de potencia - | AJ151: fp | AK151: 0.8
AI152: factor de demanda - Anexo 3 ANDE | AJ152: fd | AK152: 1
AI153: Potencia Demandada - Pd = PI*fd | AJ153: Pd | AK153: =AK150*AK152 -> 49,752
AI154: Corriente - Id = Pd/(√3*380*fp) | AJ154: Id | AK154: =AK153/(SQRT(3)*380*AK151) -> 94
AI155: LLave Limitadora | AJ155: TM | AK155: 3x100
AI156: Alimentador | AJ156: S | AK156: 4x25
AI157: Seccion de Conductor de Proteccion | AJ157: S_p | AK157: =_xlfn.CONCAT("1x",IF(VALUE(RIGHT(AK156, LEN(AK156) - FIND("x", AK156))) <= 16, VALUE(RIGHT(AK156, LEN(AK156) - FIND("x", AK156))), IF(AND(VALUE(RIGHT(AK156, LEN(AK156) - FIND("x", AK156))) > 16, VALUE(RIGHT(AK156, LEN(AK156) - FIND("x", AK156))) <= 35), 16, VALUE(RIGHT(AK156, LEN(AK156) - FIND("x", AK156)))/2))) -> 1x16
AI158: Corriente admisible Conductor - Iz | AJ158: Iz | AK158: 115
AI159: Longitud (m) | AJ159: L | AK159: 15

Sheet TSE-TSN-3P
A1: CUADRO DE CARGAS ELÉCTRICAS TABLERO-TSN-3P
A2: DEPENDENCIA | B2: CTO. | C2: TIPO 1 - LED 38 W | E2: TIPO 2 - LED Est. Adosar 39 W | G2: TIPO 3 - LED Circular Embutido 25 W | I2: TIPO 4 - Spot LED CIrcular Emb. 6 W | K2: TIPO 5 - Spot Cir. Movil LED 12 W | M2: TIPO 6 - Aplique de Adosar LED 5.5 W | O2: TIPO 7 - Adosar Resina LED 6 W | Q2: TIPO 8 - LED Circular Embutido 23 W | S2: TIPO 9 - LED Colgante 35 W | U2: TIPO 10 - Proyector LED 50 W | W2: TIPO 11 - LED Embutido Uni. 1.7 W | Y2: TIPO 12 - LED Colgante 25 W | AA2: TOMA SIMPLE | AC2: TOMA SCHUKO | AE2: ESTACIONES DE TRABAJO | AG2: SECAMANOS | AI2: DESCRIPCIÓN | AJ2: CANT. | AK2: POTENCIA (W) | AL2: POTENCIA TOTAL (W) | AM2: FASES | AQ2: CORRIENTE (A) | AR2: TM (A)
C3: CANT. | D3: POTENCIA UNIT. (W) | E3: CANT. | F3: POTENCIA UNIT. (W) | G3: CANT. | H3: POTENCIA UNIT. (W) | I3: CANT. | J3: POTENCIA UNIT. (W) | K3: CANT. | L3: POTENCIA UNIT. (W) | M3: CANT. | N3: POTENCIA UNIT. (W) | O3: CANT. | P3: POTENCIA UNIT. (W) | Q3: CANT. | R3: POTENCIA UNIT. (W) | S3: CANT. | T3: POTENCIA UNIT. (W) | U3: CANT. | V3: POTENCIA UNIT. (W) | W3: CANT. | X3: POTENCIA UNIT. (W) | Y3: CANT. | Z3: POTENCIA UNIT. (W) | AA3: CANT. | AB3: POTENCIA UNIT. (W) | AC3: CANT. | AD3: POTENCIA UNIT. (W) | AE3: CANT. | AF3: POTENCIA UNIT. (W) | AG3: CANT. | AH3: POTENCIA UNIT. (W) | AM3: R | AN3: S | AO3: T | AP3: RST
B4: TN3P.01 | AE4: 3 | AF4: 250 | AL4: =(AE4*AF4)+(AG4*AH4)+(AJ4*AK4)+(AA4*AB4)+(AC4*AD4) -> 750 | AM4: =AL4 -> 750 | AQ4: =AL4/220 -> 3 | AR4: 1x16
B5: TN3P.02 | AE5: 3 | AF5: 250 | AL5: =(AE5*AF5)+(AG5*AH5)+(AJ5*AK5)+(AA5*AB5)+(AC5*AD5) -> 750 | AN5: =AL5 -> 750 | AQ5: 3 | AR5: 1x16
B6: TN3P.03 | AE6: 3 | AF6: 250 | AL6: 750 | AO6: =AL6 -> 750 | AQ6: 3 | AR6: 1x16
B7: TN3P.04 | AE7: 3 | AF7: 250 | AL7: 750 | AM7: =AL7 -> 750 | AQ7: 3 | AR7: 1x16
B8: TN3P.05 | AE8: 6 | AF8: 250 | AL8: 1500 | AN8: =AL8 -> 1,500 | AQ8: 7 | AR8: 1x16
B9: TN3P.06 | AE9: 6 | AF9: 250 | AL9: 1500 | AO9: =AL9 -> 1,500 | AQ9: 7 | AR9: 1x16
B10: TN3P.07 | AE10: 6 | AF10: 250 | AL10: 1500 | AM10: =AL10 -> 1,500 | AQ10: 7 | AR10: 1x16
B11: TN3P.08 | AE11: 3 | AF11: 250 | AL11: 750 | AN11: =AL11 -> 750 | AQ11: 3 | AR11: 1x16
B12: TN3P.09 | AE12: 2 | AF12: 250 | AL12: 500 | AO12: =AL12 -> 500 | AQ12: 2 | AR12: 1x16
B13: TN3P.10 | AE13: 2 | AF13: 250 | AL13: 500 | AO13: =AL13 -> 500 | AQ13: 2 | AR13: 1x16
B14: TN3P.11 | AE14: 4 | AF14: 250 | AL14: 1000 | AM14: =AL14 -> 1,000 | AQ14: 5 | AR14: 1x16
B15: TN3P.12 | AE15: 2 | AF15: 250 | AL15: 500 | AN15: =AL15 -> 500 | AQ15: 2 | AR15: 1x16
B16: TN3P.13 | AA16: 8 | AB16: 100 | AL16: 800 | AO16: =AL16 -> 800 | AQ16: 4 | AR16: 1x16
B17: TN3P.14 | AA17: 3 | AB17: 100 | AL17: 300 | AN17: =AL17 -> 300 | AQ17: 1 | AR17: 1x16
B18: TN3P.15 | AA18: 3 | AB18: 100 | AL18: 300 | AN18: =AL18 -> 300 | AQ18: 1 | AR18: 1x16
B19: TN3P.16 | AA19: 2 | AB19: 100 | AL19: 200 | AM19: =AL19 -> 200 | AQ19: 1 | AR19: 1x16
B20: TN3P.17 | AA20: 2 | AB20: 100 | AL20: 200 | AO20: =AL20 -> 200 | AQ20: 1 | AR20: 1x16
B21: TN3P.18 | AA21: 2 | AB21: 100 | AL21: 200 | AN21: =AL21 -> 200 | AQ21: 1 | AR21: 1x16
B22: TN3P.19 | AA22: 9 | AB22: 100 | AL22: 900 | AM22: =AL22 -> 900 | AQ22: 4 | AR22: 1x16
B23: TN3P.20 | AA23: 4 | AB23: 100 | AL23: 400 | AO23: =AL23 -> 400 | AQ23: 2 | AR23: 1x16
B24: TN3P.21 | AA24: 5 | AB24: 100 | AL24: 500 | AN24: =AL24 -> 500 | AQ24: 2 | AR24: 1x16
B25: TN3P.22 | AA25: 4 | AB25: 100 | AL25: 400 | AO25: =AL25 -> 400 | AQ25: 2 | AR25: 1x16
B26: TS3P.01 | AC26: 1 | AD26: 1000 | AL26: 1000 | AN26: =AL26 -> 1,000 | AQ26: 5 | AR26: 1x16
B27: TS3P.02 | AC27: 1 | AD27: 1000 | AL27: 1000 | AO27: =AL27 -> 1,000 | AQ27: 5 | AR27: 1x16
B28: SM3P.01 | AG28: 1 | AH28: 1800 | AL28: 1800 | AM28: =AL28 -> 1,800 | AQ28: 8 | AR28: 1x16
B29: SM3P.02 | AG29: 1 | AH29: 1800 | AL29: 1800 | AN29: =AL29 -> 1,800 | AQ29: 8 | AR29: 1x16
B30: SM3P.03 | AG30: 1 | AH30: 1800 | AL30: 1800 | AO30: =AL30 -> 1,800 | AQ30: 8 | AR30: 1x16
B31: SM3P.04 | AG31: 1 | AH31: 1800 | AL31: 1800 | AM31: =AL31 -> 1,800 | AQ31: 8 | AR31: 1x16
B32: SM3P.05 | AG32: 1 | AH32: 1800 | AL32: 1800 | AN32: =AL32 -> 1,800 | AQ32: 8 | AR32: 1x16
B33: SM3P.06 | AG33: 1 | AH33: 1800 | AL33: 1800 | AO33: =AL33 -> 1,800 | AQ33: 8 | AR33: 1x16
B34: SM3P.07 | AG34: 1 | AH34: 1800 | AL34: 1800 | AM34: =AL34 -> 1,800 | AQ34: 8 | AR34: 1x16
B35: FC3P.01 | AI35: Fancoil | AJ35: 1 | AK35: 1500 | AL35: 1500 | AN35: =AL35 -> 1,500 | AQ35: 7 | AR35: 1x16
B36: FC3P.02 | AI36: Fancoil | AJ36: 1 | AK36: 1500 | AL36: 1500 | AO36: =AL36 -> 1,500 | AQ36: =AL36/220 -> 7 | AR36: 1x16
B37: FC3P.03 | AI37: Fancoil | AJ37: 1 | AK37: 1500 | AL37: 1500 | AM37: =AL37 -> 1,500 | AQ37: 7 | AR37: 1x16
B38: FC3P.04 | AI38: Fancoil | AJ38: 1 | AK38: 1700 | AL38: 1700 | AN38: =AL38 -> 1,700 | AQ38: 8 | AR38: 1x16
B39: FC3P.05 | AI39: Fancoil | AJ39: 1 | AK39: 1700 | AL39: 1700 | AO39: =AL39 -> 1,700 | AQ39: 8 | AR39: 1x16
B40: FC3P.06 | AI40: Fancoil | AJ40: 1 | AK40: 1700 | AL40: 1700 | AM40: =AL40 -> 1,700 | AQ40: 8 | AR40: 1x16
B41: FC3P.07 | AI41: Fancoil | AJ41: 1 | AK41: 1700 | AL41: 1700 | AN41: =AL41 -> 1,700 | AQ41: 8 | AR41: 1x16
B42: FC3P.08 | AI42: Fancoil | AJ42: 1 | AK42: 1700 | AL42: 1700 | AO42: =AL42 -> 1,700 | AQ42: 8 | AR42: 1x16
B43: FC3P.09 | AI43: Fancoil | AJ43: 1 | AK43: 1700 | AL43: 1700 | AM43: =AL43 -> 1,700 | AQ43: 8 | AR43: 1x16
B44: FC3P.10 | AI44: Fancoil | AJ44: 1 | AK44: 1700 | AL44: 1700 | AN44: =AL44 -> 1,700 | AQ44: 8 | AR44: 1x16
B45: FC3P.11 | AI45: Fancoil | AJ45: 1 | AK45: 1700 | AL45: 1700 | AO45: =AL45 -> 1,700 | AQ45: 8 | AR45: 1x16
B46: FC3P.12 | AI46: Fancoil | AJ46: 1 | AK46: 1700 | AL46: 1700 | AM46: =AL46 -> 1,700 | AQ46: 8 | AR46: 1x16
B47: FC3P.13 | AI47: Fancoil | AJ47: 1 | AK47: 1700 | AL47: 1700 | AN47: =AL47 -> 1,700 | AQ47: 8 | AR47: 1x16
B48: FC3P.14 | AI48: Fancoil | AJ48: 1 | AK48: 1700 | AL48: 1700 | AO48: =AL48 -> 1,700 | AQ48: 8 | AR48: 1x16
B49: FC3P.15 | AI49: Fancoil | AJ49: 1 | AK49: 1700 | AL49: 1700 | AM49: =AL49 -> 1,700 | AQ49: 8 | AR49: 1x16
B50: FC3P.16 | AI50: Fancoil | AJ50: 1 | AK50: 1700 | AL50: 1700 | AN50: =AL50 -> 1,700 | AQ50: 8 | AR50: 1x16
B51: FC3P.17 | AI51: Fancoil | AJ51: 1 | AK51: 1700 | AL51: 1700 | AO51: =AL51 -> 1,700 | AQ51: 8 | AR51: 1x16
B52: FC3P.18 | AI52: Fancoil | AJ52: 1 | AK52: 1700 | AL52: 1700 | AM52: =AL52 -> 1,700 | AQ52: 8 | AR52: 1x16
B53: FC3P.19 | AI53: Fancoil | AJ53: 1 | AK53: 1700 | AL53: 1700 | AN53: =AL53 -> 1,700 | AQ53: 8 | AR53: 1x16
B54: FC3P.20 | AI54: Fancoil | AJ54: 1 | AK54: 1700 | AL54: 1700 | AO54: =AL54 -> 1,700 | AQ54: 8 | AR54: 1x16
B55: FC3P.21 | AI55: Fancoil | AJ55: 1 | AK55: 3500 | AL55: 3500 | AM55: =AL55 -> 3,500 | AQ55: 16 | AR55: 1x25
B56: FC3P.22 | AI56: Fancoil | AJ56: 1 | AK56: 3500 | AL56: 3500 | AN56: =AL56 -> 3,500 | AQ56: 16 | AR56: 1x25
B57: FC3P.23 | AI57: Fancoil | AJ57: 1 | AK57: 3500 | AL57: 3500 | AO57: =AL57 -> 3,500 | AQ57: 16 | AR57: 1x25
B58: FC3P.24 | AI58: Fancoil | AJ58: 1 | AK58: 3900 | AL58: 3900 | AM58: =AL58 -> 3,900 | AQ58: 18 | AR58: 1x25
B59: FC3P.25 | AI59: Fancoil | AJ59: 1 | AK59: 3900 | AL59: 3900 | AN59: =AL59 -> 3,900 | AQ59: 18 | AR59: 1x25
B60: FC3P.26 | AI60: Fancoil | AJ60: 1 | AK60: 3900 | AL60: 3900 | AO60: =AL60 -> 3,900 | AQ60: 18 | AR60: 1x25
B61: FC3P.27 | AI61: Fancoil | AJ61: 1 | AK61: 4200 | AL61: 4200 | AM61: =AL61 -> 4,200 | AQ61: 19 | AR61: 1x25
B62: FC3P.28 | AI62: Fancoil | AJ62: 1 | AK62: 4200 | AL62: 4200 | AN62: =AL62 -> 4,200 | AQ62: 19 | AR62: 1x25
B63: FC3P.29 | AI63: Fancoil | AJ63: 1 | AK63: 4200 | AL63: 4200 | AO63: =AL63 -> 4,200 | AQ63: 19 | AR63: 1x25
B64: FC3P.30 | AI64: Fancoil | AJ64: 1 | AK64: 1080 | AL64: 1080 | AM64: =AL64 -> 1,080 | AQ64: 5 | AR64: 1x16
B65: FC3P.31 | AI65: Fancoil | AJ65: 1 | AK65: 1080 | AL65: 1080 | AN65: =AL65 -> 1,080 | AQ65: 5 | AR65: 1x16
B66: FC3P.32 | AI66: Fancoil | AJ66: 1 | AK66: 1080 | AL66: 1080 | AO66: =AL66 -> 1,080 | AQ66: 5 | AR66: 1x16
B67: Rsva. | AI67: Reserva | AJ67: 1 | AK67: 2000 | AL67: 2000 | AM67: =AL67 -> 2,000 | AQ67: 9 | AR67: 1x16
B68: Rsva. | AI68: Reserva | AJ68: 1 | AK68: 2000 | AL68: 2000 | AN68: =AL68 -> 2,000 | AQ68: 9 | AR68: 1x16
B69: Rsva. | AI69: Reserva | AJ69: 1 | AK69: 2000 | AL69: =(AE69*AF69)+(AG69*AH69)+(AJ69*AK69)+(AA69*AB69)+(AC69*AD69) -> 2000 | AO69: =AL69 -> 2,000 | AQ69: 9 | AR69: 1x16
A70: TOTAL GENERAL | AK70: Σ | AL70: =SUM(AL4:AL69) -> 106990 | AM70: =SUM(AM4:AM69) -> 35180 | AN70: 35780 | AO70: 36030 | AP70: 0 | AQ70: =AK77 -> 122 | AR70: =AK78 -> 3x150
AI73: Potencia instalada - Σpotencia | AJ73: PI | AK73: =AL70 -> 106,990
AI74: factor de potencia - | AJ74: fp | AK74: 0.8
AI75: factor de demanda - Anexo 3 ANDE | AJ75: fd | AK75: =IF(AK73<=2700,1, IF(AK73<=3800,0.95, IF(AK73<=7200,0.9, IF(AK73<=12000,0.85, IF(AK73<=20000,0.8, IF(AK73<=30000,0.75, IF(AK73<=50000,0.7, IF(AK73<=80000,0.65, IF(AK73<=120000,0.6, IF(AK73<=170000,0.55, IF(AK73<=250000,0.5, 0.45))))))))))) -> 0.6
AI76: Potencia Demandada - Pd = PI*fd | AJ76: Pd | AK76: =AK73*AK75 -> 64,194
AI77: Corriente - Id = Pd/(√3*380*fp) | AJ77: Id | AK77: =AK76/(SQRT(3)*380*AK74) -> 122
AI78: LLave Limitadora | AJ78: TM | AK78: 3x150
AI79: Alimentador | AJ79: S | AK79: 4x50
AI80: Seccion de Conductor de Proteccion | AJ80: S_p | AK80: =_xlfn.CONCAT("1x",IF(VALUE(RIGHT(AK79, LEN(AK79) - FIND("x", AK79))) <= 16, VALUE(RIGHT(AK79, LEN(AK79) - FIND("x", AK79))), IF(AND(VALUE(RIGHT(AK79, LEN(AK79) - FIND("x", AK79))) > 16, VALUE(RIGHT(AK79, LEN(AK79) - FIND("x", AK79))) <= 35), 16, VALUE(RIGHT(AK79, LEN(AK79) - FIND("x", AK79)))/2))) -> 1x25
AI81: Corriente admisible Conductor - Iz | AJ81: Iz | AK81: 163
AI82: Longitud (m) | AJ82: L | AK82: 20
A84: CUADRO DE CARGAS ELÉCTRICAS TABLERO-TSE-3P
A85: DEPENDENCIA | B85: CTO. | C85: TIPO 1 - LED 38 W | E85: TIPO 2 - LED Est. Adosar 39 W | G85: TIPO 3 - LED Circular Embutido 25 W | I85: TIPO 4 - Spot LED CIrcular Emb. 6 W | K85: TIPO 13 - Aplique de Adosar | M85: TIPO 6 - Aplique de Adosar LED 5.5 W | O85: TIPO 7 - Adosar Resina LED 6 W | Q85: TIPO 8 - LED Circular Embutido 23 W | S85: TIPO 9 - LED Colgante 35 W | U85: TIPO 10 - Proyector LED 50 W | W85: TIPO 11 - LED Embutido Uni. 1.7 W | Y85: TIPO 12 - LED Colgante 25 W | AA85: TOMA SIMPLE | AC85: TOMA SCHUKO | AE85: ESTACIONES DE TRABAJO | AG85: SECAMANOS | AI85: DESCRIPCIÓN | AJ85: CANT. | AK85: POTENCIA (W) | AL85: POTENCIA TOTAL (W) | AM85: FASES | AQ85: CORRIENTE (A) | AR85: TM (A)
C86: CANT. | D86: POTENCIA UNIT. (W) | E86: CANT. | F86: POTENCIA UNIT. (W) | G86: CANT. | H86: POTENCIA UNIT. (W) | I86: CANT. | J86: POTENCIA UNIT. (W) | K86: CANT. | L86: POTENCIA UNIT. (W) | M86: CANT. | N86: POTENCIA UNIT. (W) | O86: CANT. | P86: POTENCIA UNIT. (W) | Q86: CANT. | R86: POTENCIA UNIT. (W) | S86: CANT. | T86: POTENCIA UNIT. (W) | U86: CANT. | V86: POTENCIA UNIT. (W) | W86: CANT. | X86: POTENCIA UNIT. (W) | Y86: CANT. | Z86: POTENCIA UNIT. (W) | AA86: CANT. | AB86: POTENCIA UNIT. (W) | AC86: CANT. | AD86: POTENCIA UNIT. (W) | AE86: CANT. | AF86: POTENCIA UNIT. (W) | AG86: CANT. | AH86: POTENCIA UNIT. (W) | AM86: R | AN86: S | AO86: T | AP86: RST
B87: IE3P.01 | E87: 7 | F87: 39 | AL87: =(C87*D87)+(E87*F87)+(G87*H87)+(I87*J87)+(K87*L87)+(M87*N87)+(O87*P87)+(Q87*R87)+(S87*T87)+(U87*V87)+(W87*X87)+(Y87*Z87)+(AA87*AB87)+(AC87*AD87)+(AE87*AF87)+(AG87*AH87)+(AJ87*AK87) -> 273 | AM87: =AL87 -> 273 | AQ87: =AL87/220 -> 1 | AR87: 1x10
B88: IE3P.02 | E88: 5 | F88: 39 | AL88: =(C88*D88)+(E88*F88)+(G88*H88)+(I88*J88)+(K88*L88)+(M88*N88)+(O88*P88)+(Q88*R88)+(S88*T88)+(U88*V88)+(W88*X88)+(Y88*Z88)+(AA88*AB88)+(AC88*AD88)+(AE88*AF88)+(AG88*AH88)+(AJ88*AK88) -> 195 | AN88: =AL88 -> 195 | AQ88: 1 | AR88: 1x10
B89: IE3P.03 | E89: 16 | F89: 39 | AL89: 624 | AO89: =AL89 -> 624 | AQ89: 3 | AR89: 1x10
B90: IE3P.04 | E90: 11 | F90: 39 | AL90: 429 | AN90: =AL90 -> 429 | AQ90: 2 | AR90: 1x10
B91: IE3P.05 | C91: 25 | D91: 38 | AL91: 950 | AM91: =AL91 -> 950 | AQ91: 4 | AR91: 1x10
B92: IE3P.06 | C92: 20 | D92: 38 | AL92: 760 | AN92: =AL92 -> 760 | AQ92: 3 | AR92: 1x10
B93: IE3P.07 | C93: 17 | D93: 38 | G93: 4 | H93: 25 | AL93: 746 | AO93: =AL93 -> 746 | AQ93: 3 | AR93: 1x10
B94: IE3P.08 | C94: 16 | D94: 38 | G94: 2 | H94: 25 | AL94: 658 | AM94: =AL94 -> 658 | AQ94: 3 | AR94: 1x10
B95: IE3P.09 | C95: 12 | D95: 38 | AL95: 456 | AO95: =AL95 -> 456 | AQ95: 2 | AR95: 1x10
B96: IE3P.10 | E96: 3 | F96: 39 | G96: 10 | H96: 25 | I96: 9 | J96: 6 | AL96: 421 | AN96: =AL96 -> 421 | AQ96: 2 | AR96: 1x10
B97: IE3P.11 | E97: 1 | F97: 39 | G97: 4 | H97: 25 | I97: 4 | J97: 6 | AL97: 163 | AN97: =AL97 -> 163 | AQ97: 1 | AR97: 1x10
B98: IE3P.12 | G98: 20 | H98: 25 | AL98: 500 | AO98: =AL98 -> 500 | AQ98: 2 | AR98: 1x10
B99: IE3P.13 | G99: 13 | H99: 25 | AL99: 325 | AM99: =AL99 -> 325 | AQ99: 1 | AR99: 1x10
B100: IE3P.14 | G100: 31 | H100: 25 | I100: 1 | J100: 6 | AL100: 781 | AN100: =AL100 -> 781 | AQ100: 4 | AR100: 1x10
B101: IE3P.15 | K101: 21 | L101: 39 | AL101: 819 | AM101: =AL101 -> 819 | AQ101: 4 | AR101: 1x10
B102: TE3P.01 | AE102: 4 | AF102: 250 | AL102: 1000 | AO102: =AL102 -> 1,000 | AQ102: 5 | AR102: 1x16
B103: TE3P.02 | AE103: 6 | AF103: 250 | AL103: 1500 | AN103: =AL103 -> 1,500 | AQ103: 7 | AR103: 1x16
B104: TE3P.03 | AE104: 6 | AF104: 250 | AL104: 1500 | AM104: =AL104 -> 1,500 | AQ104: 7 | AR104: 1x16
B105: TE3P.04 | AE105: 4 | AF105: 250 | AL105: 1000 | AO105: =AL105 -> 1,000 | AQ105: 5 | AR105: 1x16
B106: TE3P.05 | AE106: 6 | AF106: 250 | AL106: 1500 | AN106: =AL106 -> 1,500 | AQ106: 7 | AR106: 1x16
B107: TE3P.06 | AE107: 6 | AF107: 250 | AL107: 1500 | AO107: =AL107 -> 1,500 | AQ107: 7 | AR107: 1x16
B108: TE3P.07 | AE108: 6 | AF108: 250 | AL108: 1500 | AM108: =AL108 -> 1,500 | AQ108: 7 | AR108: 1x16
B109: TE3P.08 | AE109: 6 | AF109: 250 | AL109: 1500 | AN109: =AL109 -> 1,500 | AQ109: 7 | AR109: 1x16
B110: TE3P.09 | AE110: 6 | AF110: 250 | AL110: 1500 | AO110: =AL110 -> 1,500 | AQ110: 7 | AR110: 1x16
B111: TE3P.10 | AE111: 6 | AF111: 250 | AL111: 1500 | AM111: =AL111 -> 1,500 | AQ111: 7 | AR111: 1x16
B112: TE3P.11 | AE112: 4 | AF112: 250 | AL112: 1000 | AN112: =AL112 -> 1,000 | AQ112: 5 | AR112: 1x16
B113: TE3P.12 | AE113: 6 | AF113: 250 | AL113: 1500 | AO113: =AL113 -> 1,500 | AQ113: 7 | AR113: 1x16
B114: TE3P.13 | AA114: 3 | AB114: 200 | AL114: 600 | AM114: =AL114 -> 600 | AQ114: 3 | AR114: 1x16
B115: TE3P.14 | AA115: 1 | AB115: 100 | AL115: 100 | AM115: =AL115 -> 100 | AQ115: 0 | AR115: 1x16
B116: TE3P.15 | AA116: 1 | AB116: 100 | AL116: 100 | AM116: =AL116 -> 100 | AQ116: 0 | AR116: 1x16
B117: TE3P.16 | AA117: 1 | AB117: 100 | AL117: 100 | AM117: =AL117 -> 100 | AQ117: 0 | AR117: 1x16
B118: Rsva. | AI118: Reserva | AJ118: 1 | AK118: 2000 | AL118: 2000 | AM118: =AL118 -> 2,000 | AQ118: 9 | AR118: 1x16
B119: Rsva. | AI119: Reserva | AJ119: 1 | AK119: 2000 | AL119: 2000 | AN119: =AL119 -> 2,000 | AQ119: 9 | AR119: 1x16
B120: Rsva. | AI120: Reserva | AJ120: 1 | AK120: 2000 | AL120: 2000 | AO120: =AL120 -> 2,000 | AQ120: 9 | AR120: 1x16
A121: TOTAL GENERAL | AK121: Σ | AL121: =SUM(AL87:AL120) -> 31500 | AM121: =SUM(AM87:AM120) -> 10425 | AN121: 10249 | AO121: 10826 | AP121: 0 | AQ121: =AK128 -> 60 | AR121: =AK129 -> 3x63
AI124: Potencia instalada - Σpotencia | AJ124: PI | AK124: =AL121 -> 31,500
AI125: factor de potencia - | AJ125: fp | AK125: 0.8
AI126: factor de demanda - Anexo 3 ANDE | AJ126: fd | AK126: 1
AI127: Potencia Demandada - Pd = PI*fd | AJ127: Pd | AK127: =AK124*AK126 -> 31,500
AI128: Corriente - Id = Pd/(√3*380*fp) | AJ128: Id | AK128: =AK127/(SQRT(3)*380*AK125) -> 60
AI129: LLave Limitadora | AJ129: TM | AK129: 3x63
AI130: Alimentador | AJ130: S | AK130: 4x16
AI131: Seccion de Conductor de Proteccion | AJ131: S_p | AK131: =_xlfn.CONCAT("1x",IF(VALUE(RIGHT(AK130, LEN(AK130) - FIND("x", AK130))) <= 16, VALUE(RIGHT(AK130, LEN(AK130) - FIND("x", AK130))), IF(AND(VALUE(RIGHT(AK130, LEN(AK130) - FIND("x", AK130))) > 16, VALUE(RIGHT(AK130, LEN(AK130) - FIND("x", AK130))) <= 35), 16, VALUE(RIGHT(AK130, LEN(AK130) - FIND("x", AK130)))/2))) -> 1x16
AI132: Corriente admisible Conductor - Iz | AJ132: Iz | AK132: 90
AI133: Longitud (m) | AJ133: L | AK133: 20

Sheet TSE-TSN-AZ
A1: CUADRO DE CARGAS ELÉCTRICAS TABLERO-TSN-AZ
A2: DEPENDENCIA | B2: CTO. | C2: TIPO 1 - LED 38 W | E2: TIPO 2 - LED Est. Adosar 39 W | G2: TIPO 3 - LED Circular Embutido 25 W | I2: TIPO 4 - Spot LED CIrcular Emb. 6 W | K2: TIPO 5 - Spot Cir. Movil LED 12 W | M2: TIPO 6 - Aplique de Adosar LED 5.5 W | O2: TIPO 7 - Adosar Resina LED 6 W | Q2: TIPO 8 - LED Circular Embutido 23 W | S2: TIPO 9 - LED Colgante 35 W | U2: TIPO 10 - Proyector LED 50 W | W2: TIPO 11 - LED Embutido Uni. 1.7 W | Y2: TIPO 13 - Aplique de Adosar | AA2: TOMA SIMPLE | AC2: TOMA SCHUKO | AE2: ESTACIONES DE TRABAJO | AG2: SECAMANOS | AI2: DESCRIPCIÓN | AJ2: CANT. | AK2: POTENCIA (W) | AL2: POTENCIA TOTAL (W) | AM2: FASES | AQ2: CORRIENTE (A) | AR2: TM (A)
C3: CANT. | D3: POTENCIA UNIT. (W) | E3: CANT. | F3: POTENCIA UNIT. (W) | G3: CANT. | H3: POTENCIA UNIT. (W) | I3: CANT. | J3: POTENCIA UNIT. (W) | K3: CANT. | L3: POTENCIA UNIT. (W) | M3: CANT. | N3: POTENCIA UNIT. (W) | O3: CANT. | P3: POTENCIA UNIT. (W) | Q3: CANT. | R3: POTENCIA UNIT. (W) | S3: CANT. | T3: POTENCIA UNIT. (W) | U3: CANT. | V3: POTENCIA UNIT. (W) | W3: CANT. | X3: POTENCIA UNIT. (W) | Y3: CANT. | Z3: POTENCIA UNIT. (W) | AA3: CANT. | AB3: POTENCIA UNIT. (W) | AC3: CANT. | AD3: POTENCIA UNIT. (W) | AE3: CANT. | AF3: POTENCIA UNIT. (W) | AG3: CANT. | AH3: POTENCIA UNIT. (W) | AM3: R | AN3: S | AO3: T | AP3: RST
B4: TNAZ.01 | AE4: 3 | AF4: 250 | AL4: =(C4*D4)+(E4*F4)+(G4*H4)+(I4*J4)+(K4*L4)+(M4*N4)+(O4*P4)+(Q4*R4)+(S4*T4)+(U4*V4)+(W4*X4)+(Y4*Z4)+(AA4*AB4)+(AC4*AD4)+(AE4*AF4)+(AG4*AH4)+(AJ4*AK4) -> 750 | AM4: =AL4 -> 750 | AQ4: =AL4/220 -> 3 | AR4: 1x16
B5: TNAZ.02 | AE5: 2 | AF5: 250 | AL5: =(C5*D5)+(E5*F5)+(G5*H5)+(I5*J5)+(K5*L5)+(M5*N5)+(O5*P5)+(Q5*R5)+(S5*T5)+(U5*V5)+(W5*X5)+(Y5*Z5)+(AA5*AB5)+(AC5*AD5)+(AE5*AF5)+(AG5*AH5)+(AJ5*AK5) -> 500 | AN5: =AL5 -> 500 | AQ5: 2 | AR5: 1x16
B6: TNAZ.03 | AE6: 2 | AF6: 250 | AL6: 500 | AO6: =AL6 -> 500 | AQ6: 2 | AR6: 1x16
B7: TNAZ.04 | AE7: 3 | AF7: 250 | AL7: 750 | AN7: =AL7 -> 750 | AQ7: 3 | AR7: 1x16
B8: TNAZ.05 | AE8: 4 | AF8: 250 | AL8: 1000 | AO8: =AL8 -> 1,000 | AQ8: 5 | AR8: 1x16
B9: TNAZ.06 | AE9: 2 | AF9: 250 | AL9: 500 | AM9: =AL9 -> 500 | AQ9: 2 | AR9: 1x16
B10: TNAZ.07 | AA10: 2 | AB10: 100 | AL10: 200 | AM10: =AL10 -> 200 | AQ10: 1 | AR10: 1x16
B11: TNAZ.08 | AA11: 2 | AB11: 100 | AL11: 200 | AN11: =AL11 -> 200 | AQ11: 1 | AR11: 1x16
B12: TNAZ.09 | AA12: 7 | AB12: 100 | AL12: 700 | AM12: =AL12 -> 700 | AQ12: 3 | AR12: 1x16
B13: TNAZ.10 | AA13: 4 | AB13: 100 | AL13: 400 | AN13: =AL13 -> 400 | AQ13: 2 | AR13: 1x16
B14: TSAZ.01 | AC14: 1 | AD14: 1000 | AL14: 1000 | AO14: =AL14 -> 1,000 | AQ14: 5 | AR14: 1x16
B15: SMAZ.01 | AG15: 1 | AH15: 1800 | AL15: 1800 | AN15: =AL15 -> 1,800 | AQ15: 8 | AR15: 1x16
B16: SMAZ.02 | AG16: 1 | AH16: 1800 | AL16: 1800 | AM16: =AL16 -> 1,800 | AQ16: 8 | AR16: 1x16
B17: FCAZ.01 | AI17: Fancoil | AJ17: 1 | AK17: 1500 | AL17: 1500 | AO17: =AL17 -> 1,500 | AQ17: 7 | AR17: 1x16
B18: FCAZ.02 | AI18: Fancoil | AJ18: 1 | AK18: 1500 | AL18: 1500 | AN18: =AL18 -> 1,500 | AQ18: 7 | AR18: 1x16
B19: FCAZ.03 | AI19: Fancoil | AJ19: 1 | AK19: 1700 | AL19: 1700 | AM19: =AL19 -> 1,700 | AQ19: 8 | AR19: 1x16
B20: FCAZ.04 | AI20: Fancoil | AJ20: 1 | AK20: 3500 | AL20: 3500 | AO20: =AL20 -> 3,500 | AQ20: 16 | AR20: 1x25
B21: FCAZ.05 | AI21: Fancoil | AJ21: 1 | AK21: 3900 | AL21: 3900 | AN21: =AL21 -> 3,900 | AQ21: 18 | AR21: 1x25
B22: FCAZ.06 | AI22: Fancoil | AJ22: 1 | AK22: 4200 | AL22: 4200 | AM22: =AL22 -> 4,200 | AQ22: 19 | AR22: 1x25
B23: FCAZ.07 | AI23: Fancoil | AJ23: 1 | AK23: 4200 | AL23: 4200 | AO23: =AL23 -> 4,200 | AQ23: 19 | AR23: 1x25
B24: FCAZ.08 | AI24: Fancoil | AJ24: 1 | AK24: 4200 | AL24: 4200 | AN24: =AL24 -> 4,200 | AQ24: 19 | AR24: 1x25
B25: FCAZ.09 | AI25: Recuperador de Calor | AJ25: 1 | AK25: 1080 | AL25: 1080 | AM25: =AL25 -> 1,080 | AQ25: 5 | AR25: 1x16
B26: Rsva. | AI26: Reserva | AJ26: 1 | AK26: 2000 | AL26: 2000 | AM26: =AL26 -> 2,000 | AQ26: 9 | AR26: 1x16
B27: Rsva. | AI27: Reserva | AJ27: 1 | AK27: 2000 | AL27: 2000 | AN27: =AL27 -> 2,000 | AQ27: 9 | AR27: 1x16
B28: Rsva. | AI28: Reserva | AJ28: 1 | AK28: 2000 | AL28: 2000 | AO28: =AL28 -> 2,000 | AQ28: 9 | AR28: 1x16
A29: TOTAL GENERAL | AK29: Σ | AL29: =SUM(AL4:AL28) -> 41880 | AM29: =SUM(AM4:AM28) -> 12930 | AN29: 15250 | AO29: 13700 | AP29: 0 | AQ29: =AK36 -> 56 | AR29: =AK37 -> 3x63
AI32: Potencia instalada - Σpotencia | AJ32: PI | AK32: =AL29 -> 41,880
AI33: factor de potencia - | AJ33: fp | AK33: 0.8
AI34: factor de demanda - Anexo 3 ANDE | AJ34: fd | AK34: =IF(AK32<=2700,1, IF(AK32<=3800,0.95, IF(AK32<=7200,0.9, IF(AK32<=12000,0.85, IF(AK32<=20000,0.8, IF(AK32<=30000,0.75, IF(AK32<=50000,0.7, IF(AK32<=80000,0.65, IF(AK32<=120000,0.6, IF(AK32<=170000,0.55, IF(AK32<=250000,0.5, 0.45))))))))))) -> 0.7
AI35: Potencia Demandada - Pd = PI*fd | AJ35: Pd | AK35: =AK32*AK34 -> 29,316
AI36: Corriente - Id = Pd/(√3*380*fp) | AJ36: Id | AK36: =AK35/(SQRT(3)*380*AK33) -> 56
AI37: LLave Limitadora | AJ37: TM | AK37: 3x63
AI38: Alimentador | AJ38: S | AK38: 4x16
AI39: Seccion de Conductor de Proteccion | AJ39: S_p | AK39: =_xlfn.CONCAT("1x",IF(VALUE(RIGHT(AK38, LEN(AK38) - FIND("x", AK38))) <= 16, VALUE(RIGHT(AK38, LEN(AK38) - FIND("x", AK38))), IF(AND(VALUE(RIGHT(AK38, LEN(AK38) - FIND("x", AK38))) > 16, VALUE(RIGHT(AK38, LEN(AK38) - FIND("x", AK38))) <= 35), 16, VALUE(RIGHT(AK38, LEN(AK38) - FIND("x", AK38)))/2))) -> 1x16
AI40: Corriente admisible Conductor - Iz | AJ40: Iz | AK40: 90
AI41: Longitud (m) | AJ41: L | AK41: 25
A44: CUADRO DE CARGAS ELÉCTRICAS TABLERO-TSE-AZ
A45: DEPENDENCIA | B45: CTO. | C45: TIPO 1 - LED 38 W | E45: TIPO 2 - LED Est. Adosar 39 W | G45: TIPO 3 - LED Circular Embutido 25 W | I45: TIPO 4 - Spot LED CIrcular Emb. 6 W | K45: TIPO 5 - Spot Cir. Movil LED 12 W | M45: TIPO 6 - Aplique de Adosar LED 5.5 W | O45: TIPO 7 - Adosar Resina LED 6 W | Q45: TIPO 8 - LED Circular Embutido 23 W | S45: TIPO 9 - LED Colgante 35 W | U45: TIPO 10 - Proyector LED 50 W | W45: TIPO 11 - LED Embutido Uni. 1.7 W | Y45: TIPO 13 - Aplique de Adosar | AA45: TOMA SIMPLE | AC45: TOMA SCHUKO | AE45: ESTACIONES DE TRABAJO | AG45: SECAMANOS | AI45: DESCRIPCIÓN | AJ45: CANT. | AK45: POTENCIA (W) | AL45: POTENCIA TOTAL (W) | AM45: FASES | AQ45: CORRIENTE (A) | AR45: TM (A)
C46: CANT. | D46: POTENCIA UNIT. (W) | E46: CANT. | F46: POTENCIA UNIT. (W) | G46: CANT. | H46: POTENCIA UNIT. (W) | I46: CANT. | J46: POTENCIA UNIT. (W) | K46: CANT. | L46: POTENCIA UNIT. (W) | M46: CANT. | N46: POTENCIA UNIT. (W) | O46: CANT. | P46: POTENCIA UNIT. (W) | Q46: CANT. | R46: POTENCIA UNIT. (W) | S46: CANT. | T46: POTENCIA UNIT. (W) | U46: CANT. | V46: POTENCIA UNIT. (W) | W46: CANT. | X46: POTENCIA UNIT. (W) | Y46: CANT. | Z46: POTENCIA UNIT. (W) | AA46: CANT. | AB46: POTENCIA UNIT. (W) | AC46: CANT. | AD46: POTENCIA UNIT. (W) | AE46: CANT. | AF46: POTENCIA UNIT. (W) | AG46: CANT. | AH46: POTENCIA UNIT. (W) | AM46: R | AN46: S | AO46: T | AP46: RST
B47: IEAZ.01 | E47: 13 | F47: 39 | AL47: =(C47*D47)+(E47*F47)+(G47*H47)+(I47*J47)+(K47*L47)+(M47*N47)+(O47*P47)+(Q47*R47)+(S47*T47)+(U47*V47)+(W47*X47)+(Y47*Z47)+(AA47*AB47)+(AC47*AD47)+(AE47*AF47)+(AG47*AH47)+(AJ47*AK47) -> 507 | AM47: =AL47 -> 507 | AQ47: =AL47/220 -> 2 | AR47: 1x10
B48: IEAZ.02 | E48: 14 | F48: 39 | AL48: =(C48*D48)+(E48*F48)+(G48*H48)+(I48*J48)+(K48*L48)+(M48*N48)+(O48*P48)+(Q48*R48)+(S48*T48)+(U48*V48)+(W48*X48)+(Y48*Z48)+(AA48*AB48)+(AC48*AD48)+(AE48*AF48)+(AG48*AH48)+(AJ48*AK48) -> 546 | AN48: =AL48 -> 546 | AQ48: 2 | AR48: 1x10
B49: IEAZ.03 | E49: 21 | F49: 39 | AL49: 819 | AO49: =AL49 -> 819 | AQ49: 4 | AR49: 1x10
B50: IEAZ.04 | G50: 15 | H50: 25 | AL50: 375 | AM50: =AL50 -> 375 | AQ50: 2 | AR50: 1x10
B51: IEAZ.05 | C51: 18 | D51: 38 | AL51: 684 | AN51: =AL51 -> 684 | AQ51: 3 | AR51: 1x10
B52: IEAZ.06 | E52: 1 | F52: 39 | G52: 5 | H52: 25 | I52: 4 | J52: 6 | AL52: 188 | AO52: =AL52 -> 188 | AQ52: 1 | AR52: 1x10
B53: IEAZ.07 | E53: 2 | F53: 39 | AL53: 78 | AM53: =AL53 -> 78 | AQ53: 0 | AR53: 1x10
B54: IEAZ.08 | Y54: 21 | Z54: 39 | AL54: 819 | AM54: =AL54 -> 819 | AQ54: 4 | AR54: 1x10
B55: IEAZ.09 | Y55: 7 | Z55: 39 | AL55: 273 | AO55: =AL55 -> 273 | AQ55: 1 | AR55: 1x10
B56: TEAZ.01 | AE56: 7 | AF56: 250 | AL56: 1750 | AN56: =AL56 -> 1,750 | AQ56: 8 | AR56: 1x16
B57: TEAZ.02 | AE57: 3 | AF57: 250 | AL57: 750 | AO57: =AL57 -> 750 | AQ57: 3 | AR57: 1x16
B58: TEAZ.03 | AE58: 4 | AF58: 250 | AL58: 1000 | AM58: =AL58 -> 1,000 | AQ58: 5 | AR58: 1x16
B59: TEAZ.04 | AE59: 5 | AF59: 250 | AL59: 1250 | AO59: =AL59 -> 1,250 | AQ59: 6 | AR59: 1x16
B60: TEAZ.05 | AE60: 6 | AF60: 250 | AL60: 1500 | AM60: =AL60 -> 1,500 | AQ60: 7 | AR60: 1x16
B61: TEAZ.06 | AE61: 2 | AF61: 250 | AL61: 500 | AN61: =AL61 -> 500 | AQ61: 2 | AR61: 1x16
B62: TEAZ.07 | AA62: 1 | AB62: 200 | AL62: 200 | AO62: =AL62 -> 200 | AQ62: 1 | AR62: 1x16
B63: TEAZ.08 | AA63: 2 | AB63: 200 | AL63: 400 | AO63: =AL63 -> 400 | AQ63: 2 | AR63: 1x16
B64: TEAZ.09 | AA64: 2 | AB64: 200 | AL64: 400 | AN64: =AL64 -> 400 | AQ64: 2 | AR64: 1x16
B65: Rsva. | AI65: Reserva | AJ65: 1 | AK65: 2000 | AL65: 2000 | AM65: =AL65 -> 2,000 | AQ65: =AL65/220 -> 9 | AR65: 1x16
B66: Rsva. | AI66: Reserva | AJ66: 1 | AK66: 2000 | AL66: 2000 | AN66: =AL66 -> 2,000 | AQ66: =AL66/220 -> 9 | AR66: 1x16
B67: Rsva. | AI67: Reserva | AJ67: 1 | AK67: 2000 | AL67: 2000 | AO67: =AL67 -> 2,000 | AQ67: =AL67/220 -> 9 | AR67: 1x16
B68: TSE-ASC1 | AI68: Tablero Seccional TSE-ASC1 | AJ68: 1 | AK68: ='TSE-ASC1'!F10 -> 18521 | AL68: 18521 | AM68: ='TSE-ASC1'!G10 -> 6,121 | AN68: ='TSE-ASC1'!H10 -> 6,400 | AO68: ='TSE-ASC1'!I10 -> 6,000 | AP68: ='TSE-ASC1'!J10 -> 18,000 | AQ68: ='TSE-ASC1'!K10 -> 35 | AR68: ='TSE-ASC1'!L10 -> 3x40
A69: TOTAL GENERAL | AK69: Σ | AL69: =SUM(AL47:AL68) -> 36560 | AM69: =SUM(AM47:AM68) -> 12400 | AN69: 12280 | AO69: 11880 | AP69: 18000 | AQ69: =AK76 -> 69 | AR69: =AK77 -> 3x100
AI72: Potencia instalada - Σpotencia | AJ72: PI | AK72: =AL69 -> 36,560
AI73: factor de potencia - | AJ73: fp | AK73: 0.8
AI74: factor de demanda - Anexo 3 ANDE | AJ74: fd | AK74: 1
AI75: Potencia Demandada - Pd = PI*fd | AJ75: Pd | AK75: =AK72*AK74 -> 36,560
AI76: Corriente - Id = Pd/(√3*380*fp) | AJ76: Id | AK76: =AK75/(SQRT(3)*380*AK73) -> 69
AI77: LLave Limitadora | AJ77: TM | AK77: 3x100
AI78: Alimentador | AJ78: S | AK78: 4x25
AI79: Seccion de Conductor de Proteccion | AJ79: S_p | AK79: =_xlfn.CONCAT("1x",IF(VALUE(RIGHT(AK78, LEN(AK78) - FIND("x", AK78))) <= 16, VALUE(RIGHT(AK78, LEN(AK78) - FIND("x", AK78))), IF(AND(VALUE(RIGHT(AK78, LEN(AK78) - FIND("x", AK78))) > 16, VALUE(RIGHT(AK78, LEN(AK78) - FIND("x", AK78))) <= 35), 16, VALUE(RIGHT(AK78, LEN(AK78) - FIND("x", AK78)))/2))) -> 1x16
AI80: Corriente admisible Conductor - Iz | AJ80: Iz | AK80: 115
AI81: Longitud (m) | AJ81: L | AK81: 25

Sheet TSE-ASC1
A1: CUADRO DE CARGAS ELÉCTRICAS TABLERO-TSE-ASC 1
B2: CTO. | C2: DESCRIPCIÓN | D2: CANT. | E2: POTENCIA (W) | F2: POTENCIA TOTAL (W) | G2: FASES | K2: CORRIENTE (A) | L2: TM (A)
G3: R | H3: S | I3: T | J3: RST
B4: #Asc.01 | C4: motor de Ascensor 01 | D4: 1 | E4: 4500 | F4: =+(D4*E4) -> 4500 | G4: =J4/3 -> 1,500 | H4: =J4/3 -> 1,500 | I4: =J4/3 -> 1,500 | J4: =F4 -> 4,500 | K4: =F4/660 -> 7 | L4: 3x25
B5: #Asc.02 | C5: motor de Ascensor 02 | D5: 1 | E5: 4500 | F5: =+(D5*E5) -> 4500 | G5: =J5/3 -> 1,500 | H5: =J5/3 -> 1,500 | I5: =J5/3 -> 1,500 | J5: =F5 -> 4,500 | K5: =F5/660 -> 7 | L5: 3x25
B6: #Asc.03 | C6: motor de Ascensor 03 | D6: 1 | E6: 4500 | F6: 4500 | G6: 1,500 | H6: 1,500 | I6: 1,500 | J6: 4,500 | K6: 7 | L6: 3x25
B7: #Asc.04 | C7: motor de Ascensor 04 | D7: 1 | E7: 4500 | F7: 4500 | G7: 1,500 | H7: 1,500 | I7: 1,500 | J7: 4,500 | K7: 7 | L7: 3x25
B8: IEAsc.01 | C8: Lum. 16 - 11 W | D8: 11 | E8: 11 | F8: 121 | G8: =F8 -> 121 | K8: =F8/220 -> 1 | L8: 1x10
B9: TEAsc.01 | C9: Tomacorrientes | D9: 4 | E9: 100 | F9: 400 | H9: =F9 -> 400 | K9: =F9/220 -> 2 | L9: 1x16
A10: TOTAL GENERAL | E10: Σ | F10: =SUM(F4:F9) -> 18521 | G10: =SUM(G4:G9) -> 6121 | H10: =SUM(H4:H9) -> 6400 | I10: =SUM(I4:I9) -> 6000 | J10: =SUM(J4:J9) -> 18000 | K10: =E17 -> 35 | L10: =E18 -> 3x40
C13: Potencia instalada - Σpotencia | D13: PI | E13: =F10 -> 18,521
C14: factor de potencia - | D14: fp | E14: 0.8
C15: factor de demanda - Anexo 3 ANDE | D15: fd | E15: 1
C16: Potencia Demandada - Pd = PI*fd | D16: Pd | E16: =E13*E15 -> 18,521
C17: Corriente - Id = Pd/(√3*380*fp) | D17: Id | E17: =E16/(SQRT(3)*380*E14) -> 35
C18: LLave Limitadora | D18: TM | E18: 3x40
C19: Alimentador | D19: S | E19: 4x10
C20: Seccion de Conductor de Proteccion | D20: S_p | E20: =_xlfn.CONCAT("1x",IF(VALUE(RIGHT(E19, LEN(E19) - FIND("x", E19))) <= 16, VALUE(RIGHT(E19, LEN(E19) - FIND("x", E19))), IF(AND(VALUE(RIGHT(E19, LEN(E19) - FIND("x", E19))) > 16, VALUE(RIGHT(E19, LEN(E19) - FIND("x", E19))) <= 35), 16, VALUE(RIGHT(E19, LEN(E19) - FIND("x", E19)))/2))) -> 1x10
C21: Corriente admisible Conductor - Iz | D21: Iz | E21: 68
C22: Longitud (m) | D22: L | E22: 5

Sheet TSE-ASC2
A1: CUADRO DE CARGAS ELÉCTRICAS TABLERO-TSE-ASC 2
B2: CTO. | C2: DESCRIPCIÓN | D2: CANT. | E2: POTENCIA (W) | F2: POTENCIA TOTAL (W) | G2: FASES | K2: CORRIENTE (A) | L2: TM (A)
G3: R | H3: S | I3: T | J3: RST
B4: #Asc.01 | C4: motor de Ascensor 02 | D4: 1 | E4: 4500 | F4: =+(D4*E4) -> 4500 | G4: =J4/3 -> 1,500 | H4: =J4/3 -> 1,500 | I4: =J4/3 -> 1,500 | J4: =F4 -> 4,500 | K4: =F4/660 -> 7 | L4: 3x25
B5: IEAsc.01 | C5: Lum. 16 - 11 W | D5: 3 | E5: 11 | F5: =+(D5*E5) -> 33 | G5: =F5 -> 33 | K5: =F5/220 -> 0 | L5: 1x10
A6: TOTAL GENERAL | E6: Σ | F6: =SUM(F4:F5) -> 4533 | G6: =SUM(G4:G5) -> 1533 | H6: =SUM(H4:H5) -> 1500 | I6: =SUM(I4:I5) -> 1500 | J6: =SUM(J4:J5) -> 4500 | K6: =E13 -> 9 | L6: =E14 -> 3x25
C9: Potencia instalada - Σpotencia | D9: PI | E9: =F6 -> 4,533
C10: factor de potencia - | D10: fp | E10: 0.8
C11: factor de demanda - Anexo 3 ANDE | D11: fd | E11: 1
C12: Potencia Demandada - Pd = PI*fd | D12: Pd | E12: =E9*E11 -> 4,533
C13: Corriente - Id = Pd/(√3*380*fp) | D13: Id | E13: =E12/(SQRT(3)*380*E10) -> 9
C14: LLave Limitadora | D14: TM | E14: 3x25
C15: Alimentador | D15: S | E15: 4x4
C16: Seccion de Conductor de Proteccion | D16: S_p | E16: =_xlfn.CONCAT("1x",IF(VALUE(RIGHT(E15, LEN(E15) - FIND("x", E15))) <= 16, VALUE(RIGHT(E15, LEN(E15) - FIND("x", E15))), IF(AND(VALUE(RIGHT(E15, LEN(E15) - FIND("x", E15))) > 16, VALUE(RIGHT(E15, LEN(E15) - FIND("x", E15))) <= 35), 16, VALUE(RIGHT(E15, LEN(E15) - FIND("x", E15)))/2))) -> 1x4
C17: Corriente admisible Conductor - Iz | D17: Iz | E17: 42
C18: Longitud (m) | D18: L | E18: 5

Sheet TSN-CLI
A1: CUADRO DE CARGAS ELÉCTRICAS TABLERO-TSN-CLI
B2: CTO. | C2: DESCRIPCIÓN | D2: CANT. | E2: POTENCIA (W) | F2: POTENCIA TOTAL (W) | G2: FASES | K2: CORRIENTE (A) | L2: TM (A)
G3: R | H3: S | I3: T | J3: RST
B4: CHILLER.01 | C4: Chiller | D4: 1 | E4: 100,000 | F4: =+(D4*E4) -> 100,000 | G4: =F4/3 -> 33,333 | H4: =F4/3 -> 33,333 | I4: =F4/3 -> 33,333 | J4: =F4 -> 100,000 | K4: =F4/(SQRT(3)*380*0.8) -> 190 | L4: 3x200
B5: CHILLER.02 | C5: Chiller | D5: 1 | E5: 100,000 | F5: =+(D5*E5) -> 100,000 | G5: =F5/3 -> 33,333 | H5: =F5/3 -> 33,333 | I5: =F5/3 -> 33,333 | J5: =F5 -> 100,000 | K5: =F5/(SQRT(3)*380*0.8) -> 190 | L5: 3x200
B6: CHILLER.03 | C6: Chiller | D6: 1 | E6: 100,000 | F6: 100,000 | G6: =F6/3 -> 33,333 | H6: =F6/3 -> 33,333 | I6: =F6/3 -> 33,333 | J6: 100,000 | K6: 190 | L6: 3x200
B7: BOMBA.01 | C7: Bomba Climatizacion | D7: 1 | E7: 22,380 | F7: 22,380 | G7: =F7/3 -> 7,460 | H7: =F7/3 -> 7,460 | I7: =F7/3 -> 7,460 | J7: 22,380 | K7: 43 | L7: 3x50
B8: BOMBA.02 | C8: Bomba Climatizacion | D8: 1 | E8: 22,380 | F8: 22,380 | G8: =F8/3 -> 7,460 | H8: =F8/3 -> 7,460 | I8: =F8/3 -> 7,460 | J8: 22,380 | K8: 43 | L8: 3x50
A9: TOTAL GENERAL | E9: Σ | F9: =SUM(F4:F8) -> 344,760 | G9: =SUM(G4:G8) -> 114920 | H9: 114920 | I9: 114920 | J9: 344760 | K9: =E16 -> 622 | L9: =E17 -> 3x630
C12: Potencia instalada - Σpotencia | D12: PI | E12: =F9 -> 344,760
C13: factor de potencia - | D13: fp | E13: 0.8
C14: factor de demanda - | D14: fd | E14: 0.95
C15: Potencia Demandada - Pd = PI*fd | D15: Pd | E15: =E12*E14 -> 327,522
C16: Corriente - Id = Pd/(√3*380*fp) | D16: Id | E16: =E15/(SQRT(3)*380*E13) -> 622
C17: LLave Limitadora | D17: TM | E17: 3x630
C18: Alimentador | D18: S | E18: 4x2x(1x120)
C19: Seccion de Conductor de Proteccion | D19: S_p | E19: 1x50
C20: Corriente admisible Conductor - Iz | D20: Iz | E20: =364*2 -> 728
C21: Longitud (m) | D21: L | E21: 35

Sheet ALIM.TSE-BAC
A1: CUADRO DE CARGAS ELÉCTRICAS TABLERO-TSE-BAC
B2: CTO. | C2: DESCRIPCIÓN | D2: CANT. | E2: POTENCIA (W) | F2: POTENCIA TOTAL (W) | G2: FASES | K2: CORRIENTE (A) | L2: TM (A)
G3: R | H3: S | I3: T | J3: RST
B4: BAC.01 | C4: Bomba Agua Corriente | D4: 1 | E4: 2611 | F4: =+(D4*E4) -> 2611 | G4: =F4/3 -> 870 | H4: =F4/3 -> 870 | I4: =F4/3 -> 870 | J4: =F4 -> 2,611 | K4: =F4/660 -> 4 | L4: 3x25
B5: BAC.02 | C5: Bomba Agua Corriente | D5: 1 | E5: 2611 | F5: =+(D5*E5) -> 2611 | G5: =F5/3 -> 870 | H5: =F5/3 -> 870 | I5: =F5/3 -> 870 | J5: =F5 -> 2,611 | K5: =F5/660 -> 4 | L5: 3x25
B6: BAC.03 | C6: Bomba Agua Corriente | D6: 1 | E6: 2611 | F6: 2611 | G6: =F6/3 -> 870 | H6: =F6/3 -> 870 | I6: =F6/3 -> 870 | J6: 2,611 | K6: =F6/660 -> 4 | L6: 3x25
B7: BAC.04 | C7: Bomba Agua Corriente | D7: 1 | E7: 2611 | F7: 2611 | G7: =F7/3 -> 870 | H7: =F7/3 -> 870 | I7: =F7/3 -> 870 | J7: 2,611 | K7: =F7/660 -> 4 | L7: 3x25
B8: BAC.05 | C8: Bomba de drenaje o desagote de sala de bombas | D8: 1 | E8: 746 | F8: =+(D8*E8) -> 746 | G8: =F8 -> 746 | K8: =F8/220 -> 3 | L8: 1x25
B9: BAC.06 | C9: Bomba Dosificadora de cloro | D9: 1 | E9: 373 | F9: 373 | G9: =F9 -> 373 | K9: =F9/220 -> 2 | L9: 1x25
A10: TOTAL GENERAL | E10: Σ | F10: =SUM(F4:F9) -> 11563 | G10: =SUM(G4:G9) -> 4600.333333 | H10: =SUM(H4:H9) -> 3481.333333 | I10: =SUM(I4:I9) -> 3481.333333 | J10: =SUM(J4:J9) -> 10444 | K10: =E17 -> 22 | L10: =E18 -> 3x32
C13: Potencia instalada - Σpotencia | D13: PI | E13: =F10 -> 11,563
C14: factor de potencia - | D14: fp | E14: 0.8
C15: factor de demanda - Anexo 3 ANDE | D15: fd | E15: 1
C16: Potencia Demandada - Pd = PI*fd | D16: Pd | E16: =E13*E15 -> 11,563
C17: Corriente - Id = Pd/(√3*380*fp) | D17: Id | E17: =E16/(SQRT(3)*380*E14) -> 22
C18: LLave Limitadora | D18: TM | E18: 3x32
C19: Alimentador | D19: S | E19: 4x10
C20: Seccion de Conductor de Proteccion | D20: S_p | E20: =_xlfn.CONCAT("1x",IF(VALUE(RIGHT(E19, LEN(E19) - FIND("x", E19))) <= 16, VALUE(RIGHT(E19, LEN(E19) - FIND("x", E19))), IF(AND(VALUE(RIGHT(E19, LEN(E19) - FIND("x", E19))) > 16, VALUE(RIGHT(E19, LEN(E19) - FIND("x", E19))) <= 35), 16, VALUE(RIGHT(E19, LEN(E19) - FIND("x", E19)))/2))) -> 1x10
C21: Corriente admisible Conductor - Iz | D21: Iz | E21: 69
C22: Longitud (m) | D22: L | E22: 35

Sheet ALIM.TSN-PAT
A1: CUADRO DE CARGAS ELÉCTRICAS TABLERO-TSN-PAT
B2: CTO. | C2: DESCRIPCIÓN | D2: CANT. | E2: POTENCIA (W) | F2: POTENCIA TOTAL (W) | G2: FASES | K2: CORRIENTE (A) | L2: TM (A)
G3: R | H3: S | I3: T | J3: RST
B4: Bomb.03 | C4: Motobomba Planta de Tratamiento | D4: 1 | E4: =1*746 -> 746 | F4: =+(D4*E4) -> 746 | H4: =F4 -> 746 | K4: =F4/220 -> 3 | L4: 1x25
A5: TOTAL GENERAL | E5: Σ | F5: =SUM(F4:F4) -> 746 | G5: =SUM(G4:G4) -> 0 | H5: =SUM(H4:H4) -> 746 | I5: =SUM(I4:I4) -> 0 | J5: =SUM(J4:J4) -> 0 | K5: =E12 -> 3 | L5: =E13 -> 1x25
C8: Potencia instalada - Σpotencia | D8: PI | E8: =F5 -> 746
C9: factor de potencia - | D9: fp | E9: 0.8
C10: factor de demanda - Anexo 3 ANDE | D10: fd | E10: =IF(E8<=2700,1, IF(E8<=3800,0.95, IF(E8<=7200,0.9, IF(E8<=12000,0.85, IF(E8<=20000,0.8, IF(E8<=30000,0.75, IF(E8<=50000,0.7, IF(E8<=80000,0.65, IF(E8<=120000,0.6, IF(E8<=170000,0.55, IF(E8<=250000,0.5, 0.45))))))))))) -> 1
C11: Potencia Demandada - Pd = PI*fd | D11: Pd | E11: =E8*E10 -> 746
C12: Corriente - Id = Pd/(√3*380*fp) | D12: Id | E12: =E11/(220) -> 3
C13: LLave Limitadora | D13: TM | E13: 1x25
C14: Alimentador | D14: S | E14: 2x4
C15: Seccion de Conductor de Proteccion | D15: S_p | E15: =_xlfn.CONCAT("1x",IF(VALUE(RIGHT(E14, LEN(E14) - FIND("x", E14))) <= 16, VALUE(RIGHT(E14, LEN(E14) - FIND("x", E14))), IF(AND(VALUE(RIGHT(E14, LEN(E14) - FIND("x", E14))) > 16, VALUE(RIGHT(E14, LEN(E14) - FIND("x", E14))) <= 35), 16, VALUE(RIGHT(E14, LEN(E14) - FIND("x", E14)))/2))) -> 1x4
C16: Corriente admisible Conductor - Iz | D16: Iz | E16: 50
C17: Longitud (m) | D17: L | E17: 130

Sheet ALIM.-RIEGO
A1: CUADRO DE CARGAS ELÉCTRICAS TABLERO-TSN-RIEGO
B2: CTO. | C2: DESCRIPCIÓN | D2: CANT. | E2: POTENCIA (W) | F2: POTENCIA TOTAL (W) | G2: FASES | K2: CORRIENTE (A) | L2: TM (A)
G3: R | H3: S | I3: T | J3: RST
B4: Bomb.03 | C4: Motobomba Riego | D4: 1 | E4: =2*746 -> 1492 | F4: =+(D4*E4) -> 1492 | G4: =F4 -> 1,492 | K4: =F4/220 -> 7 | L4: 1x25
A5: TOTAL GENERAL | E5: Σ | F5: =SUM(F4:F4) -> 1492 | G5: =SUM(G4:G4) -> 1492 | H5: =SUM(H4:H4) -> 0 | I5: =SUM(I4:I4) -> 0 | J5: =SUM(J4:J4) -> 0 | K5: =E12 -> 7 | L5: =E13 -> 1x25
C8: Potencia instalada - Σpotencia | D8: PI | E8: =F5 -> 1,492
C9: factor de potencia - | D9: fp | E9: 0.8
C10: factor de demanda - Anexo 3 ANDE | D10: fd | E10: =IF(E8<=2700,1, IF(E8<=3800,0.95, IF(E8<=7200,0.9, IF(E8<=12000,0.85, IF(E8<=20000,0.8, IF(E8<=30000,0.75, IF(E8<=50000,0.7, IF(E8<=80000,0.65, IF(E8<=120000,0.6, IF(E8<=170000,0.55, IF(E8<=250000,0.5, 0.45))))))))))) -> 1
C11: Potencia Demandada - Pd = PI*fd | D11: Pd | E11: =E8*E10 -> 1,492
C12: Corriente - Id = Pd/(√3*380*fp) | D12: Id | E12: =E11/(220) -> 7
C13: LLave Limitadora | D13: TM | E13: 1x25
C14: Alimentador | D14: S | E14: 2x4
C15: Seccion de Conductor de Proteccion | D15: S_p | E15: =_xlfn.CONCAT("1x",IF(VALUE(RIGHT(E14, LEN(E14) - FIND("x", E14))) <= 16, VALUE(RIGHT(E14, LEN(E14) - FIND("x", E14))), IF(AND(VALUE(RIGHT(E14, LEN(E14) - FIND("x", E14))) > 16, VALUE(RIGHT(E14, LEN(E14) - FIND("x", E14))) <= 35), 16, VALUE(RIGHT(E14, LEN(E14) - FIND("x", E14)))/2))) -> 1x4
C16: Corriente admisible Conductor - Iz | D16: Iz | E16: 50
C17: Longitud (m) | D17: L | E17: 110

Sheet ALIM.-FUENTE SECA
A1: CUADRO DE CARGAS ELÉCTRICAS TABLERO-TSN-RIEGO
B2: CTO. | C2: DESCRIPCIÓN | D2: CANT. | E2: POTENCIA (W) | F2: POTENCIA TOTAL (W) | G2: FASES | K2: CORRIENTE (A) | L2: TM (A)
G3: R | H3: S | I3: T | J3: RST
C4: Fuente seca | D4: 1 | E4: =746*9 -> 6714 | F4: =+(D4*E4) -> 6714 | G4: =+F4/3 -> 2,238 | H4: =+G4 -> 2,238 | I4: =+H4 -> 2,238 | K4: =+E12 -> 13 | L4: 1x25
A5: TOTAL GENERAL | E5: Σ | F5: =SUM(F4:F4) -> 6714 | G5: =SUM(G4:G4) -> 2238 | H5: =SUM(H4:H4) -> 2238 | I5: =SUM(I4:I4) -> 2238 | J5: =SUM(J4:J4) -> 0 | K5: =E12 -> 13 | L5: =E13 -> 3x25
C8: Potencia instalada - Σpotencia | D8: PI | E8: =F5 -> 6,714
C9: factor de potencia - | D9: fp | E9: 0.8
C10: factor de demanda - Anexo 3 ANDE | D10: fd | E10: 1
C11: Potencia Demandada - Pd = PI*fd | D11: Pd | E11: =E8*E10 -> 6,714
C12: Corriente - Id = Pd/(√3*380*fp) | D12: Id | E12: =E11/(SQRT(3)*380*E9) -> 13
C13: LLave Limitadora | D13: TM | E13: 3x25
C14: Alimentador | D14: S | E14: 2x6
C15: Seccion de Conductor de Proteccion | D15: S_p | E15: =_xlfn.CONCAT("1x",IF(VALUE(RIGHT(E14, LEN(E14) - FIND("x", E14))) <= 16, VALUE(RIGHT(E14, LEN(E14) - FIND("x", E14))), IF(AND(VALUE(RIGHT(E14, LEN(E14) - FIND("x", E14))) > 16, VALUE(RIGHT(E14, LEN(E14) - FIND("x", E14))) <= 35), 16, VALUE(RIGHT(E14, LEN(E14) - FIND("x", E14)))/2))) -> 1x6
C16: Corriente admisible Conductor - Iz | D16: Iz | E16: 42
C17: Longitud (m) | D17: L | E17: 110

Sheet TSE-TSN-GU
A1: CUADRO DE CARGAS ELÉCTRICAS TABLERO-TSN-GU
A2: DEPENDENCIA | B2: CTO. | C2: TIPO 1 - LED 38 W | E2: TIPO 2 - LED Est. Adosar 39 W | G2: TIPO 3 - LED Circular Embutido 25 W | I2: TIPO 4 - Spot LED CIrcular Emb. 6 W | K2: TIPO 5 - Spot Cir. Movil LED 12 W | M2: TIPO 6 - Aplique de Adosar LED 5.5 W | O2: TIPO 7 - Adosar Resina LED 6 W | Q2: TIPO 8 - LED Circular Embutido 23 W | S2: TIPO 9 - LED Colgante 35 W | U2: TIPO 10 - Proyector LED 50 W | W2: TIPO 11 - LED Embutido Uni. 1.7 W | Y2: TIPO 12 - LED Colgante 25 W | AA2: TOMA SIMPLE | AC2: TOMA SCHUKO | AE2: ESTACIONES DE TRABAJO | AG2: SECAMANOS | AI2: DESCRIPCIÓN | AJ2: CANT. | AK2: POTENCIA (W) | AL2: POTENCIA TOTAL (W) | AM2: FASES | AQ2: CORRIENTE (A) | AR2: TM (A)
C3: CANT. | D3: POTENCIA UNIT. (W) | E3: CANT. | F3: POTENCIA UNIT. (W) | G3: CANT. | H3: POTENCIA UNIT. (W) | I3: CANT. | J3: POTENCIA UNIT. (W) | K3: CANT. | L3: POTENCIA UNIT. (W) | M3: CANT. | N3: POTENCIA UNIT. (W) | O3: CANT. | P3: POTENCIA UNIT. (W) | Q3: CANT. | R3: POTENCIA UNIT. (W) | S3: CANT. | T3: POTENCIA UNIT. (W) | U3: CANT. | V3: POTENCIA UNIT. (W) | W3: CANT. | X3: POTENCIA UNIT. (W) | Y3: CANT. | Z3: POTENCIA UNIT. (W) | AA3: CANT. | AB3: POTENCIA UNIT. (W) | AC3: CANT. | AD3: POTENCIA UNIT. (W) | AE3: CANT. | AF3: POTENCIA UNIT. (W) | AG3: CANT. | AH3: POTENCIA UNIT. (W) | AM3: R | AN3: S | AO3: T | AP3: RST
B4: TNGU.01 | AA4: 12 | AB4: 100 | AL4: =(C4*D4)+(E4*F4)+(G4*H4)+(I4*J4)+(K4*L4)+(M4*N4)+(O4*P4)+(Q4*R4)+(S4*T4)+(U4*V4)+(W4*X4)+(Y4*Z4)+(AA4*AB4)+(AC4*AD4)+(AE4*AF4)+(AG4*AH4)+(AJ4*AK4) -> 1200 | AM4: =AL4 -> 1,200 | AQ4: =AL4/220 -> 5 | AR4: 1x16
B5: TSNGU.01 | AC5: 1 | AD5: 2000 | AL5: =(C5*D5)+(E5*F5)+(G5*H5)+(I5*J5)+(K5*L5)+(M5*N5)+(O5*P5)+(Q5*R5)+(S5*T5)+(U5*V5)+(W5*X5)+(Y5*Z5)+(AA5*AB5)+(AC5*AD5)+(AE5*AF5)+(AG5*AH5)+(AJ5*AK5) -> 2000 | AN5: =AL5 -> 2,000 | AQ5: 9 | AR5: 1x16
B6: SmNGU.01 | AG6: 1 | AH6: 1800 | AL6: 1800 | AO6: =AL6 -> 1,800 | AQ6: 8 | AR6: 1x16
B7: FCGU.01 | AI7: Fancoil | AJ7: 1 | AK7: 1500 | AL7: 1500 | AM7: =AL7 -> 1,500 | AQ7: 7 | AR7: 1x16
B8: FCGU.02 | AI8: Fancoil | AJ8: 1 | AK8: 1500 | AL8: 1500 | AM8: =+AL8 -> 1,500 | AQ8: 7 | AR8: 1x16
B9: FCGU.03 | AI9: Fancoil | AJ9: 1 | AK9: 1500 | AL9: 1500 | AN9: =AL9 -> 1,500 | AQ9: 7 | AR9: 1x16
B10: FCGU.04 | AI10: Fancoil | AJ10: 1 | AK10: 1500 | AL10: 1500 | AM10: =AL10 -> 1,500 | AQ10: 7 | AR10: 1x16
B11: FCGU.05 | AI11: Fancoil | AJ11: 1 | AK11: 3500 | AL11: 3500 | AO11: =AL11 -> 3,500 | AQ11: 16 | AR11: 1x25
B12: FCGU.06 | AI12: Fancoil | AJ12: 1 | AK12: 3500 | AL12: 3500 | AN12: =AL12 -> 3,500 | AQ12: 16 | AR12: 1x25
B13: FCGU.07 | AI13: Fancoil | AJ13: 1 | AK13: 1080 | AL13: 1080 | AM13: =AL13 -> 1,080 | AQ13: 5 | AR13: 1x16
B14: FCGU.08 | AI14: Fancoil | AJ14: 1 | AK14: 1080 | AL14: 1080 | AM14: =AL14 -> 1,080 | AQ14: 5 | AR14: 1x16
B15: FCGU.09 | AI15: Fancoil | AJ15: 1 | AK15: 520 | AL15: 520 | AM15: =AL15 -> 520 | AQ15: 2 | AR15: 1x16
B16: TSN.SUM | AI16: Tablero Seccional TSN-SUM | AJ16: 1 | AK16: ='TSE-TSN-SUM'!AL12 -> 15300 | AL16: 15300 | AM16: ='TSE-TSN-SUM'!AM12 -> 4,100 | AN16: ='TSE-TSN-SUM'!AN12 -> 5,300 | AO16: ='TSE-TSN-SUM'!AO12 -> 5,900 | AP16: ='TSE-TSN-SUM'!AP12 -> 0 | AQ16: ='TSE-TSN-SUM'!AQ12 -> 29 | AR16: ='TSE-TSN-SUM'!AR12 -> 3x32
B17: TSN.Caf | AI17: Tablero Seccional TSN-CAF | AJ17: 1 | AK17: ='TSE-TSN-CAF'!AL16 -> 26326 | AL17: 26326 | AM17: ='TSE-TSN-CAF'!AM16 -> 8,200 | AN17: ='TSE-TSN-CAF'!AN16 -> 8,226 | AO17: ='TSE-TSN-CAF'!AO16 -> 9,900 | AP17: ='TSE-TSN-CAF'!AP16 -> 0 | AQ17: ='TSE-TSN-CAF'!AQ16 -> 37 | AR17: ='TSE-TSN-CAF'!AR16 -> 3x40
A18: TOTAL GENERAL | AK18: Σ | AL18: =SUM(AL4:AL17) -> 62306 | AM18: =SUM(AM4:AM17) -> 20680 | AN18: =SUM(AN4:AN17) -> 20526 | AO18: =SUM(AO4:AO17) -> 21100 | AP18: =SUM(AP4:AP17) -> 0 | AQ18: =AK25 -> 83 | AR18: =AK26 -> 3x100
AI21: Potencia instalada - Σpotencia | AJ21: PI | AK21: =AL18 -> 62,306
AI22: factor de potencia - | AJ22: fp | AK22: 0.8
AI23: factor de demanda - Anexo 3 ANDE | AJ23: fd | AK23: 0.7
AI24: Potencia Demandada - Pd = PI*fd | AJ24: Pd | AK24: =AK21*AK23 -> 43,614
AI25: Corriente - Id = Pd/(√3*380*fp) | AJ25: Id | AK25: =AK24/(SQRT(3)*380*AK22) -> 83
AI26: LLave Limitadora | AJ26: TM | AK26: 3x100
AI27: Alimentador | AJ27: S | AK27: 4x35
AI28: Seccion de Conductor de Proteccion | AJ28: S_p | AK28: =_xlfn.CONCAT("1x",IF(VALUE(RIGHT(AK27, LEN(AK27) - FIND("x", AK27))) <= 16, VALUE(RIGHT(AK27, LEN(AK27) - FIND("x", AK27))), IF(AND(VALUE(RIGHT(AK27, LEN(AK27) - FIND("x", AK27))) > 16, VALUE(RIGHT(AK27, LEN(AK27) - FIND("x", AK27))) <= 35), 16, VALUE(RIGHT(AK27, LEN(AK27) - FIND("x", AK27)))/2))) -> 1x16
AI29: Corriente admisible Conductor - Iz | AJ29: Iz | AK29: 138
AI30: Longitud (m) | AJ30: L | AK30: 100
A32: CUADRO DE CARGAS ELÉCTRICAS TABLERO-TSE-GU
A33: , | B33: CTO. | C33: TIPO 1 - LED 38 W | E33: TIPO 2 - LED Est. Adosar 39 W | G33: TIPO 3 - LED Circular Embutido 25 W | I33: TIPO 4 - Spot LED CIrcular Emb. 6 W | K33: TIPO 5 - Spot Cir. Movil LED 12 W | M33: TIPO 6 - Aplique de Adosar LED 5.5 W | O33: TIPO 7 - Adosar Resina LED 6 W | Q33: TIPO 8 - LED Circular Embutido 23 W | S33: TIPO 9 - LED Colgante 35 W | U33: TIPO 10 - Proyector LED 50 W | W33: TIPO 11 - LED Embutido Uni. 1.7 W | Y33: TIPO 12 - LED Colgante 25 W | AA33: TOMA SIMPLE | AC33: TOMA SCHUKO | AE33: ESTACIONES DE TRABAJO | AG33: SECAMANOS | AI33: DESCRIPCIÓN | AJ33: CANT. | AK33: POTENCIA (W) | AL33: POTENCIA TOTAL (W) | AM33: FASES | AQ33: CORRIENTE (A) | AR33: TM (A)
C34: CANT. | D34: POTENCIA UNIT. (W) | E34: CANT. | F34: POTENCIA UNIT. (W) | G34: CANT. | H34: POTENCIA UNIT. (W) | I34: CANT. | J34: POTENCIA UNIT. (W) | K34: CANT. | L34: POTENCIA UNIT. (W) | M34: CANT. | N34: POTENCIA UNIT. (W) | O34: CANT. | P34: POTENCIA UNIT. (W) | Q34: CANT. | R34: POTENCIA UNIT. (W) | S34: CANT. | T34: POTENCIA UNIT. (W) | U34: CANT. | V34: POTENCIA UNIT. (W) | W34: CANT. | X34: POTENCIA UNIT. (W) | Y34: CANT. | Z34: POTENCIA UNIT. (W) | AA34: CANT. | AB34: POTENCIA UNIT. (W) | AC34: CANT. | AD34: POTENCIA UNIT. (W) | AE34: CANT. | AF34: POTENCIA UNIT. (W) | AG34: CANT. | AH34: POTENCIA UNIT. (W) | AM34: R | AN34: S | AO34: T | AP34: RST
B35: IEGU.00 | O35: 4 | P35: 6 | AL35: =(C35*D35)+(E35*F35)+(G35*H35)+(I35*J35)+(K35*L35)+(M35*N35)+(O35*P35)+(Q35*R35)+(S35*T35)+(U35*V35)+(W35*X35)+(Y35*Z35)+(AA35*AB35)+(AC35*AD35)+(AE35*AF35)+(AG35*AH35)+(AJ35*AK35) -> 24 | AM35: =AL35 -> 24 | AQ35: =AL35/220 -> 0 | AR35: 1x10
B36: IEGU.01 | G36: 6 | H36: 25 | AL36: =(C36*D36)+(E36*F36)+(G36*H36)+(I36*J36)+(K36*L36)+(M36*N36)+(O36*P36)+(Q36*R36)+(S36*T36)+(U36*V36)+(W36*X36)+(Y36*Z36)+(AA36*AB36)+(AC36*AD36)+(AE36*AF36)+(AG36*AH36)+(AJ36*AK36) -> 150 | AN36: =AL36 -> 150 | AQ36: 1 | AR36: 1x10
B37: IEGU.02 | U37: 5 | V37: 25 | AL37: 125 | AO37: =AL37 -> 125 | AQ37: 1 | AR37: 1x10
B38: IEGU.03 | G38: 6 | H38: 25 | AL38: 150 | AM38: =AL38 -> 150 | AQ38: 1 | AR38: 1x10
B39: IEGU.04 | C39: 2 | D39: 38 | G39: 6 | H39: 25 | AL39: 226 | AO39: =AL39 -> 226 | AQ39: 1 | AR39: 1x10
B40: IEGU.05 | G40: 2 | H40: 25 | AL40: 50 | AN40: =AL40 -> 50 | AQ40: 0 | AR40: 1x10
B41: IEGU.06 | C41: 8 | D41: 38 | AL41: 304 | AM41: =AL41 -> 304 | AQ41: 1 | AR41: 1x10
B42: TEGU.01 | AE42: 4 | AF42: 250 | AL42: 1000 | AN42: =AL42 -> 1,000 | AQ42: 5 | AR42: 1x16
B43: TEGU.02 | AE43: 3 | AF43: 250 | AL43: 750 | AO43: =AL43 -> 750 | AQ43: 3 | AR43: 1x16
B44: TSE ASC3 | AI44: Tablero Seccional TSE-ASC3 | AJ44: 1 | AK44: ='TSE-ASC3'!F7 -> 5122 | AL44: 5122 | AM44: ='TSE-ASC3'!G7 -> 1,522 | AN44: ='TSE-ASC3'!H7 -> 2,100 | AO44: ='TSE-ASC3'!I7 -> 1,500 | AP44: ='TSE-ASC3'!J7 -> 4,500 | AQ44: ='TSE-ASC3'!K7 -> 10 | AR44: ='TSE-ASC3'!L7 -> 3x32
B45: TSE SUM | AI45: Tablero Seccional TSE-SUM | AJ45: 1 | AK45: ='TSE-TSN-SUM'!AL39 -> 9956 | AL45: 9956 | AM45: ='TSE-TSN-SUM'!AM39 -> 2,827 | AN45: ='TSE-TSN-SUM'!AN39 -> 3,011 | AO45: ='TSE-TSN-SUM'!AO39 -> 4,118 | AP45: ='TSE-TSN-SUM'!AP39 -> 0 | AQ45: ='TSE-TSN-SUM'!AQ39 -> 19 | AR45: ='TSE-TSN-SUM'!AR39 -> 3x25
B46: TSE Caf | AI46: Tablero Seccional TSE-CAF | AJ46: 1 | AK46: ='TSE-TSN-CAF'!AL44 -> 8633 | AL46: 8633 | AM46: ='TSE-TSN-CAF'!AM44 -> 3,250 | AN46: ='TSE-TSN-CAF'!AN44 -> 2,933 | AO46: ='TSE-TSN-CAF'!AO44 -> 2,450 | AP46: ='TSE-TSN-CAF'!AP44 -> 0 | AQ46: ='TSE-TSN-CAF'!AQ44 -> 16 | AR46: ='TSE-TSN-CAF'!AR44 -> 3x25
A47: TOTAL GENERAL | AK47: Σ | AL47: =SUM(AL35:AL46) -> 26490 | AM47: =SUM(AM35:AM46) -> 8077 | AN47: =SUM(AN35:AN46) -> 9244 | AO47: =SUM(AO35:AO46) -> 9169 | AP47: =SUM(AP35:AP46) -> 4500 | AQ47: =AK54 -> 50 | AR47: =AK55 -> 3x63
AI50: Potencia instalada - Σpotencia | AJ50: PI | AK50: =AL47 -> 26,490
AI51: factor de potencia - | AJ51: fp | AK51: 0.8
AI52: factor de demanda - Anexo 3 ANDE | AJ52: fd | AK52: 1
AI53: Potencia Demandada - Pd = PI*fd | AJ53: Pd | AK53: =AK50*AK52 -> 26,490
AI54: Corriente - Id = Pd/(√3*380*fp) | AJ54: Id | AK54: =AK53/(SQRT(3)*380*AK51) -> 50
AI55: LLave Limitadora | AJ55: TM | AK55: 3x63
AI56: Alimentador | AJ56: S | AK56: 4x16
AI57: Seccion de Conductor de Proteccion | AJ57: S_p | AK57: =_xlfn.CONCAT("1x",IF(VALUE(RIGHT(AK56, LEN(AK56) - FIND("x", AK56))) <= 16, VALUE(RIGHT(AK56, LEN(AK56) - FIND("x", AK56))), IF(AND(VALUE(RIGHT(AK56, LEN(AK56) - FIND("x", AK56))) > 16, VALUE(RIGHT(AK56, LEN(AK56) - FIND("x", AK56))) <= 35), 16, VALUE(RIGHT(AK56, LEN(AK56) - FIND("x", AK56)))/2))) -> 1x16
AI58: Corriente admisible Conductor - Iz | AJ58: Iz | AK58: 90
AI59: Longitud (m) | AJ59: L | AK59: 100

Sheet TSE-TSN-SUM
A1: CUADRO DE CARGAS ELÉCTRICAS TABLERO-TSN-SUM
A2: DEPENDENCIA | B2: CTO. | C2: TIPO 1 - LED 38 W | E2: TIPO 2 - LED Est. Adosar 39 W | G2: TIPO 3 - LED Circular Embutido 25 W | I2: TIPO 4 - Spot LED CIrcular Emb. 6 W | K2: TIPO 5 - Spot Cir. Movil LED 12 W | M2: TIPO 6 - Aplique de Adosar LED 5.5 W | O2: TIPO 7 - Adosar Resina LED 6 W | Q2: TIPO 8 - LED Circular Embutido 23 W | S2: TIPO 9 - LED Colgante 35 W | U2: TIPO 10 - Proyector LED 50 W | W2: TIPO 11 - LED Embutido Uni. 1.7 W | Y2: TIPO 12 - LED Colgante 25 W | AA2: TOMA SIMPLE | AC2: TOMA SCHUKO | AE2: ESTACIONES DE TRABAJO | AG2: SECAMANOS | AI2: DESCRIPCIÓN | AJ2: CANT. | AK2: POTENCIA (W) | AL2: POTENCIA TOTAL (W) | AM2: FASES | AQ2: CORRIENTE (A) | AR2: TM (A)
C3: CANT. | D3: POTENCIA UNIT. (W) | E3: CANT. | F3: POTENCIA UNIT. (W) | G3: CANT. | H3: POTENCIA UNIT. (W) | I3: CANT. | J3: POTENCIA UNIT. (W) | K3: CANT. | L3: POTENCIA UNIT. (W) | M3: CANT. | N3: POTENCIA UNIT. (W) | O3: CANT. | P3: POTENCIA UNIT. (W) | Q3: CANT. | R3: POTENCIA UNIT. (W) | S3: CANT. | T3: POTENCIA UNIT. (W) | U3: CANT. | V3: POTENCIA UNIT. (W) | W3: CANT. | X3: POTENCIA UNIT. (W) | Y3: CANT. | Z3: POTENCIA UNIT. (W) | AA3: CANT. | AB3: POTENCIA UNIT. (W) | AC3: CANT. | AD3: POTENCIA UNIT. (W) | AE3: CANT. | AF3: POTENCIA UNIT. (W) | AG3: CANT. | AH3: POTENCIA UNIT. (W) | AM3: R | AN3: S | AO3: T | AP3: RST
B4: TNSUM.01 | AA4: 6 | AB4: 100 | AL4: =(AE4*AF4)+(AG4*AH4)+(AJ4*AK4)+(AA4*AB4)+(AC4*AD4) -> 600 | AM4: =AL4 -> 600 | AQ4: =AL4/220 -> 3 | AR4: 1x16
B5: SMSUM.01 | AG5: 1 | AH5: 1800 | AL5: =(AE5*AF5)+(AG5*AH5)+(AJ5*AK5)+(AA5*AB5)+(AC5*AD5) -> 1800 | AN5: =AL5 -> 1,800 | AQ5: 8 | AR5: 1x16
B6: FCSUM.01 | AI6: Fancoil | AJ6: 1 | AK6: 3900 | AL6: 3900 | AO6: =AL6 -> 3,900 | AQ6: 18 | AR6: 1x25
B7: FCSUM.02 | AI7: Fancoil | AJ7: 1 | AK7: 1500 | AL7: 1500 | AM7: =AL7 -> 1,500 | AQ7: 7 | AR7: 1x16
B8: FCSUM.03 | AI8: Recuperador de Calor | AJ8: 1 | AK8: 1500 | AL8: 1500 | AN8: =AL8 -> 1,500 | AQ8: 7 | AR8: 1x16
B9: Rsva. | AI9: Reserva | AJ9: 1 | AK9: 2000 | AL9: 2000 | AM9: =AL9 -> 2,000 | AQ9: 9 | AR9: 1x16
B10: Rsva. | AI10: Reserva | AJ10: 1 | AK10: 2000 | AL10: 2000 | AN10: =AL10 -> 2,000 | AQ10: 9 | AR10: 1x16
B11: Rsva. | AI11: Reserva | AJ11: 1 | AK11: 2000 | AL11: 2000 | AO11: =AL11 -> 2,000 | AQ11: 9 | AR11: 1x16
A12: TOTAL GENERAL | AK12: Σ | AL12: =SUM(AL4:AL11) -> 15300 | AM12: =SUM(AM4:AM11) -> 4100 | AN12: 5300 | AO12: 5900 | AP12: 0 | AQ12: =AK19 -> 29 | AR12: =AK20 -> 3x32
AI15: Potencia instalada - Σpotencia | AJ15: PI | AK15: =AL12 -> 15,300
AI16: factor de potencia - | AJ16: fp | AK16: 0.8
AI17: factor de demanda - Anexo 3 ANDE | AJ17: fd | AK17: 1
AI18: Potencia Demandada - Pd = PI*fd | AJ18: Pd | AK18: =AK15*AK17 -> 15,300
AI19: Corriente - Id = Pd/(√3*380*fp) | AJ19: Id | AK19: =AK18/(SQRT(3)*380*AK16) -> 29
AI20: LLave Limitadora | AJ20: TM | AK20: 3x32
AI21: Alimentador | AJ21: S | AK21: 4x6
AI22: Seccion de Conductor de Proteccion | AJ22: S_p | AK22: =_xlfn.CONCAT("1x",IF(VALUE(RIGHT(AK21, LEN(AK21) - FIND("x", AK21))) <= 16, VALUE(RIGHT(AK21, LEN(AK21) - FIND("x", AK21))), IF(AND(VALUE(RIGHT(AK21, LEN(AK21) - FIND("x", AK21))) > 16, VALUE(RIGHT(AK21, LEN(AK21) - FIND("x", AK21))) <= 35), 16, VALUE(RIGHT(AK21, LEN(AK21) - FIND("x", AK21)))/2))) -> 1x6
AI23: Corriente admisible Conductor - Iz | AJ23: Iz | AK23: 52
AI24: Longitud (m) | AJ24: L | AK24: 5
A26: CUADRO DE CARGAS ELÉCTRICAS TABLERO-TSE-SUM
A27: , | B27: CTO. | C27: TIPO 1 - LED 38 W | E27: TIPO 2 - LED Est. Adosar 39 W | G27: TIPO 3 - LED Circular Embutido 25 W | I27: TIPO 4 - Spot LED CIrcular Emb. 6 W | K27: TIPO 5 - Spot Cir. Movil LED 12 W | M27: TIPO 6 - Aplique de Adosar LED 5.5 W | O27: TIPO 7 - Adosar Resina LED 6 W | Q27: TIPO 8 - LED Circular Embutido 23 W | S27: TIPO 9 - LED Colgante 35 W | U27: TIPO 10 - Proyector LED 50 W | W27: TIPO 11 - LED Embutido Uni. 1.7 W | Y27: TIPO 12 - LED Colgante 25 W | AA27: TOMA SIMPLE | AC27: TOMA SCHUKO | AE27: ESTACIONES DE TRABAJO | AG27: SECAMANOS | AI27: DESCRIPCIÓN | AJ27: CANT. | AK27: POTENCIA (W) | AL27: POTENCIA TOTAL (W) | AM27: FASES | AQ27: CORRIENTE (A) | AR27: TM (A)
C28: CANT. | D28: POTENCIA UNIT. (W) | E28: CANT. | F28: POTENCIA UNIT. (W) | G28: CANT. | H28: POTENCIA UNIT. (W) | I28: CANT. | J28: POTENCIA UNIT. (W) | K28: CANT. | L28: POTENCIA UNIT. (W) | M28: CANT. | N28: POTENCIA UNIT. (W) | O28: CANT. | P28: POTENCIA UNIT. (W) | Q28: CANT. | R28: POTENCIA UNIT. (W) | S28: CANT. | T28: POTENCIA UNIT. (W) | U28: CANT. | V28: POTENCIA UNIT. (W) | W28: CANT. | X28: POTENCIA UNIT. (W) | Y28: CANT. | Z28: POTENCIA UNIT. (W) | AA28: CANT. | AB28: POTENCIA UNIT. (W) | AC28: CANT. | AD28: POTENCIA UNIT. (W) | AE28: CANT. | AF28: POTENCIA UNIT. (W) | AG28: CANT. | AH28: POTENCIA UNIT. (W) | AM28: R | AN28: S | AO28: T | AP28: RST
B29: IESUM.01 | G29: 7 | H29: 25 | AL29: =(C29*D29)+(E29*F29)+(G29*H29)+(I29*J29)+(K29*L29)+(M29*N29)+(O29*P29)+(Q29*R29)+(S29*T29)+(U29*V29)+(W29*X29)+(Y29*Z29)+(AA29*AB29)+(AC29*AD29)+(AE29*AF29)+(AG29*AH29)+(AJ29*AK29) -> 175 | AM29: =AL29 -> 175 | AQ29: =AL29/220 -> 1 | AR29: 1x10
B30: IESUM.02 | G30: 5 | H30: 25 | I30: 2 | J30: 6 | AL30: =(C30*D30)+(E30*F30)+(G30*H30)+(I30*J30)+(K30*L30)+(M30*N30)+(O30*P30)+(Q30*R30)+(S30*T30)+(U30*V30)+(W30*X30)+(Y30*Z30)+(AA30*AB30)+(AC30*AD30)+(AE30*AF30)+(AG30*AH30)+(AJ30*AK30) -> 137 | AN30: =AL30 -> 137 | AQ30: 1 | AR30: 1x10
B31: IESUM.03 | Q31: 16 | R31: 23 | AL31: 368 | AO31: =AL31 -> 368 | AQ31: 2 | AR31: 1x10
B32: IESUM.04 | Q32: 38 | R32: 23 | AL32: 874 | AN32: =AL32 -> 874 | AQ32: 4 | AR32: 1x10
B33: IESUM.05 | Q33: 24 | R33: 23 | AL33: 552 | AM33: =AL33 -> 552 | AQ33: 3 | AR33: 1x10
B34: TESUM.01 | AE34: 7 | AF34: 250 | AL34: 1750 | AO34: =AL34 -> 1,750 | AQ34: 8 | AR34: 1x10
B35: TESUM.02 | AA35: 1 | AB35: 100 | AL35: 100 | AM35: =AL35 -> 100 | AQ35: 0 | AR35: 1x10
B36: Rsva. | AI36: Reserva | AJ36: 1 | AK36: 2000 | AL36: 2000 | AM36: =AL36 -> 2,000 | AQ36: 9 | AR36: 1x10
B37: Rsva. | AI37: Reserva | AJ37: 1 | AK37: 2000 | AL37: 2000 | AN37: =AL37 -> 2,000 | AQ37: 9 | AR37: 1x10
B38: Rsva. | AI38: Reserva | AJ38: 1 | AK38: 2000 | AL38: 2000 | AO38: =AL38 -> 2,000 | AQ38: 9 | AR38: 1x10
A39: TOTAL GENERAL | AK39: Σ | AL39: =SUM(AL29:AL38) -> 9956 | AM39: =SUM(AM29:AM38) -> 2827 | AN39: 3011 | AO39: 4118 | AP39: 0 | AQ39: =AK46 -> 19 | AR39: =AK47 -> 3x25
AI42: Potencia instalada - Σpotencia | AJ42: PI | AK42: =AL39 -> 9,956
AI43: factor de potencia - | AJ43: fp | AK43: 0.8
AI44: factor de demanda - Anexo 3 ANDE | AJ44: fd | AK44: 1
AI45: Potencia Demandada - Pd = PI*fd | AJ45: Pd | AK45: =AK42*AK44 -> 9,956
AI46: Corriente - Id = Pd/(√3*380*fp) | AJ46: Id | AK46: =AK45/(SQRT(3)*380*AK43) -> 19
AI47: LLave Limitadora | AJ47: TM | AK47: 3x25
AI48: Alimentador | AJ48: S | AK48: 4x4
AI49: Seccion de Conductor de Proteccion | AJ49: S_p | AK49: =_xlfn.CONCAT("1x",IF(VALUE(RIGHT(AK48, LEN(AK48) - FIND("x", AK48))) <= 16, VALUE(RIGHT(AK48, LEN(AK48) - FIND("x", AK48))), IF(AND(VALUE(RIGHT(AK48, LEN(AK48) - FIND("x", AK48))) > 16, VALUE(RIGHT(AK48, LEN(AK48) - FIND("x", AK48))) <= 35), 16, VALUE(RIGHT(AK48, LEN(AK48) - FIND("x", AK48)))/2))) -> 1x4
AI50: Corriente admisible Conductor - Iz | AJ50: Iz | AK50: 42
AI51: Longitud (m) | AJ51: L | AK51: 5

Sheet TSE-TSN-CAF
A1: CUADRO DE CARGAS ELÉCTRICAS TABLERO-TSN-CAF
A2: DEPENDENCIA | B2: CTO. | C2: TIPO 1 - LED 38 W | E2: TIPO 2 - LED Est. Adosar 39 W | G2: TIPO 3 - LED Circular Embutido 25 W | I2: TIPO 4 - Spot LED CIrcular Emb. 6 W | K2: TIPO 11 - LED Colgante 11 W | M2: TIPO 6 - Aplique de Adosar LED 5.5 W | O2: TIPO 7 - Adosar Resina LED 6 W | Q2: TIPO 8 - LED Circular Embutido 23 W | S2: TIPO 9 - LED Colgante 35 W | U2: TIPO 10 - Proyector LED 50 W | W2: TIPO 11 - LED Embutido Uni. 1.7 W | Y2: TIPO 12 - LED Colgante 25 W | AA2: TOMA SIMPLE | AC2: TOMA SCHUKO | AE2: ESTACIONES DE TRABAJO | AG2: SECAMANOS | AI2: DESCRIPCIÓN | AJ2: CANT. | AK2: POTENCIA (W) | AL2: POTENCIA TOTAL (W) | AM2: FASES | AQ2: CORRIENTE (A) | AR2: TM (A)
C3: CANT. | D3: POTENCIA UNIT. (W) | E3: CANT. | F3: POTENCIA UNIT. (W) | G3: CANT. | H3: POTENCIA UNIT. (W) | I3: CANT. | J3: POTENCIA UNIT. (W) | K3: CANT. | L3: POTENCIA UNIT. (W) | M3: CANT. | N3: POTENCIA UNIT. (W) | O3: CANT. | P3: POTENCIA UNIT. (W) | Q3: CANT. | R3: POTENCIA UNIT. (W) | S3: CANT. | T3: POTENCIA UNIT. (W) | U3: CANT. | V3: POTENCIA UNIT. (W) | W3: CANT. | X3: POTENCIA UNIT. (W) | Y3: CANT. | Z3: POTENCIA UNIT. (W) | AA3: CANT. | AB3: POTENCIA UNIT. (W) | AC3: CANT. | AD3: POTENCIA UNIT. (W) | AE3: CANT. | AF3: POTENCIA UNIT. (W) | AG3: CANT. | AH3: POTENCIA UNIT. (W) | AM3: R | AN3: S | AO3: T | AP3: RST
B4: TNCaf.01 | AA4: 5 | AB4: 100 | AL4: =(AE4*AF4)+(AG4*AH4)+(AJ4*AK4)+(AA4*AB4)+(AC4*AD4) -> 500 | AM4: =AL4 -> 500 | AQ4: =AL4/220 -> 2 | AR4: 1x16
B5: ScNCaf.01 | AC5: 1 | AD5: 2000 | AL5: =(AE5*AF5)+(AG5*AH5)+(AJ5*AK5)+(AA5*AB5)+(AC5*AD5) -> 2000 | AN5: =AL5 -> 2,000 | AQ5: 9 | AR5: 1x16
B6: ScNCaf.02 | AC6: 1 | AD6: 2000 | AL6: 2000 | AO6: =AL6 -> 2,000 | AQ6: 9 | AR6: 1x16
B7: SmNCaf.01 | AG7: 1 | AH7: 1800 | AL7: 1800 | AM7: =AL7 -> 1,800 | AQ7: 8 | AR7: 1x16
B8: SmNCaf.02 | AG8: 1 | AH8: 1800 | AL8: 1800 | AN8: =AL8 -> 1,800 | AQ8: 8 | AR8: 1x16
B9: FCCAF.01 | AI9: FC 10.55 Kw | AJ9: 1 | AK9: 3900 | AL9: 3900 | AO9: =AL9 -> 3,900 | AQ9: 18 | AR9: 1x25
B10: FCCAF.02 | AI10: FC 10.55 Kw | AJ10: 1 | AK10: 3900 | AL10: 3900 | AM10: =AL10 -> 3,900 | AQ10: 18 | AR10: 1x25
B11: FCCAF.03 | AI11: FC 5.20 Kw | AJ11: 1 | AK11: 1926 | AL11: 1926 | AN11: =AL11 -> 1,926 | AQ11: 9 | AR11: 1x16
B12: EXTCO.001 | AI12: Extractor Campana 2.000 m3/h | AJ12: 1 | AK12: 2500 | AL12: =(AE12*AF12)+(AG12*AH12)+(AJ12*AK12)+(AA12*AB12)+(AC12*AD12) -> 2500 | AN12: =AL12 -> 2,500 | AQ12: 11 | AR12: 1x16
B13: Rsva. | AJ13: 1 | AK13: 2000 | AL13: =(C13*D13)+(E13*F13)+(G13*H13)+(I13*J13)+(K13*L13)+(M13*N13)+(O13*P13)+(Q13*R13)+(S13*T13)+(U13*V13)+(W13*X13)+(Y13*Z13)+(AA13*AB13)+(AC13*AD13)+(AE13*AF13)+(AG13*AH13)+(AJ13*AK13) -> 2000 | AO13: =AL13 -> 2,000 | AQ13: 9 | AR13: 1x16
B14: Rsva. | AJ14: 1 | AK14: 2000 | AL14: 2000 | AM14: =AL14 -> 2,000 | AQ14: 9 | AR14: 1x16
B15: Rsva. | AJ15: 1 | AK15: 2000 | AL15: 2000 | AO15: =AL15 -> 2,000 | AQ15: 9 | AR15: 1x16
A16: TOTAL GENERAL | AK16: Σ | AL16: =SUM(AL4:AL15) -> 26326 | AM16: =SUM(AM4:AM15) -> 8200 | AN16: =SUM(AN4:AN15) -> 8226 | AO16: =SUM(AO4:AO15) -> 9900 | AP16: =SUM(AP4:AP15) -> 0 | AQ16: =AK23 -> 37 | AR16: =AK24 -> 3x40
AI19: Potencia instalada - Σpotencia | AJ19: PI | AK19: =AL16 -> 26,326
AI20: factor de potencia - | AJ20: fp | AK20: 0.8
AI21: factor de demanda - Anexo 3 ANDE | AJ21: fd | AK21: =IF(AK19<=2700,1, IF(AK19<=3800,0.95, IF(AK19<=7200,0.9, IF(AK19<=12000,0.85, IF(AK19<=20000,0.8, IF(AK19<=30000,0.75, IF(AK19<=50000,0.7, IF(AK19<=80000,0.65, IF(AK19<=120000,0.6, IF(AK19<=170000,0.55, IF(AK19<=250000,0.5, 0.45))))))))))) -> 0.75
AI22: Potencia Demandada - Pd = PI*fd | AJ22: Pd | AK22: =AK19*AK21 -> 19,745
AI23: Corriente - Id = Pd/(√3*380*fp) | AJ23: Id | AK23: =AK22/(SQRT(3)*380*AK20) -> 37
AI24: LLave Limitadora | AJ24: TM | AK24: 3x40
AI25: Alimentador | AJ25: S | AK25: 4x10
AI26: Seccion de Conductor de Proteccion | AJ26: S_p | AK26: =_xlfn.CONCAT("1x",IF(VALUE(RIGHT(AK25, LEN(AK25) - FIND("x", AK25))) <= 16, VALUE(RIGHT(AK25, LEN(AK25) - FIND("x", AK25))), IF(AND(VALUE(RIGHT(AK25, LEN(AK25) - FIND("x", AK25))) > 16, VALUE(RIGHT(AK25, LEN(AK25) - FIND("x", AK25))) <= 35), 16, VALUE(RIGHT(AK25, LEN(AK25) - FIND("x", AK25)))/2))) -> 1x10
AI27: Corriente admisible Conductor - Iz | AJ27: Iz | AK27: 69
AI28: Longitud (m) | AJ28: L | AK28: 12
A30: CUADRO DE CARGAS ELÉCTRICAS TABLERO-TSE-CAF
A31: , | B31: CTO. | C31: TIPO 1 - LED 38 W | E31: TIPO 2 - LED Est. Adosar 39 W | G31: TIPO 3 - LED Circular Embutido 25 W | I31: TIPO 4 - Spot LED CIrcular Emb. 6 W | K31: TIPO 11 - LED Colgante 11 W | M31: TIPO 6 - Aplique de Adosar LED 5.5 W | O31: TIPO 7 - Adosar Resina LED 6 W | Q31: TIPO 8 - LED Circular Embutido 23 W | S31: TIPO 9 - LED Colgante 35 W | U31: TIPO 10 - Proyector LED 50 W | W31: TIPO 11 - LED Embutido Uni. 1.7 W | Y31: TIPO 12 - LED Colgante 25 W | AA31: TOMA SIMPLE | AC31: TOMA SCHUKO | AE31: ESTACIONES DE TRABAJO | AG31: SECAMANOS | AI31: DESCRIPCIÓN | AJ31: CANT. | AK31: POTENCIA (W) | AL31: POTENCIA TOTAL (W) | AM31: FASES | AQ31: CORRIENTE (A) | AR31: TM (A)
C32: CANT. | D32: POTENCIA UNIT. (W) | E32: CANT. | F32: POTENCIA UNIT. (W) | G32: CANT. | H32: POTENCIA UNIT. (W) | I32: CANT. | J32: POTENCIA UNIT. (W) | K32: CANT. | L32: POTENCIA UNIT. (W) | M32: CANT. | N32: POTENCIA UNIT. (W) | O32: CANT. | P32: POTENCIA UNIT. (W) | Q32: CANT. | R32: POTENCIA UNIT. (W) | S32: CANT. | T32: POTENCIA UNIT. (W) | U32: CANT. | V32: POTENCIA UNIT. (W) | W32: CANT. | X32: POTENCIA UNIT. (W) | Y32: CANT. | Z32: POTENCIA UNIT. (W) | AA32: CANT. | AB32: POTENCIA UNIT. (W) | AC32: CANT. | AD32: POTENCIA UNIT. (W) | AE32: CANT. | AF32: POTENCIA UNIT. (W) | AG32: CANT. | AH32: POTENCIA UNIT. (W) | AM32: R | AN32: S | AO32: T | AP32: RST
B33: IECaf.01 | G33: 10 | H33: 25 | AL33: =(C33*D33)+(E33*F33)+(G33*H33)+(I33*J33)+(K33*L33)+(M33*N33)+(O33*P33)+(Q33*R33)+(S33*T33)+(U33*V33)+(W33*X33)+(Y33*Z33)+(AA33*AB33)+(AC33*AD33)+(AE33*AF33)+(AG33*AH33)+(AJ33*AK33) -> 250 | AM33: =AL33 -> 250 | AQ33: =AL33/220 -> 1 | AR33: 1x10
B34: IECaf.02 | K34: 3 | L34: 11 | AL34: =(C34*D34)+(E34*F34)+(G34*H34)+(I34*J34)+(K34*L34)+(M34*N34)+(O34*P34)+(Q34*R34)+(S34*T34)+(U34*V34)+(W34*X34)+(Y34*Z34)+(AA34*AB34)+(AC34*AD34)+(AE34*AF34)+(AG34*AH34)+(AJ34*AK34) -> 33 | AN34: =AL34 -> 33 | AQ34: 0 | AR34: 1x10
B35: IECaf.03 | G35: 3 | H35: 25 | AL35: 75 | AO35: =AL35 -> 75 | AQ35: 0 | AR35: 1x10
B36: IECaf.04 | G36: 6 | H36: 25 | AL36: 150 | AN36: =AL36 -> 150 | AQ36: 1 | AR36: 1x10
B37: IECaf.05 | G37: 7 | H37: 25 | AL37: 175 | AO37: =AL37 -> 175 | AQ37: 1 | AR37: 1x10
B38: TECaf.01 | AE38: 3 | AF38: 250 | AL38: 750 | AN38: =AL38 -> 750 | AQ38: 3 | AR38: 1x16
B39: TECaf.02 | AE39: 4 | AF39: 250 | AL39: 1000 | AM39: =AL39 -> 1,000 | AQ39: 5 | AR39: 1x16
B40: TECaf.03 | AA40: 2 | AB40: 100 | AL40: 200 | AO40: =AL40 -> 200 | AQ40: 1 | AR40: 1x16
B41: Rsva. | AJ41: 1 | AK41: 2000 | AL41: 2000 | AO41: =AL41 -> 2,000 | AQ41: 9 | AR41: 1x16
B42: Rsva. | AJ42: 1 | AK42: 2000 | AL42: 2000 | AN42: =AL42 -> 2,000 | AQ42: 9 | AR42: 1x16
B43: Rsva. | AJ43: 1 | AK43: 2000 | AL43: 2000 | AM43: =AL43 -> 2,000 | AQ43: 9 | AR43: 1x16
A44: TOTAL GENERAL | AK44: Σ | AL44: =SUM(AL33:AL43) -> 8633 | AM44: =SUM(AM33:AM43) -> 3250 | AN44: 2933 | AO44: 2450 | AP44: 0 | AQ44: =AK51 -> 16 | AR44: =AK52 -> 3x25
AI47: Potencia instalada - Σpotencia | AJ47: PI | AK47: =AL44 -> 8,633
AI48: factor de potencia - | AJ48: fp | AK48: 0.8
AI49: factor de demanda - Anexo 3 ANDE | AJ49: fd | AK49: 1
AI50: Potencia Demandada - Pd = PI*fd | AJ50: Pd | AK50: =AK47*AK49 -> 8,633
AI51: Corriente - Id = Pd/(√3*380*fp) | AJ51: Id | AK51: =AK50/(SQRT(3)*380*AK48) -> 16
AI52: LLave Limitadora | AJ52: TM | AK52: 3x25
AI53: Alimentador | AJ53: S | AK53: 4x6
AI54: Seccion de Conductor de Proteccion | AJ54: S_p | AK54: =_xlfn.CONCAT("1x",IF(VALUE(RIGHT(AK53, LEN(AK53) - FIND("x", AK53))) <= 16, VALUE(RIGHT(AK53, LEN(AK53) - FIND("x", AK53))), IF(AND(VALUE(RIGHT(AK53, LEN(AK53) - FIND("x", AK53))) > 16, VALUE(RIGHT(AK53, LEN(AK53) - FIND("x", AK53))) <= 35), 16, VALUE(RIGHT(AK53, LEN(AK53) - FIND("x", AK53)))/2))) -> 1x6
AI55: Corriente admisible Conductor - Iz | AJ55: Iz | AK55: 52
AI56: Longitud (m) | AJ56: L | AK56: 12

Sheet TSE-ASC3
A1: CUADRO DE CARGAS ELÉCTRICAS TABLERO-TSE-ASC 3
B2: CTO. | C2: DESCRIPCIÓN | D2: CANT. | E2: POTENCIA (W) | F2: POTENCIA TOTAL (W) | G2: FASES | K2: CORRIENTE (A) | L2: TM (A)
G3: R | H3: S | I3: T | J3: RST
B4: #Asc.03 | C4: motor de Ascensor 03 | D4: 1 | E4: 4500 | F4: =+(D4*E4) -> 4500 | G4: =F4/3 -> 1,500 | H4: =F4/3 -> 1,500 | I4: =F4/3 -> 1,500 | J4: =F4 -> 4,500 | K4: =F4/660 -> 7 | L4: 3x25
B5: IEAsc.01 | C5: Lum. 16 - 11 W | D5: 2 | E5: 11 | F5: =+(D5*E5) -> 22 | G5: =F5 -> 22 | K5: =F5/220 -> 0 | L5: 1x10
B6: TEAsc.01 | C6: Tomacorrientes | D6: 2 | E6: 300 | F6: 600 | H6: =F6 -> 600 | K6: =F6/220 -> 3 | L6: 1x16
A7: TOTAL GENERAL | E7: Σ | F7: =SUM(F4:F6) -> 5122 | G7: =SUM(G4:G6) -> 1522 | H7: =SUM(H4:H6) -> 2100 | I7: =SUM(I4:I6) -> 1500 | J7: =SUM(J4:J6) -> 4500 | K7: =E14 -> 10 | L7: =E15 -> 3x32
C10: Potencia instalada - Σpotencia | D10: PI | E10: =F7 -> 5,122
C11: factor de potencia - | D11: fp | E11: 0.8
C12: factor de demanda - Anexo 3 ANDE | D12: fd | E12: 1
C13: Potencia Demandada - Pd = PI*fd | D13: Pd | E13: =E10*E12 -> 5,122
C14: Corriente - Id = Pd/(√3*380*fp) | D14: Id | E14: =E13/(SQRT(3)*380*E11) -> 10
C15: LLave Limitadora | D15: TM | E15: 3x32
C16: Alimentador | D16: S | E16: 4x6
C17: Seccion de Conductor de Proteccion | D17: S_p | E17: =_xlfn.CONCAT("1x",IF(VALUE(RIGHT(E16, LEN(E16) - FIND("x", E16))) <= 16, VALUE(RIGHT(E16, LEN(E16) - FIND("x", E16))), IF(AND(VALUE(RIGHT(E16, LEN(E16) - FIND("x", E16))) > 16, VALUE(RIGHT(E16, LEN(E16) - FIND("x", E16))) <= 35), 16, VALUE(RIGHT(E16, LEN(E16) - FIND("x", E16)))/2))) -> 1x6
C18: Corriente admisible Conductor - Iz | D18: Iz | E18: 52
C19: Longitud (m) | D19: L | E19: 5

Sheet TSE-IE
A1: CUADRO DE CARGAS ELÉCTRICAS TABLERO-TSE-IE
B2: CTO. | C2: TIPO 2 - LED 39 W | E2: TIPO 9 - Proyector LED 50W | G2: TIPO 14 - Farola LED 42 W | I2: TIPO 15 - Aplique LED Bi. 12 W | K2: TIPO 16 - Banador 39W | M2: TIPO 17 - Farola LED de Resina 35W | O2: DESCRIPCIÓN | P2: CANT. | Q2: POTENCIA (W) | R2: POTENCIA TOTAL (W) | S2: FASES | W2: CORRIENTE (A) | X2: TM (A)
C3: CANT. | D3: POTENCIA UNIT. (W) | E3: CANT. | F3: POTENCIA UNIT. (W) | G3: CANT. | H3: POTENCIA UNIT. (W) | I3: CANT. | J3: POTENCIA UNIT. (W) | K3: CANT. | L3: POTENCIA UNIT. (W) | M3: CANT. | N3: POTENCIA UNIT. (W) | S3: R | T3: S | U3: T | V3: RST
B4: IeEPB.01 | G4: 12 | H4: 42 | R4: =(C4*D4)+(E4*F4)+(G4*H4)+(I4*J4)+(K4*L4)+(M4*N4)+(P4*Q4) -> 504 | S4: =R4 -> 504 | W4: =R4/220 -> 2 | X4: 1x10
B5: IeEPB.02 | M5: 10 | N5: 35 | R5: =(C5*D5)+(E5*F5)+(G5*H5)+(I5*J5)+(K5*L5)+(M5*N5)+(P5*Q5) -> 350 | T5: =R5 -> 350 | W5: 2 | X5: 1x10
B6: IeEPB.03 | M6: 7 | N6: 35 | R6: 245 | U6: =R6 -> 245 | W6: 1 | X6: 1x10
B7: IeEPB.04 | I7: 6 | J7: 12 | R7: 72 | U7: =R7 -> 72 | W7: 0 | X7: 1x10
B8: IeEPB.05 | G8: 14 | H8: 42 | R8: 588 | U8: =R8 -> 588 | W8: 3 | X8: 1x10
B9: IeEPB.06 | C9: 34 | D9: 39 | R9: 1326 | T9: =R9 -> 1,326 | W9: 6 | X9: 1x10
B10: IeEPB.07 | E10: 4 | F10: 50 | R10: 200 | S10: =R10 -> 200 | W10: 1 | X10: 1x10
B11: IeEPB.08 | G11: 12 | H11: 42 | R11: 504 | S11: =R11 -> 504 | W11: 2 | X11: 1x10
B12: IeEPB.09 | G12: 14 | H12: 42 | R12: 588 | U12: =R12 -> 588 | W12: 3 | X12: 1x10
B13: IeEPB.10 | I13: 6 | J13: 12 | R13: 72 | S13: =R13 -> 72 | W13: 0 | X13: 1x10
B14: IeEPB.11 | M14: 15 | N14: 35 | R14: 525 | S14: =R14 -> 525 | W14: 2 | X14: 1x10
B15: IeEPB.12 | K15: 8 | L15: 39 | R15: 312 | U15: =R15 -> 312 | W15: 1 | X15: 1x10
B16: IeEPB.13 | K16: 4 | L16: 39 | R16: 156 | T16: =R16 -> 156 | W16: 1 | X16: 1x10
B17: IeEPB.14 | K17: 8 | L17: 39 | R17: 312 | S17: =R17 -> 312 | W17: 1 | X17: 1x10
B18: IeEPB.15 | K18: 4 | L18: 39 | R18: 156 | U18: =R18 -> 156 | W18: 1 | X18: 1x10
A19: TOTAL GENERAL | Q19: Σ | R19: =SUM(R4:R18) -> 5910 | S19: =SUM(S4:S18) -> 2117 | T19: =SUM(T4:T18) -> 1832 | U19: =SUM(U4:U18) -> 1961 | V19: =SUM(V4:V18) -> 0 | W19: =Q26 -> 11 | X19: =Q27 -> 3x32
O22: Potencia instalada - Σpotencia | P22: PI | Q22: =R19 -> 5,910
O23: factor de potencia - | P23: fp | Q23: 0.8
O24: factor de demanda - Anexo 3 ANDE | P24: fd | Q24: 1
O25: Potencia Demandada - Pd = PI*fd | P25: Pd | Q25: =Q22*Q24 -> 5,910
O26: Corriente - Id = Pd/(√3*380*fp) | P26: Id | Q26: =Q25/(SQRT(3)*380*Q23) -> 11
O27: LLave Limitadora | P27: TM | Q27: 3x32
O28: Alimentador | P28: S | Q28: 4x6
O29: Seccion de Conductor de Proteccion | P29: S_p | Q29: =_xlfn.CONCAT("1x",IF(VALUE(RIGHT(Q28, LEN(Q28) - FIND("x", Q28))) <= 16, VALUE(RIGHT(Q28, LEN(Q28) - FIND("x", Q28))), IF(AND(VALUE(RIGHT(Q28, LEN(Q28) - FIND("x", Q28))) > 16, VALUE(RIGHT(Q28, LEN(Q28) - FIND("x", Q28))) <= 35), 16, VALUE(RIGHT(Q28, LEN(Q28) - FIND("x", Q28)))/2))) -> 1x6
O30: Corriente admisible Conductor - Iz | P30: Iz | Q30: 38
O31: Longitud (m) | P31: L | Q31: 5

Sheet ALIM.TE-PCI
A1: CUADRO DE CARGAS ELÉCTRICAS TABLERO-TE-PCI
B2: CTO. | C2: DESCRIPCIÓN | D2: CANT. | E2: POTENCIA (W) | F2: POTENCIA TOTAL (W) | G2: FASES | K2: CORRIENTE (A) | L2: TM (A)
G3: R | H3: S | I3: T | J3: RST
B4: PCI.01 | C4: Bomba de Impusion - PCI | D4: 1 | E4: 22380 | F4: =+(D4*E4) -> 22380 | G4: =J4/3 -> 7,460 | H4: =J4/3 -> 7,460 | I4: =J4/3 -> 7,460 | J4: =F4 -> 22,380 | K4: =J4/660 -> 34 | L4: 3x50
B5: PCI.02 | C5: Bomba de Impusion - PCI | D5: 1 | E5: 22380 | F5: =+(D5*E5) -> 22380 | G5: =J5/3 -> 7,460 | H5: =J5/3 -> 7,460 | I5: =J5/3 -> 7,460 | J5: =F5 -> 22,380 | K5: =J5/660 -> 34 | L5: 3x50
B6: PCI.03 | C6: Bomba de Presurizacion - PCI | D6: 1 | E6: 2238 | F6: 2238 | G6: =F6 -> 2,238 | K6: =F6/220 -> 10 | L6: 1x16
B7: TSE-PresAZ | C7: Tablero Seccional TSE-PresAz | D7: 1 | E7: ='ALIM.TSE-PRESAZ'!F6 -> 2984 | F7: 2984 | G7: ='ALIM.TSE-PRESAZ'!G6 -> 2,984 | H7: ='ALIM.TSE-PRESAZ'!H6 -> 0 | I7: ='ALIM.TSE-PRESAZ'!I6 -> 0 | J7: ='ALIM.TSE-PRESAZ'!J6 -> 0 | K7: ='ALIM.TSE-PRESAZ'!K6 -> 6 | L7: ='ALIM.TSE-PRESAZ'!L6 -> 1x25
A8: TOTAL GENERAL | E8: Σ | F8: =SUM(F4:F7) -> 49982 | G8: =SUM(G4:G7) -> 20142 | H8: 14920 | I8: 14920 | J8: 44760 | K8: =E15 -> 95 | L8: =E16 -> 3x150
C11: Potencia instalada - Σpotencia | D11: PI | E11: =F8 -> 49,982
C12: factor de potencia - | D12: fp | E12: 0.8
C13: factor de demanda - Anexo 3 ANDE | D13: fd | E13: 1
C14: Potencia Demandada - Pd = PI*fd | D14: Pd | E14: =E11*E13 -> 49,982
C15: Corriente - Id = Pd/(√3*380*fp) | D15: Id | E15: =E14/(SQRT(3)*380*E12) -> 95
C16: LLave Limitadora | D16: TM | E16: 3x150
C17: Alimentador | D17: S | E17: 4x50
C18: Seccion de Conductor de Proteccion | D18: S_p | E18: 1x50
C19: Corriente admisible Conductor - Iz | D19: Iz | E19: 175
C20: Longitud (m) | D20: L | E20: 30

Sheet ALIM.TSE-PRESAZ
A1: CUADRO DE CARGAS ELÉCTRICAS TABLERO-TSE-PRESAZ
B2: CTO. | C2: DESCRIPCIÓN | D2: CANT. | E2: POTENCIA (W) | F2: POTENCIA TOTAL (W) | G2: FASES | K2: CORRIENTE (A) | L2: TM (A)
G3: R | H3: S | I3: T | J3: RST
B4: BAZ.01 | C4: Bomba Presurizadora Azotea | D4: 1 | E4: =2*746 -> 1492 | F4: =+(D4*E4) -> 1492 | G4: =F4 -> 1,492 | K4: =F4/220 -> 7 | L4: 1x25
B5: BAZ.02 | C5: Bomba Presurizadora Azotea | D5: 1 | E5: =2*746 -> 1492 | F5: =+(D5*E5) -> 1492 | G5: =F5 -> 1,492 | K5: =F5/220 -> 7 | L5: 1x25
A6: TOTAL GENERAL | E6: Σ | F6: =SUM(F4:F5) -> 2984 | G6: =SUM(G4:G5) -> 2984 | H6: =SUM(H4:H5) -> 0 | I6: =SUM(I4:I5) -> 0 | J6: =SUM(J4:J5) -> 0 | K6: =E13 -> 6 | L6: =E14 -> 1x25
C9: Potencia instalada - Σpotencia | D9: PI | E9: =F6 -> 2,984
C10: factor de potencia - | D10: fp | E10: 0.8
C11: factor de demanda - Anexo 3 ANDE | D11: fd | E11: 1
C12: Potencia Demandada - Pd = PI*fd | D12: Pd | E12: =E9*E11 -> 2,984
C13: Corriente - Id = Pd/(√3*380*fp) | D13: Id | E13: =E12/(SQRT(3)*380*E10) -> 6
C14: LLave Limitadora | D14: TM | E14: 1x25
C15: Alimentador | D15: S | E15: 2x4
C16: Seccion de Conductor de Proteccion | D16: S_p | E16: =_xlfn.CONCAT("1x",IF(VALUE(RIGHT(E15, LEN(E15) - FIND("x", E15))) <= 16, VALUE(RIGHT(E15, LEN(E15) - FIND("x", E15))), IF(AND(VALUE(RIGHT(E15, LEN(E15) - FIND("x", E15))) > 16, VALUE(RIGHT(E15, LEN(E15) - FIND("x", E15))) <= 35), 16, VALUE(RIGHT(E15, LEN(E15) - FIND("x", E15)))/2))) -> 1x4
C17: Corriente admisible Conductor - Iz | D17: Iz | E17: 28
C18: Longitud (m) | D18: L | E18: 5
